{"text_format":"1","workbook":"xlsx","n_sheets":5,"sheets":["Cerere de Finanţare","Anexa 1","Anexa 2","Anexa 3","Asociati"],"not_rendered":{"charts":0,"images":1,"macros":1,"external_links":0,"defined_names":1,"comments":0,"pivot_tables":0},"unopened":[],"bounds":{"document_bytes":16777216,"sheet_cells":100000,"rows_first":2000,"rows_last":500,"rows_between":2000,"halvings":0,"cell_chars":16384,"cell_head_chars":4096},"cells_cut":0,"cells_raw":0,"read":"whole","date_system":"1900"}

{"sheet":"Cerere de Finanţare","index":0,"n_rows":903,"n_cols":57,"rows_kept":903,"cut":false,"hidden":false,"merged":[[806,0,806,60],[807,0,807,60],[808,0,808,60],[809,0,809,49],[809,50,809,60],[810,0,810,49],[810,50,810,60],[811,0,811,49],[811,50,811,60],[183,3,183,10],[183,13,183,29],[183,31,183,34],[183,36,183,39],[183,41,183,44],[183,46,183,49],[183,52,183,57],[184,5,184,13],[187,7,187,18],[189,9,189,58],[192,4,192,17],[192,19,192,36],[167,5,167,13],[168,17,168,58],[170,3,170,10],[171,3,171,16],[171,24,171,49],[175,4,175,15],[175,18,175,20],[175,21,175,26],[175,28,175,35],[175,37,175,48],[175,51,175,58],[176,18,177,20],[176,21,177,26],[176,28,177,35],[176,37,177,48],[176,51,177,58],[177,4,177,6],[177,7,177,9],[177,10,177,15],[176,4,176,6],[176,7,176,9],[176,10,176,15],[179,2,179,28],[180,25,180,35],[181,3,181,22],[181,25,181,42],[181,44,181,58],[170,24,170,49],[817,0,817,1],[838,0,838,1],[838,2,838,40],[838,41,838,50],[838,51,838,60],[832,0,832,1],[832,2,832,40],[832,41,832,50],[832,51,832,60],[833,0,833,1],[833,2,833,40],[833,41,833,50],[833,51,833,60],[834,0,834,60],[835,0,835,40],[835,41,835,50],[835,51,835,60],[836,0,836,1],[836,2,836,40],[836,41,836,50],[836,51,836,60],[837,0,837,1],[837,2,837,40],[837,41,837,50],[837,51,837,60],[781,50,781,60],[782,17,782,49],[782,50,782,60],[783,17,783,49],[783,50,783,60],[784,17,784,49],[784,50,784,60],[789,17,789,49],[789,50,789,60],[790,17,790,49],[790,50,790,60],[824,0,824,60],[825,0,825,1],[825,2,825,40],[825,51,825,60],[793,50,793,60],[793,17,794,28],[793,29,793,49],[794,29,794,49],[798,0,805,60],[815,2,815,40],[816,2,816,40],[817,2,817,40],[820,0,820,1],[820,2,820,40],[820,41,820,50],[821,2,821,40],[821,41,821,50],[821,51,821,60],[822,2,822,40],[822,41,822,50],[822,51,822,60],[770,17,770,49],[770,50,770,60],[769,17,769,49],[769,50,769,60],[772,0,776,16],[772,17,772,49],[772,50,772,60],[773,17,773,49],[773,50,773,60],[774,17,774,49],[774,50,774,60],[776,17,776,49],[776,50,776,60],[775,17,775,49],[775,50,775,60],[777,0,777,49],[778,0,791,16],[779,17,779,49],[779,50,779,60],[780,17,780,49],[780,50,780,60],[787,17,787,49],[787,50,787,60],[791,17,791,49],[791,50,791,60],[788,17,788,49],[788,50,788,60],[785,17,785,49],[785,50,785,60],[786,17,786,49],[786,50,786,60],[781,17,781,49],[746,5,746,60],[743,0,743,2],[743,5,743,60],[744,0,744,2],[744,5,744,60],[749,1,749,31],[748,41,748,52],[749,41,749,50],[752,0,752,60],[753,0,753,60],[754,0,754,60],[767,50,767,60],[766,17,766,49],[766,50,766,60],[763,17,763,49],[763,50,763,60],[764,17,764,49],[764,50,764,60],[762,0,767,16],[771,50,771,60],[757,0,761,16],[767,17,767,49],[699,50,699,54],[699,55,699,60],[755,50,755,60],[756,50,756,60],[755,17,756,49],[757,17,760,28],[757,29,758,40],[759,29,760,40],[757,41,757,49],[758,41,758,49],[759,41,759,49],[760,41,760,49],[734,5,734,60],[745,0,745,2],[745,5,745,60],[742,0,742,2],[742,5,742,60],[740,0,740,2],[740,5,740,60],[741,0,741,2],[741,5,741,60],[746,0,746,2],[728,5,728,60],[729,5,729,60],[730,5,730,60],[731,5,731,60],[721,0,721,60],[717,0,717,60],[732,5,732,60],[733,5,733,60],[735,5,735,60],[736,5,736,60],[676,50,676,54],[676,55,676,60],[528,0,528,30],[528,35,528,43],[528,44,528,60],[668,0,668,29],[668,30,668,34],[668,35,668,41],[668,42,668,49],[668,50,668,54],[668,55,668,60],[669,0,669,29],[669,30,669,34],[669,35,669,41],[669,42,669,49],[669,50,669,54],[669,55,669,60],[671,0,671,29],[674,42,675,49],[671,50,671,54],[671,55,671,60],[670,42,670,49],[670,50,670,54],[670,55,670,60],[665,0,665,29],[657,30,660,60],[660,0,660,16],[660,17,660,18],[662,0,663,54],[662,55,662,60],[663,55,663,60],[664,0,664,60],[524,52,524,60],[525,0,525,34],[525,35,525,43],[525,44,525,51],[525,52,525,60],[526,0,526,31],[526,35,526,42],[526,44,526,60],[667,35,667,41],[667,42,667,49],[667,50,667,54],[539,51,539,60],[542,0,542,3],[539,0,539,3],[539,4,539,41],[539,42,539,50],[530,7,530,41],[530,42,531,60],[531,7,531,41],[532,7,532,41],[532,42,532,50],[532,51,532,60],[533,7,533,60],[534,0,534,60],[527,0,527,34],[527,35,527,43],[527,44,527,60],[535,0,535,60],[536,0,536,60],[537,0,537,3],[537,4,537,41],[537,42,537,50],[524,0,524,34],[524,35,524,43],[524,44,524,51],[513,0,513,34],[513,35,513,60],[514,0,514,34],[514,35,514,43],[514,44,514,51],[514,52,514,60],[515,0,515,34],[515,35,515,43],[515,44,515,51],[515,52,515,60],[516,0,516,34],[516,35,516,43],[516,44,516,51],[516,52,516,60],[517,0,517,34],[517,35,517,43],[517,44,517,51],[517,52,517,60],[518,0,518,34],[518,35,518,43],[518,44,518,51],[518,52,518,60],[519,0,519,34],[519,35,519,43],[519,44,519,51],[519,52,519,60],[520,0,520,34],[520,35,520,43],[520,44,520,51],[510,0,510,34],[510,35,510,43],[510,44,510,51],[510,52,510,60],[511,0,511,34],[511,35,511,43],[511,44,511,51],[511,52,511,60],[512,0,512,34],[512,35,512,43],[512,44,512,51],[512,52,512,60],[523,0,523,13],[523,15,523,34],[523,35,523,43],[523,44,523,51],[523,52,523,60],[520,52,520,60],[521,0,521,34],[521,35,521,43],[521,44,521,51],[521,52,521,60],[522,0,522,13],[522,15,522,34],[522,35,522,43],[522,44,522,51],[522,52,522,60],[504,44,504,51],[504,52,504,60],[505,0,505,34],[505,35,505,43],[505,44,505,51],[505,52,505,60],[506,0,506,34],[506,35,506,43],[506,44,506,51],[506,52,506,60],[507,0,507,34],[507,35,507,43],[507,44,507,51],[507,52,507,60],[508,0,508,17],[508,35,508,60],[509,0,509,34],[509,35,509,43],[509,44,509,51],[509,52,509,60],[471,0,471,34],[471,35,471,43],[471,44,471,51],[471,52,471,60],[480,0,480,34],[480,35,480,43],[480,44,480,51],[480,52,480,60],[489,0,489,24],[489,35,489,60],[479,0,479,34],[479,35,479,43],[479,44,479,51],[479,52,479,60],[481,0,481,34],[481,35,481,43],[481,44,481,51],[481,52,481,60],[482,0,482,34],[482,35,482,43],[482,44,482,51],[482,52,482,60],[483,0,483,34],[483,35,483,43],[477,35,477,43],[477,44,477,51],[477,52,477,60],[478,0,478,34],[478,35,478,43],[478,44,478,51],[478,52,478,60],[474,0,474,34],[462,0,462,34],[462,35,462,43],[462,44,462,51],[462,52,462,60],[464,0,464,34],[464,35,464,43],[464,44,464,51],[464,52,464,60],[465,0,465,34],[465,35,465,43],[465,44,465,51],[465,52,465,60],[468,0,468,34],[468,35,468,43],[468,44,468,51],[468,52,468,60],[470,0,470,34],[470,35,470,43],[470,44,470,51],[470,52,470,60],[463,0,463,34],[463,35,463,43],[463,44,463,51],[463,52,463,60],[469,0,469,34],[469,35,469,43],[469,44,469,51],[469,52,469,60],[466,0,466,34],[466,35,466,43],[466,44,466,51],[466,52,466,60],[457,35,457,43],[457,44,457,51],[457,52,457,60],[458,0,458,34],[458,35,458,43],[458,44,458,51],[458,52,458,60],[459,0,459,34],[459,35,459,43],[459,44,459,51],[459,52,459,60],[460,0,460,34],[460,35,460,43],[460,44,460,51],[460,52,460,60],[461,0,461,34],[461,35,461,43],[461,44,461,51],[461,52,461,60],[129,47,129,48],[125,40,125,58],[131,17,131,30],[131,1,131,16],[449,0,449,34],[449,35,449,60],[450,0,450,34],[450,35,450,43],[450,44,450,51],[450,52,450,60],[451,0,451,60],[453,47,453,56],[455,0,455,34],[455,35,455,43],[455,44,455,51],[455,52,455,60],[456,0,456,34],[456,35,456,43],[456,44,456,51],[456,52,456,60],[453,20,453,24],[453,26,453,31],[453,33,453,45],[430,0,430,60],[441,0,441,3],[441,4,441,41],[441,42,441,50],[441,51,441,60],[442,0,442,3],[442,4,442,41],[442,42,442,50],[442,51,442,60],[29,1,29,59],[31,1,36,59],[38,1,47,59],[368,0,368,42],[446,0,446,44],[402,0,402,43],[157,24,157,49],[131,48,131,55],[304,0,304,17],[322,0,322,31],[707,55,707,60],[704,30,704,34],[704,35,704,41],[704,42,704,49],[704,50,704,54],[704,55,704,60],[705,30,705,34],[705,35,705,41],[705,42,705,49],[705,50,705,54],[705,55,705,60],[702,30,702,34],[129,11,129,12],[129,31,129,32],[129,41,129,42],[133,48,133,55],[133,25,133,34],[140,1,140,6],[140,36,140,39],[140,8,140,34],[113,30,113,38],[113,40,113,59],[737,5,737,60],[738,5,738,60],[739,5,739,60],[747,5,747,60],[748,0,748,30],[722,0,722,60],[728,0,728,2],[729,0,729,2],[730,0,730,2],[731,0,731,2],[732,0,732,2],[733,0,733,2],[735,0,735,2],[736,0,736,2],[737,0,737,2],[738,0,738,2],[739,0,739,2],[747,0,747,2],[723,3,723,60],[724,3,724,60],[725,3,725,60],[726,3,726,60],[727,3,727,60],[734,0,734,2],[698,55,698,60],[701,30,701,34],[701,35,701,41],[701,42,701,49],[701,50,701,54],[701,55,701,60],[700,30,700,34],[708,0,708,60],[710,0,710,60],[712,0,712,60],[716,0,716,60],[715,31,715,59],[714,0,714,60],[718,0,718,60],[711,1,711,34],[713,1,713,59],[715,1,715,28],[706,30,706,34],[706,35,706,41],[706,42,706,49],[706,50,706,54],[706,55,706,60],[709,0,709,60],[707,0,707,29],[707,30,707,34],[707,35,707,41],[707,42,707,49],[707,50,707,54],[700,50,700,54],[700,55,700,60],[699,0,699,29],[699,30,699,34],[694,55,694,60],[695,30,695,34],[695,35,695,41],[695,42,695,49],[695,50,695,54],[695,55,695,60],[693,30,693,34],[693,35,693,41],[693,42,693,49],[693,50,693,54],[693,55,693,60],[719,0,719,60],[720,0,720,60],[702,35,702,41],[702,42,702,49],[702,50,702,54],[702,55,702,60],[703,30,703,34],[703,35,703,41],[703,42,703,49],[703,50,703,54],[703,55,703,60],[696,30,696,34],[696,35,696,41],[696,42,696,49],[696,50,696,54],[696,55,696,60],[697,30,697,34],[697,35,697,41],[697,42,697,49],[697,50,697,54],[697,55,697,60],[691,55,691,60],[692,30,692,34],[692,35,692,41],[692,42,692,49],[692,50,692,54],[692,55,692,60],[690,30,690,34],[690,35,690,41],[690,42,690,49],[690,50,690,54],[690,55,690,60],[688,30,688,34],[688,35,688,41],[688,42,688,49],[688,50,688,54],[688,55,688,60],[689,55,689,60],[689,50,689,54],[685,55,685,60],[685,30,685,34],[686,30,686,34],[686,35,686,41],[686,42,686,49],[686,50,686,54],[686,55,686,60],[687,30,687,34],[687,35,687,41],[687,42,687,49],[687,50,687,54],[687,55,687,60],[683,30,683,34],[683,35,683,41],[683,42,683,49],[683,0,683,29],[683,55,683,60],[684,30,684,34],[684,35,684,41],[684,42,684,49],[684,50,684,54],[684,55,684,60],[683,50,683,54],[700,35,700,41],[700,42,700,49],[694,30,694,34],[694,35,694,41],[694,42,694,49],[694,50,694,54],[698,30,698,34],[698,35,698,41],[681,42,682,49],[697,0,697,29],[702,0,702,29],[703,0,703,29],[704,0,704,29],[705,0,705,29],[706,0,706,29],[691,0,691,29],[692,0,692,29],[693,0,693,29],[694,0,694,29],[695,0,695,29],[696,0,696,29],[685,35,685,41],[685,42,685,49],[685,50,685,54],[691,30,691,34],[691,35,691,41],[691,42,691,49],[691,50,691,54],[698,42,698,49],[698,50,698,54],[699,35,699,41],[699,42,699,49],[671,30,671,34],[671,35,671,41],[671,42,671,49],[674,0,674,29],[674,30,674,34],[674,35,674,41],[684,0,684,29],[685,0,685,29],[688,0,688,29],[689,0,689,29],[690,0,690,29],[698,0,698,29],[681,0,681,29],[686,0,686,29],[687,0,687,29],[701,0,701,29],[700,0,700,29],[680,30,680,34],[680,35,680,41],[680,42,680,49],[681,30,681,34],[681,35,681,41],[689,30,689,34],[689,35,689,41],[689,42,689,49],[677,30,677,34],[677,35,677,41],[677,42,677,49],[675,0,675,29],[675,30,675,34],[675,35,675,41],[676,0,676,29],[673,42,673,49],[673,50,673,54],[673,55,673,60],[680,55,680,60],[682,0,682,29],[682,30,682,34],[682,35,682,41],[682,50,682,54],[682,55,682,60],[679,0,679,29],[679,30,679,34],[679,35,679,41],[679,42,679,49],[679,50,679,54],[679,55,679,60],[678,0,678,29],[678,30,678,34],[678,35,678,41],[678,42,678,49],[678,50,678,54],[678,55,678,60],[680,0,680,29],[681,55,681,60],[680,50,680,54],[681,50,681,54],[677,50,677,54],[677,55,677,60],[675,50,675,54],[675,55,675,60],[676,30,676,34],[676,35,676,41],[676,42,676,49],[674,50,674,54],[674,55,674,60],[677,0,677,29],[665,30,665,34],[665,35,665,41],[665,42,665,49],[665,50,665,54],[665,55,665,60],[666,30,666,49],[666,50,666,60],[670,0,670,29],[670,30,670,34],[670,35,670,41],[655,0,655,29],[656,0,656,29],[655,30,656,60],[658,0,658,29],[659,0,659,29],[661,0,661,29],[672,0,672,29],[672,30,672,34],[672,35,672,41],[672,42,672,49],[672,50,672,54],[672,55,672,60],[673,0,673,29],[666,0,666,29],[667,0,667,29],[667,30,667,34],[667,55,667,60],[673,30,673,34],[673,35,673,41],[444,0,444,3],[444,4,444,41],[444,42,444,60],[467,0,467,34],[467,35,467,43],[467,44,467,51],[467,52,467,60],[472,0,472,34],[472,35,472,43],[472,44,472,51],[472,52,472,60],[473,0,473,34],[473,35,473,43],[473,44,473,51],[473,52,473,60],[477,0,477,34],[443,0,443,3],[443,4,443,41],[443,42,443,50],[443,51,443,60],[474,35,474,43],[474,44,474,51],[474,52,474,60],[475,0,475,34],[475,35,475,43],[475,44,475,51],[475,52,475,60],[476,0,476,34],[476,35,476,43],[476,44,476,51],[476,52,476,60],[457,0,457,34],[438,0,438,3],[438,4,438,41],[438,42,438,50],[438,51,438,60],[439,0,439,3],[439,4,439,41],[439,42,439,50],[439,51,439,60],[440,0,440,3],[440,4,440,41],[440,42,440,50],[440,51,440,60],[435,0,435,3],[435,4,435,41],[435,42,435,50],[435,51,435,60],[436,0,436,3],[436,4,436,41],[436,42,436,50],[436,51,436,60],[437,0,437,3],[437,4,437,41],[437,42,437,50],[437,51,437,60],[433,0,433,3],[433,4,433,41],[433,42,433,50],[433,51,433,60],[434,0,434,3],[434,4,434,41],[434,42,434,50],[434,51,434,60],[426,0,426,41],[428,0,428,60],[429,0,429,3],[429,4,429,41],[429,42,429,50],[429,51,429,60],[431,0,431,3],[431,4,431,41],[431,42,431,50],[431,51,431,60],[432,0,432,3],[432,4,432,41],[432,42,432,50],[432,51,432,60],[427,0,427,3],[427,4,427,41],[427,42,427,50],[427,51,427,60],[421,0,421,3],[421,4,421,41],[421,42,421,50],[421,51,421,60],[424,0,424,3],[424,4,424,41],[424,42,424,50],[424,51,424,60],[425,0,425,3],[425,4,425,41],[425,42,425,50],[425,51,425,60],[418,0,418,3],[418,4,418,41],[418,42,418,50],[418,51,418,60],[419,0,419,3],[419,4,419,41],[419,42,419,50],[419,51,419,60],[420,0,420,3],[420,4,420,41],[420,42,420,50],[420,51,420,60],[423,0,423,3],[423,4,423,41],[423,42,423,50],[423,51,423,60],[422,0,422,3],[422,4,422,41],[422,42,422,50],[422,51,422,60],[415,0,415,3],[415,4,415,41],[415,42,415,50],[415,51,415,60],[416,0,416,3],[416,4,416,41],[416,42,416,50],[416,51,416,60],[417,0,417,3],[417,4,417,41],[417,42,417,50],[417,51,417,60],[413,0,413,3],[413,4,413,41],[413,42,413,50],[413,51,413,60],[412,0,412,60],[414,0,414,3],[414,4,414,41],[414,42,414,50],[414,51,414,60],[410,0,410,60],[411,0,411,60],[405,7,405,41],[405,42,406,60],[406,7,406,41],[407,7,407,41],[407,42,407,50],[407,51,407,60],[408,7,408,60],[409,0,409,60],[398,0,398,41],[399,0,399,41],[400,0,400,41],[390,0,390,60],[393,0,393,60],[397,0,397,3],[397,4,397,41],[397,42,397,50],[397,51,397,60],[398,42,398,50],[398,51,398,60],[399,42,399,50],[399,51,399,60],[394,0,394,3],[394,4,394,41],[394,42,394,50],[394,51,394,60],[395,0,395,3],[395,4,395,41],[395,42,395,50],[395,51,395,60],[396,0,396,3],[396,4,396,41],[396,42,396,50],[396,51,396,60],[391,0,391,3],[391,4,391,41],[391,42,391,50],[391,51,391,60],[392,0,392,3],[392,4,392,41],[392,42,392,50],[392,51,392,60],[388,0,388,3],[388,4,388,41],[388,42,388,50],[388,51,388,60],[389,0,389,3],[389,4,389,41],[389,42,389,50],[389,51,389,60],[385,0,385,3],[385,4,385,41],[385,42,385,50],[385,51,385,60],[386,0,386,3],[386,4,386,41],[386,42,386,50],[386,51,386,60],[387,0,387,3],[387,4,387,41],[387,42,387,50],[387,51,387,60],[382,0,382,3],[382,4,382,41],[382,42,382,50],[382,51,382,60],[383,0,383,3],[383,4,383,41],[383,42,383,50],[383,51,383,60],[384,0,384,3],[384,4,384,41],[384,42,384,50],[384,51,384,60],[381,0,381,3],[381,4,381,41],[381,42,381,50],[381,51,381,60],[379,0,379,41],[378,42,378,60],[380,42,380,50],[380,51,380,60],[380,0,380,41],[376,0,376,60],[377,0,377,60],[378,0,378,3],[378,4,378,41],[379,42,379,50],[379,51,379,60],[370,7,370,41],[371,7,371,41],[371,42,372,60],[372,7,372,41],[373,7,373,41],[373,42,373,50],[373,51,373,60],[374,7,374,60],[375,0,375,60],[365,0,365,3],[365,4,365,41],[348,6,348,41],[349,6,349,41],[350,6,350,41],[351,6,351,41],[352,6,352,41],[353,6,353,41],[366,0,366,41],[365,42,365,50],[365,51,365,60],[333,0,333,3],[333,4,333,41],[334,0,334,3],[334,4,334,41],[335,0,335,3],[335,4,335,41],[336,0,336,3],[336,4,336,41],[337,0,337,3],[337,4,337,41],[338,0,338,3],[338,4,338,41],[339,0,339,3],[339,4,339,41],[340,0,340,3],[340,4,340,41]],"merged_total":2257,"flags":["merged_cut"]}
[null,null,null,null,null,null,"MINISTERUL AGRICULTURII ŞI DEZVOLTĂRII RURALE"]
[null,null,null,null,null,null,"AGENŢIA PENTRU FINANŢAREA INVESTIŢIILOR RURALE"]
[]
[null,null,null,null,null,null,null,null,null,null,null,null,null,null,null,null,null,null,null,null,null,null,null,null,null,null,null,null,null,null,null,null,null,null,null,null,null,null,null,null,null,null,"SECŢIUNE GENERALĂ"]
[]
["DATE DE ÎNREGISTRARE",null,null,null,null,null,null,null,null,null,null,null,null,null,null,null,null,null,null,null,null,null,null,null,null,null,null,null,null,null,null,null,null,null,null,null,"NUME ŞI PRENUME DIRECTOR GENERAL"]
[null,null,null,null,null,null,null,null,null,null,null,null,null,null,null,null,null,null,null,null,null,null,null,null,null,null,null,null,null,null,null,null,null,null,null,null,"ADJUNCT CRFIR"]
["Se completează de către Agenția pentru Finanțarea Investițiilor Rurale -Centrul"]
["Regional- Programul FEADR 2014-2020"]
[]
["OJFIR/CRFIR",null,null,null,null,null,null,null,null,null,null,null,null,null,null,null,null,null,null,null,null,null,null,null,null,null,null,null,null,null,null,null,null,null,null,null,"Semnătura Director General Adjunct CRFIR"]
[null,null,null,null,null,null,null,null,null,null,null,null,null,null,null,null,null,null,null,null,null,null,null,null,null,null,null,null,null,null,null,null,null,null,null,null,"Ştampila CRFIR"]
["Număr "]
["înregistrare"]
[]
[]
[]
[]
["Data Înregistrării"]
["Numele şi prenumele persoanei care înregistrează"]
["Semnătura:"]
["Data primirii cererii de finanţare la contractare:"]
["Se completează de către solicitant"]
["A PREZENTARE GENERALĂ"]
[]
[null,"A1 Măsura",null,null,null,null,null,null,null,null,"Sub-măsura 19.2 "]
[null,null,null,null,null,null,null,null,null,null," - Măsura 3.1/6A Dezvoltarea activităților non-agricole în teritoriul GAL"]
[null,"Conţinutul cadru al documentaţiei tehnico-economice faza SF/DALI conform : ",null,null,null,null,null,null,null,null,null,null,null,null,null,null,null,null,null,null,null,null,null,null,null,null,null,null,null,null,null,null,null,null,null,null,null,null,null,null,null,null,null,null,null,null,null,null,"H.G. nr. 28/2008"]
[null,"A2 Denumire solicitant:",null,null,null,null,null,null,null,null,null,null,null,null,null,null,null,null,null,null,null,null,null,null,null,null,null,null,null,null,null,null,null,null,null,null,null,null,null,null,null,null,null,null,null,null,null,null,"H.G. nr. 907/2016"]
[]
[null,"A3 Titlu proiect:"]
[]
[]
[]
[]
[]
[]
[null,"A4 Descrierea succintă a proiectului:"]
[]
[]
[]
[]
[]
[]
[]
[]
[]
[]
[]
[null,null,"A5 Amplasarea proiectului:"]
[]
["Regiunea de dezvoltare:",null,null,null,null,null,null,null,null,null,null,null,null,null,null,null,null,null,null,null,null,null,null,null,null,null,null,"Judeţ:"]
[]
[null,"Obiectivele investiţiei",null,null,null,null,null,null,null,null,null,null,null,null,null,"Judeţ",null,null,null,null,null,null,null,null,null,null,null,"Comună/Oraş",null,null,null,null,null,null,null,null,null,null,null,"Sat/Sector",null,null,null,null,null,null,null,null,null,null,"Sat/Sector"]
[]
[]
[]
[]
[]
[]
[]
[]
[]
[]
[]
[]
[]
[]
[]
[]
[]
[]
[]
[]
[]
[]
[]
[]
[]
[]
[]
[]
[]
[]
[]
[]
[]
[]
[]
[]
[]
[]
[]
[]
[]
[null,"A6 Date despre tipul de proiect şi beneficiar:"]
[]
[null,"A6.0  Tip zona",null,null,null,null,null,null,null,null,null,"Restul teritoriului"]
[]
[null,"A6.1",null,null,null,null,"Proiect cu construcții montaj",null,null,null,null,null,null,null,null,null,null,null,null,null,null,null,null,null,null,null,null,null,"A6.3",null,null,null,null,"Beneficiar privat"]
[null,null,null,null,null,null,"Proiect fără construcții montaj"]
[]
[null,"A6.2",null,null,null,null,"Modernizare și/sau Extindere",null,null,null,null,null,null,null,null,null,null,null,null,null,null,null,null,null,"A6.4",null,null,null,"Prescorare",null,null,null,null,null,null,{"$f":"AY857","v":0}]
[null,null,null,null,null,null,"Investiție nouă"]
[]
[null,"Denumire consultant: "]
[null,null,null,null,null,null,null,null,null,null,null,null,null,null,null,null,null,null,null,null,null,null,null,null,null,null,null,null,null,null,null,"CUI"]
[]
[null,null,null,null,null,null,null,null,null,null,null,null,null,null,null,null,null,null,null,null,null,null,null,null,null,null,null,null,null,null,"Nr. Inreg. ONRC"]
[]
[null,"Denumire proiectant: "]
[null,null,null,null,null,null,null,null,null,null,null,null,null,null,null,null,null,null,null,null,null,null,null,null,null,null,null,null,null,null,null,"CUI"]
[]
[null,null,null,null,null,null,null,null,null,null,null,null,null,null,null,null,null,null,null,null,null,null,null,null,null,null,null,null,null,null,"Nr. Inreg. ONRC"]
[]
[null,null,null,null,"Proiect tehnic",null,null,null,null,null,null,null,null,null,null,null,"Autorizație",null,null,null,null,null,null,null,null,"Studiu de impact"]
[]
[]
["B INFORMAŢII PRIVIND SOLICITANTUL"]
["B1 Descrierea solicitantului"]
[null,"B1.1 Informaţii privind solicitantul"]
[null,"Data înființării",null,null,null,null,null,null,null,null,null,null,null,null,null,null,null,null,null,"Cod Unic de Înregistrare și/sau Codul de",null,null,null,null,null,null,null,null,null,null,null,null,null,null,null,null,null,null,null,null,null,null,null,"Statut juridic al solicitantului"]
[null,null,null,null,null,null,null,null,null,null,null,null,null,null,null,null,null,null,null,"Înregistrare Fiscală"]
[]
[]
[null,"Număr de înregistrare în registrul comerțului"]
[]
[null,"Codul CAEN al activităţii/activităţilor finanţate prin proiect"]
[]
[]
[]
[null,"Codul unic de înregistrare APIA",null,null,null,null,null,null,null,null,null,null,null,null,null,null,null,null,null,null,null,null,null,null,null,null,null,null,null,null,null,null,null,null,null,null,"Anul atribuirii codului"]
[]
[null,"Codul Registru Național al Exploatațiilor ANSVSA",null,null,null,null,null,null,null,null,null,null,null,null,null,null,null,null,null,null,null,null,null,null,null,null,null,null,null,null,null,null,null,null,null,null,"Anul atribuirii codului"]
[]
[]
[null,"B1.2 Sediul social / Domiciliul stabil al solicitantului / Reşedinţa din România"]
[null,"Judeţ",null,null,null,null,null,null,null,null,null,null,null,null,null,null,null,null,null,null,null,null,"Localitate",null,null,null,null,null,null,null,null,null,null,null,null,null,null,null,null,null,null,null,"Sat"]
[]
[null,"Cod Poştal",null,null,null,null,null,null,"Strada",null,null,null,null,null,null,null,null,null,null,null,null,null,null,null,null,null,null,null,null,null,null,null,null,null,null,null,null,"Nr.",null,null,null,"Bloc",null,null,null,"Scara",null,null,null,"Etaj",null,null,null,"Apartament"]
[]
[null,"Telefon fix",null,null,null,null,null,null,null,null,null,"Telefon mobil",null,null,null,null,null,null,null,null,null,"Fax",null,null,null,null,null,null,null,null,null,null,null,null,null,null,"E-mail"]
[]
[]
[null,"B1.3 Numele şi prenumele reprezentantului legal şi funcţia acestuia în cadrul organizaţiei, precum şi"]
[null,"specimenul de semnatură:"]
[]
[null,null,null,"Numele",null,null,null,null,null,null,null,null,null,null,"Prenumele",null,null,null,null,null,null,null,null,null,null,"Funcţia",null,null,null,null,null,null,null,null,null,null,"Reprezentant legal",null,null,null,null,null,null,null,null,null,null,"Specimen de"]
[null,null,null,null,null,null,null,null,null,null,null,null,null,null,null,null,null,null,null,null,null,null,null,null,null,null,null,null,null,null,null,null,null,null,null,null,null,null,null,null,null,null,null,null,null,null,null,"semnătură"]
[]
[null,null,null,null,null,null,null,null,null,null,null,null,null,null,null,null,null,null,null,null,null,null,null,null,null,null,null,null,null,null,null,null,null,null,null,null,"LEGAL"]
[]
[]
["B2 Informaţii referitoare la reprezentantul legal de proiect"]
[null,"B2.1 Date de identitate ale reprezentantului legal de proiect"]
[]
[null,null,null,"Data naşterii",null,null,null,null,null,null,null,null,null,null,null,null,null,null,null,null,null,null,null,null,"Cod numeric personal"]
[]
[]
[]
[null,null,null,null,"Act de identitate",null,null,null,null,null,null,null,null,null,null,null,null,null,"Seria",null,null,"Nr.",null,null,null,null,null,null,"Eliberat la data de",null,null,null,null,null,null,null,null,"de:",null,null,null,null,null,null,null,null,null,null,null,null,null,"Valabil până la:"]
[null,null,null,null,"B.I.",null,null,"C.I.",null,null,"Paşaport"]
[]
[]
[null,null,null,null,"Asociat unic",null,null,null,null,null,null,null,null,null,null,null,"Asociat majoritar",null,null,null,null,null,null,null,null,null,null,"Administrator"]
[]
[null,"Asociați"]
[null,null,null,null,null,"Persoană Fizică: "]
[null,null,null,"Nume și prenume asociat : "]
[]
[null,null,null,"Data naşterii",null,null,null,null,null,null,null,null,null,null,null,null,null,null,null,null,null,null,null,null,"Cod numeric personal"]
[]
[]
[]
[]
[null,null,null,null,"Act de identitate",null,null,null,null,null,null,null,null,null,null,null,null,null,"Seria",null,null,"Nr.",null,null,null,null,null,null,"Eliberat la data de",null,null,null,null,null,null,null,null,"de:",null,null,null,null,null,null,null,null,null,null,null,null,null,"Valabil până la:"]
[null,null,null,null,"B.I.",null,null,"C.I.",null,null,"Paşaport"]
[]
[]
[null,null,"Adresa și domiciliul asociatului:"]
[null,null,null,"Judeţ",null,null,null,null,null,null,null,null,null,null,null,null,null,null,null,null,null,null,null,null,null,"Localitate",null,null,null,null,null,null,null,null,null,null,null,null,null,null,null,null,null,null,"Sat"]
[]
[null,null,null,"Cod Poştal",null,null,null,null,null,null,null,null,null,"Strada",null,null,null,null,null,null,null,null,null,null,null,null,null,null,null,null,null,"Nr.",null,null,null,null,"Bloc",null,null,null,null,"Scara",null,null,null,null,"Etaj",null,null,null,null,null,"Apartament"]
[]
[null,null,null,null,null,"Persoană Juridică: "]
[]
[null,null,null,null,null,null,null,"Înregistrată în România"]
[null,null,null,null,null,null,null,"Înregistrată în altă țară"]
[]
[null,null,null,"Denumire : "]
[]
[null,null,null,null,"CUI",null,null,null,null,null,null,null,null,null,null,null,null,null,null,"Nr. Inreg. ONRC"]
[]
[]
[null,"B2.2 Domiciliul stabil al reprezentantului legal de proiect"]
[null,"Judeţ",null,null,null,null,null,null,null,null,null,null,null,null,null,null,null,null,null,null,null,null,"Localitate",null,null,null,null,null,null,null,null,null,null,null,null,null,null,null,null,null,null,null,"Sat"]
[]
[null,"Cod Poştal",null,null,null,null,null,null,"Strada",null,null,null,null,null,null,null,null,null,null,null,null,null,null,null,null,null,null,null,null,null,null,null,null,null,null,null,null,"Nr.",null,null,null,"Bloc",null,null,null,"Scara",null,null,null,"Etaj",null,null,null,"Apartament"]
[]
[null,"Telefon fix",null,null,null,null,null,null,null,null,null,null,null,null,null,null,null,null,null,null,"Telefon mobil",null,null,null,null,null,null,null,null,null,null,null,null,null,null,null,null,null,"Fax"]
[]
[null,"E-mail"]
[]
[]
["B3 Informaţii privind contul bancar pentru proiect schema de autor de stat"]
[]
[null,null,"B3.1 Denumirea Băncii",null,null,null,null,null,null,null,null,null,null,null,null,null,null,null,null,null,null,null,null,null,null,null,null,null,null,null,null,"Denumirea Sucursalei/Filialei"]
[]
[]
[null,null,"B3.2 Adresa Băncii/Sucursalei"]
[]
[]
[null,null,"B3.3 Cod IBAN",null,null,null,null,null,null,null,null,null,null,null,null,null,null,null,null,null,null,null,null,null,null,null,null,null,null,null,null,"B3.4 Titularul contului bancar"]
[]
[]
[]
["REGULI DE COMPLETARE\n\nCompletaţi devizele aferente capitolelor de cheltuieli, defalcat pe cheltuieli eligibile şi neeligibile prin completarea tabelelor incluse în acest document, respectiv :\n1. Tabelul \"Deviz financiar_cap3\" cuprinde cheltuielile aferente capitolului 3 - Cheltuieli pentru proiectare şi asistenţă tehnică, cheltuieli care trebuie să se regăsească atât în Bugetul Indicativ (Tabel \"Buget indicativ\" din cererea de finanţare, partea specifică) cât şi în Devizul General din Studiul de Fezabilitate.\n2. Tabelul \"Devize obiect\" cuprinde formatul cadru al devizului pe obiect, iar solicitantul va completa atâtea devize pe obiect câte obiecte de investiţie sunt incluse în proiect. Suma tuturor devizelor pe obiect trebuie să se regăsească atât în Bugetul Indicativ (tabelul \"Buget indicativ\" din cererea de finanţare, partea specifică) cât şi în Devizul General din Studiul de Fezabilitate.\nÎn cazul în care proiectul de investiţii presupune mai multe devize pe obiect, solicitantul va crea în documentul curent câte o copie a tabelului \"Devize obiect\" pentru fiecare deviz pe obiect şi va detalia cheltuielile eligibile şi neeligibile pe fiecare în parte.\n3. Tabelul \"cap.2+cap.5\" cuprinde cheltuieli aferente capitolelor 2 şi 5 şi trebuie să se regăsească atât în Bugetul Indicativ (tabel \"Buget indicativ\" din cererea de finanţare, partea specifică) cât şi Devizul General din Studiul de Fezabilitate.\n4. Câmpul \"Prescorare\" de la secţiunea A6 se autocompletează cu totalul din Grila criterii de selecție.\n5. Pentru indicatorii de tip numeric care nu fac obiectul investitiei sa va completa valoarea zero.\n6. Trebuie bifate si anexate toate documente (1.a, 5, 10, 11 si 18) de pe coloana “DEPUNERE - Obligatoriu pentru toate proiectele” din sectiunea E – Lista documentelor anexate.\n"]
[]
[]
[]
[]
[]
[]
[]
[]
[]
[]
[]
[]
[]
[]
[]
[]
[]
[]
[]
[]
[]
[]
[]
[]
[]
[]
["C FINANȚĂRI NERAMBURSABILE OBȚINUTE, SAU SOLICITATE ?"]
[null,null,"Dacă au fost obținute finanțări nerambursabile sau au fost solicitate și au fost obținute parțial, se vor detalia prin completarea"]
[null,null,"tabelului de mai jos."]
[]
[null,null,null,null,null,null,null,null,null,null,"DA",null,null,null,null,null,null,null,"NU"]
[]
[null,"DENUMIRE PROGRAM FINANȚARE",null,null,null,null,null,null,null,null,null,null,null,null,"DA",null,null,null,null,null,null,null,null,null,null,null,null,null,null,null,null,null,null,null,null,null,null,null,null,null,null,null,null,null,null,null,null,null,null,null,null,null,null,null,null,null,"NU"]
[null,null,null,null,null,null,null,null,null,null,null,null,null,null,"Număr proiecte",null,null,null,null,"Titlul Proiectui și numărul contractului de finanțare ",null,null,null,null,null,null,null,null,null,null,null,null,null,null,null,null,null,null,null,null,null,null,"Data finalizării\nll/zz/aaaa",null,null,null,null,null,null,"Valoarea\nsprijinului\n(EUR)"]
[null,"Program Naţional*"]
[null,"Program Naţional*"]
[null,"FEADR *"]
[null,"SAPARD"]
[null,"Alte programe europene*"]
[null,"Alte programe europene*"]
[null,"Alte programe internaționale*"]
[null,"Alte programe internaționale*"]
[null,"Alte programe internaționale*"]
[null,null,null,null,"* se completează de către solicitant cu denumirea programului"]
[]
[null,"Buget Indicativ - HG 28/2008"]
["MINISTERUL AGRICULTURII ŞI DEZVOLTĂRII RURALE"]
["AGENŢIA PENTRU FINANŢAREA INVESTIŢIILOR RURALE"]
[]
[]
[null,"Procentul aferent intensității",null,null,null,null,null,null,null,null,null,null,null,null,null,null,null,null,null,null,"Curs EURO",null,null,null,null,null,null,null,null,null,null,null,null,"Data întocmirii Studiului de Fezabilitate"]
[]
["Măsura",null,null,null,null,null,null,null,null,null,null,null,null,null,null,null,null,null,null,null,null,null,null,null,null,null,null,null,null,null,null,null,null,null,null,"3.1"]
["Denumirea capitolelor de cheltuieli",null,null,null,null,null,null,null,null,null,null,null,null,null,null,null,null,null,null,null,null,null,null,null,null,null,null,null,null,null,null,null,null,null,null,"Cheltuieli eligibile",null,null,null,null,null,null,null,null,"Cheltuieli neeligibile",null,null,null,null,null,null,null,"Total"]
[null,null,null,null,null,null,null,null,null,null,null,null,null,null,null,null,null,null,null,null,null,null,null,null,null,null,null,null,null,null,null,null,null,null,null,"EURO",null,null,null,null,null,null,null,null,"EURO",null,null,null,null,null,null,null,"EURO"]
[1,null,null,null,null,null,null,null,null,null,null,null,null,null,null,null,null,null,null,null,null,null,null,null,null,null,null,null,null,null,null,null,null,null,null,2,null,null,null,null,null,null,null,null,3,null,null,null,null,null,null,null,4]
["Capitolul 1 Cheltuieli pentru obtinerea şi amenajarea terenului - total, din care:",null,null,null,null,null,null,null,null,null,null,null,null,null,null,null,null,null,null,null,null,null,null,null,null,null,null,null,null,null,null,null,null,null,null,{"$f":"SUM(AJ276:AR277)","v":0},null,null,null,null,null,null,null,null,{"$f":"SUM(AS275:AZ277)","v":0},null,null,null,null,null,null,null,{"$f":"SUM(AJ274:AZ274)","v":0}]
["1.1 Cheltuieli pentru obţinerea terenului",null,null,null,null,null,null,null,null,null,null,null,null,null,null,null,null,null,null,null,null,null,null,null,null,null,null,null,null,null,null,null,null,null,null,null,null,null,null,null,null,null,null,null,null,null,null,null,null,null,null,null,{"$f":"SUM(AJ275:AZ275)","v":0}]
["1.2 Cheltuieli pentru amenajarea terenului",null,null,null,null,null,null,null,null,null,null,null,null,null,null,null,null,null,null,null,null,null,null,null,null,null,null,null,null,null,null,null,null,null,null,null,null,null,null,null,null,null,null,null,null,null,null,null,null,null,null,null,0]
["1.3 Cheltuieli cu amenajari pentru protecţia mediului şi aducerea la starea iniţială",null,null,null,null,null,null,null,null,null,null,null,null,null,null,null,null,null,null,null,null,null,null,null,null,null,null,null,null,null,null,null,null,null,null,null,null,null,null,null,null,null,null,null,null,null,null,null,null,null,null,null,0]
["Capitolul 2 Cheltuieli pentru asigurarea utilităţilor necesare obiectivului",null,null,null,null,null,null,null,null,null,null,null,null,null,null,null,null,null,null,null,null,null,null,null,null,null,null,null,null,null,null,null,null,null,null,null,null,null,null,null,null,null,null,null,null,null,null,null,null,null,null,null,0]
["Capitolul 3 Cheltuieli pentru proiectare şi asistenţă tehnică - total, din care:",null,null,null,null,null,null,null,null,null,null,null,null,null,null,null,null,null,null,null,null,null,null,null,null,null,null,null,null,null,null,null,null,null,null,{"$f":"SUM(AJ280:AR285)","v":0},null,null,null,null,null,null,null,null,{"$f":"SUM(AS280:AZ285)","v":0},null,null,null,null,null,null,null,0]
["3.1 Studii de teren",null,null,null,null,null,null,null,null,null,null,null,null,null,null,null,null,null,null,null,null,null,null,null,null,null,null,null,null,null,null,null,null,null,null,null,null,null,null,null,null,null,null,null,null,null,null,null,null,null,null,null,0]
["3.2 Obţinerea de avize, acorduri şi autorizaţii",null,null,null,null,null,null,null,null,null,null,null,null,null,null,null,null,null,null,null,null,null,null,null,null,null,null,null,null,null,null,null,null,null,null,null,null,null,null,null,null,null,null,null,null,null,null,null,null,null,null,null,0]
["3.3 Proiectare şi inginerie",null,null,null,null,null,null,null,null,null,null,null,null,null,null,null,null,null,null,null,null,null,null,null,null,null,null,null,null,null,null,null,null,null,null,null,null,null,null,null,null,null,null,null,null,null,null,null,null,null,null,null,0]
["3.4 Organizarea procedurilor de achiziţie",null,null,null,null,null,null,null,null,null,null,null,null,null,null,null,null,null,null,null,null,null,null,null,null,null,null,null,null,null,null,null,null,null,null,null,null,null,null,null,null,null,null,null,null,null,null,null,null,null,null,null,0]
["3.5 Consultanţă",null,null,null,null,null,null,null,null,null,null,null,null,null,null,null,null,null,null,null,null,null,null,null,null,null,null,null,null,null,null,null,null,null,null,null,null,null,null,null,null,null,null,null,null,null,null,null,null,null,null,null,0]
["3.6 Asistenţă tehnică",null,null,null,null,null,null,null,null,null,null,null,null,null,null,null,null,null,null,null,null,null,null,null,null,null,null,null,null,null,null,null,null,null,null,null,null,null,null,null,null,null,null,null,null,null,null,null,null,null,null,null,0]
["Verificare încadrare cheltuieli capitolul 3",null,null,null,null,null,null,null,null,null,null,null,null,null,null,null,null,null,null,null,null,null,null,null,null,null,null,null,null,null,null,null,null,null,null,{"$f":"IF(AJ287=0,IF((IF((AJ274+AJ278+AJ287)=0,0,AJ279*100/(AJ274+AJ278+AJ287)))<=5,\"cheltuieli capitol 3 se incadreaza in limita de 5%\",\"cheltuieli capitol 3 nu se incadreaza in limita de 5%\"),IF((IF((AJ274+AJ278+AJ287)=0,0,AJ279*100/(AJ274+AJ278+AJ287)))<=10,\"cheltuieli capitol 3 se incadreaza in limita de 10%\",\"cheltuieli capitol 3 nu se incadreaza in limita de 10%\"))","v":"cheltuieli capitol 3 se incadreaza in limita de 5%"}]
["Capitolul 4 Cheltuieli pentru investiţia de bază - total, din care:",null,null,null,null,null,null,null,null,null,null,null,null,null,null,null,null,null,null,null,null,null,null,null,null,null,null,null,null,null,null,null,null,null,null,{"$f":"AJ288","v":0},null,null,null,null,null,null,null,null,{"$f":"AS288","v":0},null,null,null,null,null,null,null,{"$f":"SUM(AJ287:AZ287)","v":0}]
["Constructii, din care:",null,null,null,null,null,null,null,null,null,null,null,null,null,null,null,null,null,null,null,null,null,null,null,null,null,null,null,null,null,null,null,null,null,null,{"$f":"SUM(AJ289:AR294)","v":0},null,null,null,null,null,null,null,null,{"$f":"SUM(AS289:AZ294)","v":0},null,null,null,null,null,null,null,{"$f":"SUM(AJ288:AZ288)","v":0}]
["4.1 Construcţii şi instalaţii",null,null,null,null,null,null,null,null,null,null,null,null,null,null,null,null,null,null,null,null,null,null,null,null,null,null,null,null,null,null,null,null,null,null,null,null,null,null,null,null,null,null,null,null,null,null,null,null,null,null,null,0]
["4.2 Montaj utilaj tehnologic",null,null,null,null,null,null,null,null,null,null,null,null,null,null,null,null,null,null,null,null,null,null,null,null,null,null,null,null,null,null,null,null,null,null,null,null,null,null,null,null,null,null,null,null,null,null,null,null,null,null,null,0]
["4.3 Utilaje, echipamente tehnologice şi funcţionale cu montaj (procurare)",null,null,null,null,null,null,null,null,null,null,null,null,null,null,null,null,null,null,null,null,null,null,null,null,null,null,null,null,null,null,null,null,null,null,null,null,null,null,null,null,null,null,null,null,null,null,null,null,null,null,null,0]
["4.4 Utilaje şi echipamente fară montaj, mijloace de transport, alte achiziţii specifice",null,null,null,null,null,null,null,null,null,null,null,null,null,null,null,null,null,null,null,null,null,null,null,null,null,null,null,null,null,null,null,null,null,null,null,null,null,null,null,null,null,null,null,null,null,null,null,null,null,null,null,0]
["4.5 Dotări",null,null,null,null,null,null,null,null,null,null,null,null,null,null,null,null,null,null,null,null,null,null,null,null,null,null,null,null,null,null,null,null,null,null,null,null,null,null,null,null,null,null,null,null,null,null,null,null,null,null,null,0]
["4.6 Active necorporale",null,null,null,null,null,null,null,null,null,null,null,null,null,null,null,null,null,null,null,null,null,null,null,null,null,null,null,null,null,null,null,null,null,null,null,null,null,null,null,null,null,null,null,null,null,null,null,null,null,null,null,0]
["Capitolul 5 Alte cheltuieli - total, din care:",null,null,null,null,null,null,null,null,null,null,null,null,null,null,null,null,null,null,null,null,null,null,null,null,null,null,null,null,null,null,null,null,null,null,{"$f":"AJ299+AJ296","v":0},null,null,null,null,null,null,null,null,{"$f":"AS300+AS299+AS296","v":0},null,null,null,null,null,null,null,0]
["5.1 Organizare de şantier",null,null,null,null,null,null,null,null,null,null,null,null,null,null,null,null,null,null,null,null,null,null,null,null,null,null,null,null,null,null,null,null,null,null,{"$f":"SUM(AJ297:AR298)","v":0},null,null,null,null,null,null,null,null,{"$f":"SUM(AS297:AZ298)","v":0},null,null,null,null,null,null,null,0]
["      5.1.1 lucrări de construcţii şi instalaţii aferente organizării de şantier",null,null,null,null,null,null,null,null,null,null,null,null,null,null,null,null,null,null,null,null,null,null,null,null,null,null,null,null,null,null,null,null,null,null,null,null,null,null,null,null,null,null,null,null,null,null,null,null,null,null,null,0]
["      5.1.2 cheltuieli conexe orgănizării şantierului",null,null,null,null,null,null,null,null,null,null,null,null,null,null,null,null,null,null,null,null,null,null,null,null,null,null,null,null,null,null,null,null,null,null,null,null,null,null,null,null,null,null,null,null,null,null,null,null,null,null,null,0]
["5.2 Comisioane, taxe, costul creditului",null,null,null,null,null,null,null,null,null,null,null,null,null,null,null,null,null,null,null,null,null,null,null,null,null,null,null,null,null,null,null,null,null,null,null,null,null,null,null,null,null,null,null,null,null,null,null,null,null,null,null,0]
["5.3 Cheltuieli diverse şi neprevăzute",null,null,null,null,null,null,null,null,null,null,null,null,null,null,null,null,null,null,null,null,null,null,null,null,null,null,null,null,null,null,null,null,null,null,null,null,null,null,null,null,null,null,null,null,null,null,null,null,null,null,null,0]
["Capitolul 6 Cheltuieli pentru darea în exploatare - total, din care:",null,null,null,null,null,null,null,null,null,null,null,null,null,null,null,null,null,null,null,null,null,null,null,null,null,null,null,null,null,null,null,null,null,null,{"$f":"SUM(AJ302:AR303)","v":0},null,null,null,null,null,null,null,null,{"$f":"SUM(AS302:AZ303)","v":0},null,null,null,null,null,null,null,0]
["6.1 Pregătirea personalului de exploatare",null,null,null,null,null,null,null,null,null,null,null,null,null,null,null,null,null,null,null,null,null,null,null,null,null,null,null,null,null,null,null,null,null,null,null,null,null,null,null,null,null,null,null,null,null,null,null,null,null,null,null,0]
["6.2 Probe tehnologice şi teste",null,null,null,null,null,null,null,null,null,null,null,null,null,null,null,null,null,null,null,null,null,null,null,null,null,null,null,null,null,null,null,null,null,null,null,null,null,null,null,null,null,null,null,null,null,null,null,null,null,null,null,0]
["TOTAL GENERAL",null,null,null,null,null,null,null,null,null,null,null,null,null,null,null,null,null,null,null,null,null,null,null,null,null,null,null,null,null,null,null,null,null,null,{"$f":"AJ274+AJ278+AJ279+AJ287+AJ295+AJ301","v":0},null,null,null,null,null,null,null,null,{"$f":"AS274+AS278+AS279+AS287+AS295+AS301","v":0},null,null,null,null,null,null,null,0]
["Verificare actualizare",null,null,null,null,null,null,null,null,null,null,null,null,null,null,null,null,null,null,null,null,null,null,null,null,null,null,null,null,null,null,null,null,null,null,{"$f":"IF((IF(AJ304=0,0,AJ306*100/AJ304))<=5,\"actualizare mai mică de 5% din valoarea eligibila\",\"actualizare mai mare de 5% din valoarea eligibila\")","v":"actualizare mai mică de 5% din valoarea eligibila"}]
["ACTUALIZARE Cheltuieli Eligibile (max 5%)",null,null,null,null,null,null,null,null,null,null,null,null,null,null,null,null,null,null,null,null,null,null,null,null,null,null,null,null,null,null,null,null,null,null,null,null,null,null,null,null,null,null,null,null,null,null,null,null,null,null,null,{"$f":"SUM(AJ306:AZ306)","v":0}]
["TOTAL GENERAL CU ACTUALIZARE",null,null,null,null,null,null,null,null,null,null,null,null,null,null,null,null,null,null,null,null,null,null,null,null,null,null,null,null,null,null,null,null,null,null,{"$f":"AJ304+AJ306","v":0},null,null,null,null,null,null,null,null,{"$f":"AS304","v":0},null,null,null,null,null,null,null,{"$f":"SUM(AJ307:AZ307)","v":0}]
["Valoare TVA",null,null,null,null,null,null,null,null,null,null,null,null,null,null,null,null,null,null,null,null,null,null,null,null,null,null,null,null,null,null,null,null,null,null,null,null,null,null,null,null,null,null,null,null,null,null,null,null,null,null,null,0]
[null,null,null,null,null,null,null,null,null,null,null,null,null,null,null,null,null,null,null,null,null,null,null,null,null,null,null,null,null,null,null,null,null,null,null,{"$f":"SUM(AJ307:AR308)","v":0},null,null,null,null,null,null,null,null,{"$f":"SUM(AS307:AZ308)","v":0},null,null,null,null,null,null,null,0]
["TOTAL GENERAL inclusiv TVA",null,null,null,null,null,null,null,null,null,null,null,null,null,null,null,null,null,null,null,null,null,null,null,null,null,null,null,null,null,null,null,null,null,null,{"$f":"BA307+BA308","v":0}]
[null,null,null,null,null,null,null,null,null,null,null,null,null,null,null,null,null,null,null,null,null,null,null,null,null,null,null,null,null,null,null,null,null,null,null,"LEI",null,null,null,null,null,null,null,null,"EURO"]
["VALOARE TOTALĂ",null,null,null,null,null,null,null,null,null,null,null,null,null,null,null,null,null,null,null,null,null,null,null,null,null,null,null,null,null,null,null,null,null,null,{"$f":"AS312*AA268","v":0},null,null,null,null,null,null,null,null,{"$f":"AJ310","v":0}]
["VALOARE ELIGIBILĂ",null,null,null,null,null,null,null,null,null,null,null,null,null,null,null,null,null,null,null,null,null,null,null,null,null,null,null,null,null,null,null,null,null,null,{"$f":"AS313*AA268","v":0},null,null,null,null,null,null,null,null,{"$f":"AJ307+AJ308","v":0}]
["VALOARE NEELIGIBILĂ",null,null,null,null,null,null,null,null,null,null,null,null,null,null,null,null,null,null,null,null,null,null,null,null,null,null,null,null,null,null,null,null,null,null,{"$f":"AS314*AA268","v":0},null,null,null,null,null,null,null,null,{"$f":"AS307+AS308","v":0}]
[]
["Plan Financiar",null,null,null,null,null,null,null,null,null,null,null,null,null,null,null,null,null,null,null,null,null,null,null,null,null,null,null,null,null,null,null,null,null,null,"Cheltuieli eligibile EURO",null,null,null,null,null,null,null,null,"Cheltuieli neeligibile EURO",null,null,null,null,null,null,null,"Total"]
["Ajutor public nerambursabil (contribuţie UE şi cofinanţare naţională)",null,null,null,null,null,null,null,null,null,null,null,null,null,null,null,null,null,null,null,null,null,null,null,null,null,null,null,null,null,null,null,null,null,null,null,null,null,null,null,null,null,null,null,null,null,null,null,null,null,null,null,{"$f":"SUM(AJ317:AZ317)","v":0}]
["Cofinantare privata, din care:",null,null,null,null,null,null,null,null,null,null,null,null,null,null,null,null,null,null,null,null,null,null,null,null,null,null,null,null,null,null,null,null,null,null,{"$f":"SUM(AJ319:AR320)","v":0},null,null,null,null,null,null,null,null,{"$f":"SUM(AS319:AZ320)","v":0},null,null,null,null,null,null,null,{"$f":"SUM(AJ318:AZ318)","v":0}]
[null,null,null,null,null,null,null,null,null,null,null,null,null,null,null,"- autofinantare",null,null,null,null,null,null,null,null,null,null,null,null,null,null,null,null,null,null,null,null,null,null,null,null,null,null,null,null,null,null,null,null,null,null,null,null,0]
[null,null,null,null,null,null,null,null,null,null,null,null,null,null,null,"- imprumuturi",null,null,null,null,null,null,null,null,null,null,null,null,null,null,null,null,null,null,null,null,null,null,null,null,null,null,null,null,null,null,null,null,null,null,null,null,0]
["Buget local",null,null,null,null,null,null,null,null,null,null,null,null,null,null,null,null,null,null,null,null,null,null,null,null,null,null,null,null,null,null,null,null,null,null,null,null,null,null,null,null,null,null,null,null,null,null,null,null,null,null,null,0]
["TOTAL PROIECT",null,null,null,null,null,null,null,null,null,null,null,null,null,null,null,null,null,null,null,null,null,null,null,null,null,null,null,null,null,null,null,null,null,null,{"$f":"AJ317+AJ318+AJ321","v":0},null,null,null,null,null,null,null,null,{"$f":"AS318+AS321","v":0},null,null,null,null,null,null,null,0]
["Procent contribuţie publică",null,null,null,null,null,null,null,null,null,null,null,null,null,null,null,null,null,null,null,null,null,null,null,null,null,null,null,null,null,null,null,null,{"$f":"AJ317*100/AJ322","v":{"$error":"#DIV/0!"}},{"$f":"IF(AJ322=0,0,AH323)","v":0},{"$f":"AI323","v":0},null,null,null,null,null,null,null,"%"]
["Avans solicitat"]
["Procent avans solicitat ca procent din ajutorul public nerambursabil",null,null,null,null,null,null,null,null,null,null,null,null,null,null,null,null,null,null,null,null,null,null,null,null,null,null,null,null,null,null,null,null,null,{"$f":"AJ324*100/AJ317","v":{"$error":"#DIV/0!"}},{"$f":"IF(AJ317=0,0,AI325)","v":0},null,null,null,null,null,null,null,null,{"$f":"IF(AJ325<=50,\"Suma avans mai mica de 50% din ajutorul public\",\"Suma avans mai mare de 50% din ajutorul public\")","v":"Suma avans mai mica de 50% din ajutorul public"}]
[null,null,null,null,null,null,null,"MINISTERUL AGRICULTURII ŞI DEZVOLTĂRII RURALE"]
[null,null,null,null,null,null,null,null,null,null,null,null,null,null,null,null,null,null,null,null,null,null,null,null,null,null,null,null,null,null,null,null,null,null,null,null,null,null,null,null,null,null,"Anexa A1\nHG 28/2008"]
[null,null,null,null,null,null,null,"AGENŢIA PENTRU FINANŢAREA INVESTIŢIILOR RURALE"]
[null,null,null,null,null,null,null,null,null,null,null,null,null,null,null,null,null,null,null,null,null,null,null,null,null,null,null,null,null,null,null,null,null,null,null,null,null,null,null,null,null,null,"2017-11-01",null,null,null,null,null,null,null,null,"Nr.1"]
[null,null,null,null,null,null,null,"Deviz financiar- Capitolul 3 - Cheltuieli pentru proiectare şi asistenţa tehnică - EURO"]
[]
[]
["(Titlu deviz)"]
["Nr.crt",null,null,null,"Specificaţie",null,null,null,null,null,null,null,null,null,null,null,null,null,null,null,null,null,null,null,null,null,null,null,null,null,null,null,null,null,null,null,null,null,null,null,null,null,"Valoare eligibilă",null,null,null,null,null,null,null,null,"Valoare\nneeligibilă"]
[1,null,null,null,"Cheltuieli pentru studii de teren (geotehnice, geologice, hidrologice, hidrogeologice, fotogrammetrice, topografice şi de stabilitate a terenului pe care se amplasează obiectivul de investiţie)"]
[2,null,null,null,"Cheltuieli pentru obţinere de avize, acorduri şi autorizaţii - total, din care:",null,null,null,null,null,null,null,null,null,null,null,null,null,null,null,null,null,null,null,null,null,null,null,null,null,null,null,null,null,null,null,null,null,null,null,null,null,{"$f":"SUM(AQ337:AY346)","v":0},null,null,null,null,null,null,null,null,{"$f":"SUM(AZ337:BI346)","v":0}]
[null,null,null,null,"1. obţinerea/prelungirea valabilităţii ceritificatului de urbanism"]
[null,null,null,null,"2. obţinerea/prelungirea valabilităţii autorizaţiei de construire/desfiinţare, obţinere autorizaţii de scoatere din circuitul agricol"]
[null,null,null,null,"3. obţinerea avizelor şi acordurilor pentru racorduri şi branşamente la reţelele publice de apă, canalizare, gaze, termoficare, energie electrică, telefonie etc."]
[null,null,null,null,"4. obţinere aviz sanitar, sanitar-veterinar şi fitosanitar"]
[null,null,null,null,"5. obţinerea certificatului de nomenclatură stradală şi adresa"]
[null,null,null,null,"6. întocmirea documentaţiei, obţinerea numărului Cadastral provizoriu şi înregistrarea terenului în Cartea Funciară"]
[null,null,null,null,"7. obţinerea avizului PSI"]
[null,null,null,null,"8. obţinerea acordului de mediu"]
[null,null,null,null,"9. căi ferate industriale"]
[null,null,null,null,"10. alte avize, acorduri şi autorizaţii solicitate prin lege"]
[3,null,null,null,"3 Proiectare şi inginerie - total, din care:",null,null,null,null,null,null,null,null,null,null,null,null,null,null,null,null,null,null,null,null,null,null,null,null,null,null,null,null,null,null,null,null,null,null,null,null,null,{"$f":"AQ348+AQ355+AQ356+AQ357","v":0},null,null,null,null,null,null,null,null,{"$f":"AZ348+AZ355+AZ356+AZ357","v":0}]
[null,null,null,null,"1. Cheltuieli pentru elaborarea tuturor fazelor de proiectare - total, din care:",null,null,null,null,null,null,null,null,null,null,null,null,null,null,null,null,null,null,null,null,null,null,null,null,null,null,null,null,null,null,null,null,null,null,null,null,null,{"$f":"SUM(AQ349:AY354)","v":0},null,null,null,null,null,null,null,null,{"$f":"SUM(AZ349:BI354)","v":0}]
[null,null,null,null,null,null,"a. studiu de prefezabilitate"]
[null,null,null,null,null,null,"b. studiu de fezabilitate"]
[null,null,null,null,null,null,"c. proiect tehnic"]
[null,null,null,null,null,null,"d. detalii de execuţie"]
[null,null,null,null,null,null,"e. verificarea tehnică a proiectării"]
[null,null,null,null,null,null,"f. elaborarea certificatului de performanţa energetică a clădirii"]
[null,null,null,null,"2. Documentaţii necesare pentru obţinerea acordurilor, avizelor şi autorizaţiilor aferente obiectivului de investitii"]
[null,null,null,null,"3. Cheltuielile pentru expertiza tehnică efectuată pentru construcţii începute şi neterminate sau care urmează a fi modificate prin proiect (modernizări, consolidări etc.)"]
[null,null,null,null,"4. Cheltuielile pentru efectuarea auditului energetic"]
[4,null,null,null,"Organizarea procedurilor de achiziţie"]
[5,null,null,null,"Cheltuieli pentru consultanţă - total, din care:",null,null,null,null,null,null,null,null,null,null,null,null,null,null,null,null,null,null,null,null,null,null,null,null,null,null,null,null,null,null,null,null,null,null,null,null,null,{"$f":"SUM(AQ360:AY361)","v":0},null,null,null,null,null,null,null,null,{"$f":"SUM(AZ360:BI361)","v":0}]
[null,null,null,null,"1. plata serviciilor de consultanţă la elaborarea memoriului justificativ, studiilor de piaţă, de evaluare, la întocmirea cererii de finanţare"]
[null,null,null,null,"2. plata serviciilor de consultanţă în domeniul managementului investiţiei sau administrarea contractului de execuţie"]
[6,null,null,null,"Cheltuieli pentru asistenţa tehnică - total, din care:",null,null,null,null,null,null,null,null,null,null,null,null,null,null,null,null,null,null,null,null,null,null,null,null,null,null,null,null,null,null,null,null,null,null,null,null,null,{"$f":"SUM(AQ363:AY364)","v":0},null,null,null,null,null,null,null,null,{"$f":"SUM(AZ363:BI364)","v":0}]
[null,null,null,null,"1. asistenţa tehnică din partea proiectantului în cazul când aceasta nu intră în tarifarea proiectării"]
[null,null,null,null,"2. plata diriginţilor de şantier desemnaţi de autoritatea contractantă, autorizaţi conform prevederilor legale pentru verificarea execuţiei lucrărilor de construcţii şi instalaţii"]
[null,null,null,null,"Total valoare fără TVA",null,null,null,null,null,null,null,null,null,null,null,null,null,null,null,null,null,null,null,null,null,null,null,null,null,null,null,null,null,null,null,null,null,null,null,null,null,{"$f":"AQ362+AQ359+AQ347+AQ336+AQ335","v":0},null,null,null,null,null,null,null,null,{"$f":"AZ362+AZ359+AZ358+AZ347+AZ336+AZ335","v":0}]
[null,null,null,null,"Valoare TVA (aferentă cheltuielilor eligibile şi neeligibile)"]
["TOTAL DEVIZ FINANCIAR 1 (inclusiv TVA)",null,null,null,null,null,null,null,null,null,null,null,null,null,null,null,null,null,null,null,null,null,null,null,null,null,null,null,null,null,null,null,null,null,null,null,null,null,null,null,null,null,{"$f":"AQ365+AZ365+AQ366+AZ366","v":0}]
[]
[]
[]
[null,null,null,null,null,null,null,"MINISTERUL AGRICULTURII ŞI DEZVOLTĂRII RURALE"]
[null,null,null,null,null,null,null,null,null,null,null,null,null,null,null,null,null,null,null,null,null,null,null,null,null,null,null,null,null,null,null,null,null,null,null,null,null,null,null,null,null,null,"Anexa A2\nHG 28/2008"]
[null,null,null,null,null,null,null,"AGENŢIA PENTRU FINANŢAREA INVESTIŢIILOR RURALE"]
[null,null,null,null,null,null,null,null,null,null,null,null,null,null,null,null,null,null,null,null,null,null,null,null,null,null,null,null,null,null,null,null,null,null,null,null,null,null,null,null,null,null,"2017-11-01",null,null,null,null,null,null,null,null,"Nr.1"]
[null,null,null,null,null,null,null,"DEVIZ PE OBIECT *"]
[]
[]
["(Descriere obiect de construcţie)"]
["Nr. crt.",null,null,null,"Denumire",null,null,null,null,null,null,null,null,null,null,null,null,null,null,null,null,null,null,null,null,null,null,null,null,null,null,null,null,null,null,null,null,null,null,null,null,null,"Valoarea pe categorii de lucrări, fară TVA - EURO"]
[null,null,null,null,null,null,null,null,null,null,null,null,null,null,null,null,null,null,null,null,null,null,null,null,null,null,null,null,null,null,null,null,null,null,null,null,null,null,null,null,null,null,"Valoare eligibilă",null,null,null,null,null,null,null,null,"Valoare\nneeligibilă"]
["I - LUCRĂRI DE CONSTRUCŢII ŞI INSTALAŢII"]
[1,null,null,null,"Terasamente"]
[2,null,null,null,"Construcţii : rezistenţă (fundaţii, structură de rezistenţă) şi arhitectură (închideri exterioare, compartimentări, finisaje)"]
[3,null,null,null,"Izolaţii"]
[4,null,null,null,"Instalaţii electrice"]
[5,null,null,null,"Instalaţii sanitare"]
[6,null,null,null,"Instalaţii de încălzire, ventilare, climatizare. PSI, radio-tv, intranet"]
[7,null,null,null,"Instalaţii de alimentare cu gaze naturale"]
[8,null,null,null,"Instalaţii de telecomunicaţii"]
[null,null,null,null,"TOTAL I ( fără TVA)",null,null,null,null,null,null,null,null,null,null,null,null,null,null,null,null,null,null,null,null,null,null,null,null,null,null,null,null,null,null,null,null,null,null,null,null,null,{"$f":"SUM(AQ382:AY389)","v":0},null,null,null,null,null,null,null,null,{"$f":"SUM(AZ382:BI389)","v":0}]
["II - MONTAJ"]
[9,null,null,null,"Montaj utilaje şi echipamente tehnologice"]
[null,null,null,null,"TOTAL II ( fără TVA)",null,null,null,null,null,null,null,null,null,null,null,null,null,null,null,null,null,null,null,null,null,null,null,null,null,null,null,null,null,null,null,null,null,null,null,null,null,{"$f":"SUM(AQ392)","v":0},null,null,null,null,null,null,null,null,{"$f":"SUM(AZ392)","v":0}]
["III - PROCURARE"]
[10,null,null,null,"Utilaje şi echipamente tehnologice"]
[11,null,null,null,"Utilaje şi echipamente de transport"]
[12,null,null,null,"Dotări"]
[null,null,null,null,"TOTAL III ( fără TVA)",null,null,null,null,null,null,null,null,null,null,null,null,null,null,null,null,null,null,null,null,null,null,null,null,null,null,null,null,null,null,null,null,null,null,null,null,null,{"$f":"SUM(AQ395:AY397)","v":0},null,null,null,null,null,null,null,null,{"$f":"SUM(AZ395:BI397)","v":0}]
["TOTAL ( TOTAL I + TOTAL II +TOTAL III) fără TVA",null,null,null,null,null,null,null,null,null,null,null,null,null,null,null,null,null,null,null,null,null,null,null,null,null,null,null,null,null,null,null,null,null,null,null,null,null,null,null,null,null,{"$f":"AQ398+AQ393+AQ390","v":0},null,null,null,null,null,null,null,null,{"$f":"AZ398+AZ393+AZ390","v":0}]
["TVA aferent cheltuielilor eligibile şi neeligibile"]
["TOTAL DEVIZ PE OBIECT (inclusiv TVA)",null,null,null,null,null,null,null,null,null,null,null,null,null,null,null,null,null,null,null,null,null,null,null,null,null,null,null,null,null,null,null,null,null,null,null,null,null,null,null,null,null,{"$f":"AQ399+AZ399+AQ400+AZ400","v":0}]
[]
[]
[]
[null,null,null,null,null,null,null,"MINISTERUL AGRICULTURII ŞI DEZVOLTĂRII RURALE"]
[null,null,null,null,null,null,null,null,null,null,null,null,null,null,null,null,null,null,null,null,null,null,null,null,null,null,null,null,null,null,null,null,null,null,null,null,null,null,null,null,null,null,"Anexa A3\nHG 28/2008"]
[null,null,null,null,null,null,null,"AGENŢIA PENTRU FINANŢAREA INVESTIŢIILOR RURALE"]
[null,null,null,null,null,null,null,null,null,null,null,null,null,null,null,null,null,null,null,null,null,null,null,null,null,null,null,null,null,null,null,null,null,null,null,null,null,null,null,null,null,null,"2017-11-01",null,null,null,null,null,null,null,null,"Nr.1"]
[]
[]
[]
["(Titlu deviz)"]
["Deviz capitolul 2- Cheltuieli pentru asigurarea utilităţilor necesare obiectivului - EURO"]
["Nr.crt",null,null,null,"Specificaţie",null,null,null,null,null,null,null,null,null,null,null,null,null,null,null,null,null,null,null,null,null,null,null,null,null,null,null,null,null,null,null,null,null,null,null,null,null,"Valoare eligibilă",null,null,null,null,null,null,null,null,"Valoare\nneeligibilă"]
[1,null,null,null,"Alimentare cu apă"]
[2,null,null,null,"Canalizare"]
[3,null,null,null,"Alimentare cu gaze naturale"]
[4,null,null,null,"Alimentare cu agent termic"]
[5,null,null,null,"Alimentare cu energie electrică"]
[6,null,null,null,"Telecomunicaţii (telefonie, radio-tv,etc)"]
[7,null,null,null,"Alte tipuri de reţele exterioare"]
[8,null,null,null,"Drumuri de acces"]
[9,null,null,null,"Căi ferate industriale"]
[10,null,null,null,"Cheltuieli aferente racordării la reţele de utilităţi"]
[null,null,null,null,"Total valoare fără TVA",null,null,null,null,null,null,null,null,null,null,null,null,null,null,null,null,null,null,null,null,null,null,null,null,null,null,null,null,null,null,null,null,null,null,null,null,null,{"$f":"SUM(AQ415:AY422)","v":0},null,null,null,null,null,null,null,null,{"$f":"SUM(AZ415:BI422)","v":0}]
[null,null,null,null,"Valoare TVA aferentă cheltuielilor eligibile şi neeligibile"]
["TOTAL DEVIZ CAPITOLUL 2 (inclusiv TVA)",null,null,null,null,null,null,null,null,null,null,null,null,null,null,null,null,null,null,null,null,null,null,null,null,null,null,null,null,null,null,null,null,null,null,null,null,null,null,null,null,null,{"$f":"AQ425+AZ425+AQ426+AZ426","v":0}]
[]
[" Deviz capitolul 5 - Alte cheltuieli - EURO"]
["Nr.crt",null,null,null,"Specificaţie",null,null,null,null,null,null,null,null,null,null,null,null,null,null,null,null,null,null,null,null,null,null,null,null,null,null,null,null,null,null,null,null,null,null,null,null,null,"Valoare eligibilă",null,null,null,null,null,null,null,null,"Valoare\nneeligibilă"]
[]
["5.1 ",null,null,null,"Organizare de şantier",null,null,null,null,null,null,null,null,null,null,null,null,null,null,null,null,null,null,null,null,null,null,null,null,null,null,null,null,null,null,null,null,null,null,null,null,null,{"$f":"SUM(AQ433:AY434)","v":0},null,null,null,null,null,null,null,null,{"$f":"SUM(AZ433:BI434)","v":0}]
["5.1.1",null,null,null,"lucrări de construcţii şi instalaţii aferente organizării de şantier"]
["5.1.2",null,null,null,"cheltuieli conexe organizării de şantier"]
["5.2",null,null,null,"Comisioane, taxe",null,null,null,null,null,null,null,null,null,null,null,null,null,null,null,null,null,null,null,null,null,null,null,null,null,null,null,null,null,null,null,null,null,null,null,null,null,{"$f":"SUM(AQ437:AY440)","v":0},null,null,null,null,null,null,null,null,{"$f":"SUM(AZ436:BI442)","v":0}]
[null,null,null,null,"comisionul băncii finanţatoare"]
[null,null,null,null,"cota aferentă Inspectoratului de Stat în Construcţii pentru controlul calităţii lucrărilor de construcţii"]
[null,null,null,null,"cota pentru controlul statului în amenajarea teritoriului, urbanism şi pentru autorizarea lucrărilor de construcţii"]
[null,null,null,null,"prime de asigurare din sarcina autorităţii contractante"]
[null,null,null,null,"alte cheltuieli de aceeaşi natură, stabilite în condiţiile legii"]
[null,null,null,null,"cota aferentă Casei Sociale a Constructorilor"]
["5.3",null,null,null," Cheltuieli diverse si neprevazute"]
[null,null,null,null,"TOTAL DEVIZ CAPITOLUL 5",null,null,null,null,null,null,null,null,null,null,null,null,null,null,null,null,null,null,null,null,null,null,null,null,null,null,null,null,null,null,null,null,null,null,null,null,null,{"$f":"AQ432+AQ435","v":0},null,null,null,null,null,null,null,null,{"$f":"AZ432+AZ435+AZ442","v":0}]
[null,null,null,null,"VALOARE TVA aferentă cheltuielilor eligibile şi neeligibile"]
[null,null,null,null,"TOTAL DEVIZ CAPITOLUL 5 ( inclusiv TVA)",null,null,null,null,null,null,null,null,null,null,null,null,null,null,null,null,null,null,null,null,null,null,null,null,null,null,null,null,null,null,null,null,null,null,null,null,null,{"$f":"AQ443+AZ443+AQ444+AZ444","v":0}]
[]
[]
[]
[null,"Buget Indicativ - HG 907/2016"]
["MINISTERUL AGRICULTURII ŞI DEZVOLTĂRII RURALE"]
["AGENŢIA PENTRU FINANŢAREA INVESTIŢIILOR RURALE"]
[]
[]
[null,"Procentul aferent intensității",null,null,null,null,null,null,null,null,null,null,null,null,null,null,null,null,null,null,"Curs EURO",null,null,null,null,null,null,null,null,null,null,null,null,"Data întocmirii Studiului de Fezabilitate"]
[]
["Măsura",null,null,null,null,null,null,null,null,null,null,null,null,null,null,null,null,null,null,null,null,null,null,null,null,null,null,null,null,null,null,null,null,null,null,"3.1"]
["Denumirea capitolelor de cheltuieli",null,null,null,null,null,null,null,null,null,null,null,null,null,null,null,null,null,null,null,null,null,null,null,null,null,null,null,null,null,null,null,null,null,null,"Cheltuieli eligibile",null,null,null,null,null,null,null,null,"Cheltuieli neeligibile",null,null,null,null,null,null,null,"Total"]
[null,null,null,null,null,null,null,null,null,null,null,null,null,null,null,null,null,null,null,null,null,null,null,null,null,null,null,null,null,null,null,null,null,null,null,"EURO",null,null,null,null,null,null,null,null,"EURO",null,null,null,null,null,null,null,"EURO"]
[1,null,null,null,null,null,null,null,null,null,null,null,null,null,null,null,null,null,null,null,null,null,null,null,null,null,null,null,null,null,null,null,null,null,null,2,null,null,null,null,null,null,null,null,3,null,null,null,null,null,null,null,4]
["Capitolul 1 Cheltuieli pentru obtinerea şi amenajarea terenului - total, din care:",null,null,null,null,null,null,null,null,null,null,null,null,null,null,null,null,null,null,null,null,null,null,null,null,null,null,null,null,null,null,null,null,null,null,{"$f":"SUM(AJ462:AR464)","v":0},null,null,null,null,null,null,null,null,{"$f":"SUM(AS461:AZ464)","v":0},null,null,null,null,null,null,null,{"$f":"SUM(AJ460:AZ460)","v":0}]
["1.1 Obţinerea terenului",null,null,null,null,null,null,null,null,null,null,null,null,null,null,null,null,null,null,null,null,null,null,null,null,null,null,null,null,null,null,null,null,null,null,null,null,null,null,null,null,null,null,null,null,null,null,null,null,null,null,null,{"$f":"SUM(AJ461:AZ461)","v":0}]
["1.2 Amenajarea terenului",null,null,null,null,null,null,null,null,null,null,null,null,null,null,null,null,null,null,null,null,null,null,null,null,null,null,null,null,null,null,null,null,null,null,null,null,null,null,null,null,null,null,null,null,null,null,null,null,null,null,null,0]
["1.3 Amenajari pentru protecţia mediului şi aducerea la starea iniţială",null,null,null,null,null,null,null,null,null,null,null,null,null,null,null,null,null,null,null,null,null,null,null,null,null,null,null,null,null,null,null,null,null,null,null,null,null,null,null,null,null,null,null,null,null,null,null,null,null,null,null,0]
["1.4 Cheltuieli pentru relocarea/protecția utilităților",null,null,null,null,null,null,null,null,null,null,null,null,null,null,null,null,null,null,null,null,null,null,null,null,null,null,null,null,null,null,null,null,null,null,null,null,null,null,null,null,null,null,null,null,null,null,null,null,null,null,null,{"$f":"SUM(AJ464:AZ464)","v":0}]
["Capitolul 2 Cheltuieli pentru asigurarea utilităţilor necesare obiectivului de investiții",null,null,null,null,null,null,null,null,null,null,null,null,null,null,null,null,null,null,null,null,null,null,null,null,null,null,null,null,null,null,null,null,null,null,null,null,null,null,null,null,null,null,null,null,null,null,null,null,null,null,null,0]
["Capitolul 3 Cheltuieli pentru proiectare şi asistenţă tehnică - total, din care:",null,null,null,null,null,null,null,null,null,null,null,null,null,null,null,null,null,null,null,null,null,null,null,null,null,null,null,null,null,null,null,null,null,null,{"$f":"AJ467+AJ471+AJ472+AJ473+AJ474+AJ482+AJ485","v":0},null,null,null,null,null,null,null,null,{"$f":"AS467+AS471+AS472+AS473+AS474+AS481+AS482+AS485","v":0},null,null,null,null,null,null,null,0]
["3.1 Studii",null,null,null,null,null,null,null,null,null,null,null,null,null,null,null,null,null,null,null,null,null,null,null,null,null,null,null,null,null,null,null,null,null,null,{"$f":"SUM(AJ468:AJ470)","v":0},null,null,null,null,null,null,null,null,{"$f":"SUM(AS468:AS470)","v":0},null,null,null,null,null,null,null,{"$f":"SUM(AJ467:AZ467)","v":0}]
["      3.1.1. Studii de teren",null,null,null,null,null,null,null,null,null,null,null,null,null,null,null,null,null,null,null,null,null,null,null,null,null,null,null,null,null,null,null,null,null,null,null,null,null,null,null,null,null,null,null,null,null,null,null,null,null,null,null,0]
["      3.1.2. Raport privind impactul asupra mediului",null,null,null,null,null,null,null,null,null,null,null,null,null,null,null,null,null,null,null,null,null,null,null,null,null,null,null,null,null,null,null,null,null,null,null,null,null,null,null,null,null,null,null,null,null,null,null,null,null,null,null,0]
["      3.1.3. Alte studii specifice",null,null,null,null,null,null,null,null,null,null,null,null,null,null,null,null,null,null,null,null,null,null,null,null,null,null,null,null,null,null,null,null,null,null,null,null,null,null,null,null,null,null,null,null,null,null,null,null,null,null,null,{"$f":"SUM(AJ470:AZ470)","v":0}]
["3.2 Documentații-suport și cheltuieli pentru obţinerea de avize, acorduri şi autorizaţii",null,null,null,null,null,null,null,null,null,null,null,null,null,null,null,null,null,null,null,null,null,null,null,null,null,null,null,null,null,null,null,null,null,null,null,null,null,null,null,null,null,null,null,null,null,null,null,null,null,null,null,0]
["3.3 Expertizare tehnică",null,null,null,null,null,null,null,null,null,null,null,null,null,null,null,null,null,null,null,null,null,null,null,null,null,null,null,null,null,null,null,null,null,null,null,null,null,null,null,null,null,null,null,null,null,null,null,null,null,null,null,0]
["3.4 Certificarea performanţei energetice şi auditul energetic al clădirilor",null,null,null,null,null,null,null,null,null,null,null,null,null,null,null,null,null,null,null,null,null,null,null,null,null,null,null,null,null,null,null,null,null,null,null,null,null,null,null,null,null,null,null,null,null,null,null,null,null,null,null,{"$f":"SUM(AJ473:AZ473)","v":0}]
["3.5 Proiectare",null,null,null,null,null,null,null,null,null,null,null,null,null,null,null,null,null,null,null,null,null,null,null,null,null,null,null,null,null,null,null,null,null,null,{"$f":"SUM(AJ475:AR480)","v":0},null,null,null,null,null,null,null,null,{"$f":"SUM(AS475:AZ480)","v":0},null,null,null,null,null,null,null,0]
["      3.5.1. Temă de proiectare",null,null,null,null,null,null,null,null,null,null,null,null,null,null,null,null,null,null,null,null,null,null,null,null,null,null,null,null,null,null,null,null,null,null,null,null,null,null,null,null,null,null,null,null,null,null,null,null,null,null,null,{"$f":"SUM(AJ475:AZ475)","v":0}]
["      3.5.2. Studiu de prefezabilitate",null,null,null,null,null,null,null,null,null,null,null,null,null,null,null,null,null,null,null,null,null,null,null,null,null,null,null,null,null,null,null,null,null,null,null,null,null,null,null,null,null,null,null,null,null,null,null,null,null,null,null,0]
["      3.5.3. Studiu de prefezabilitate/documentație de avizare a lucrărilor de intervenții și deviz general",null,null,null,null,null,null,null,null,null,null,null,null,null,null,null,null,null,null,null,null,null,null,null,null,null,null,null,null,null,null,null,null,null,null,null,null,null,null,null,null,null,null,null,null,null,null,null,null,null,null,null,0]
["      3.5.4. Documentațiile tehnice necesare în vederea obținerii avizelor/ acordurilor/ autorizațiilor",null,null,null,null,null,null,null,null,null,null,null,null,null,null,null,null,null,null,null,null,null,null,null,null,null,null,null,null,null,null,null,null,null,null,null,null,null,null,null,null,null,null,null,null,null,null,null,null,null,null,null,0]
["      3.5.5. Verificarea tehnică de calitate a proiectului tehnic și a detaliilor de execuție",null,null,null,null,null,null,null,null,null,null,null,null,null,null,null,null,null,null,null,null,null,null,null,null,null,null,null,null,null,null,null,null,null,null,null,null,null,null,null,null,null,null,null,null,null,null,null,null,null,null,null,0]
["      3.5.6. Proiect tehnic și detalii de execuție",null,null,null,null,null,null,null,null,null,null,null,null,null,null,null,null,null,null,null,null,null,null,null,null,null,null,null,null,null,null,null,null,null,null,null,null,null,null,null,null,null,null,null,null,null,null,null,null,null,null,null,0]
["3.6 Organizarea procedurilor de achiziţie",null,null,null,null,null,null,null,null,null,null,null,null,null,null,null,null,null,null,null,null,null,null,null,null,null,null,null,null,null,null,null,null,null,null,null,null,null,null,null,null,null,null,null,null,null,null,null,null,null,null,null,0]
["3.7 Consultanță",null,null,null,null,null,null,null,null,null,null,null,null,null,null,null,null,null,null,null,null,null,null,null,null,null,null,null,null,null,null,null,null,null,null,{"$f":"SUM(AJ483:AR484)","v":0},null,null,null,null,null,null,null,null,{"$f":"SUM(AS483:AZ484)","v":0},null,null,null,null,null,null,null,0]
["      3.7.1. Managementul de proiect pentru obiectivul de investiții",null,null,null,null,null,null,null,null,null,null,null,null,null,null,null,null,null,null,null,null,null,null,null,null,null,null,null,null,null,null,null,null,null,null,null,null,null,null,null,null,null,null,null,null,null,null,null,null,null,null,null,0]
["      3.7.2. Auditul financiar",null,null,null,null,null,null,null,null,null,null,null,null,null,null,null,null,null,null,null,null,null,null,null,null,null,null,null,null,null,null,null,null,null,null,null,null,null,null,null,null,null,null,null,null,null,null,null,null,null,null,null,{"$f":"SUM(AJ484:AZ484)","v":0}]
["3.8 Asistență tehnică",null,null,null,null,null,null,null,null,null,null,null,null,null,null,null,null,null,null,null,null,null,null,null,null,null,null,null,null,null,null,null,null,null,null,{"$f":"AJ489+AJ486","v":0},null,null,null,null,null,null,null,null,{"$f":"AS489+AS486","v":0},null,null,null,null,null,null,null,0]
["     3.8.1. Asistență tehnică din partea proiectantului",null,null,null,null,null,null,null,null,null,null,null,null,null,null,null,null,null,null,null,null,null,null,null,null,null,null,null,null,null,null,null,null,null,null,{"$f":"SUM(AJ487:AR488)","v":0},null,null,null,null,null,null,null,null,{"$f":"SUM(AS487:AZ488)","v":0},null,null,null,null,null,null,null,{"$f":"SUM(AJ486:AZ486)","v":0}]
["             3.8.1.1. pe perioada de execuție a lucrărilor",null,null,null,null,null,null,null,null,null,null,null,null,null,null,null,null,null,null,null,null,null,null,null,null,null,null,null,null,null,null,null,null,null,null,null,null,null,null,null,null,null,null,null,null,null,null,null,null,null,null,null,0]
["             3.8.1.2. pentru participarea proiectantului la fazele incluse în programul de control al lucrărilor de execuţie, avizat de către Inspectoratul de Stat în Construcţii",null,null,null,null,null,null,null,null,null,null,null,null,null,null,null,null,null,null,null,null,null,null,null,null,null,null,null,null,null,null,null,null,null,null,null,null,null,null,null,null,null,null,null,null,null,null,null,null,null,null,null,0]
["      3.8.2. Dirigenție de șantier",null,null,null,null,null,null,null,null,null,null,null,null,null,null,null,null,null,null,null,null,null,null,null,null,null,null,null,null,null,null,null,null,null,null,null,null,null,null,null,null,null,null,null,null,null,null,null,null,null,null,null,0]
["Verificare încadrare cheltuieli capitolul 3",null,null,null,null,null,null,null,null,null,null,null,null,null,null,null,null,null,null,null,null,null,null,null,null,null,null,null,null,null,null,null,null,null,null,{"$f":"IF(AJ491=0,IF((IF((AJ460+AJ465+AJ491)=0,0,AJ466*100/(AJ460+AJ465+AJ491)))<=5,\"cheltuieli capitol 3 se incadreaza in limita de 5%\",\"cheltuieli capitol 3 nu se incadreaza in limita de 5%\"),IF((IF((AJ460+AJ465+AJ491)=0,0,AJ466*100/(AJ460+AJ465+AJ491)))<=10,\"cheltuieli capitol 3 se incadreaza in limita de 10%\",\"cheltuieli capitol 3 nu se incadreaza in limita de 10%\"))","v":"cheltuieli capitol 3 se incadreaza in limita de 5%"}]
["Capitolul 4 Cheltuieli pentru investiţia de bază - total, din care:",null,null,null,null,null,null,null,null,null,null,null,null,null,null,null,null,null,null,null,null,null,null,null,null,null,null,null,null,null,null,null,null,null,null,{"$f":"AJ492","v":0},null,null,null,null,null,null,null,null,{"$f":"AS492","v":0},null,null,null,null,null,null,null,{"$f":"SUM(AJ491:AZ491)","v":0}]
["Constructii, din care:",null,null,null,null,null,null,null,null,null,null,null,null,null,null,null,null,null,null,null,null,null,null,null,null,null,null,null,null,null,null,null,null,null,null,{"$f":"SUM(AJ493:AJ498)","v":0},null,null,null,null,null,null,null,null,{"$f":"SUM(AS493:AS498)","v":0},null,null,null,null,null,null,null,0]
["4.1 Construcţii şi instalaţii",null,null,null,null,null,null,null,null,null,null,null,null,null,null,null,null,null,null,null,null,null,null,null,null,null,null,null,null,null,null,null,null,null,null,null,null,null,null,null,null,null,null,null,null,null,null,null,null,null,null,null,0]
["4.2 Montaj utilaj tehnologic",null,null,null,null,null,null,null,null,null,null,null,null,null,null,null,null,null,null,null,null,null,null,null,null,null,null,null,null,null,null,null,null,null,null,null,null,null,null,null,null,null,null,null,null,null,null,null,null,null,null,null,0]
["4.3 Utilaje, echipamente tehnologice şi funcţionale cu montaj (procurare)",null,null,null,null,null,null,null,null,null,null,null,null,null,null,null,null,null,null,null,null,null,null,null,null,null,null,null,null,null,null,null,null,null,null,null,null,null,null,null,null,null,null,null,null,null,null,null,null,null,null,null,0]
["4.4 Utilaje şi echipamente fară montaj, mijloace de transport, alte achiziţii specifice",null,null,null,null,null,null,null,null,null,null,null,null,null,null,null,null,null,null,null,null,null,null,null,null,null,null,null,null,null,null,null,null,null,null,null,null,null,null,null,null,null,null,null,null,null,null,null,null,null,null,null,0]
["4.5 Dotări",null,null,null,null,null,null,null,null,null,null,null,null,null,null,null,null,null,null,null,null,null,null,null,null,null,null,null,null,null,null,null,null,null,null,null,null,null,null,null,null,null,null,null,null,null,null,null,null,null,null,null,0]
["4.6 Active necorporale",null,null,null,null,null,null,null,null,null,null,null,null,null,null,null,null,null,null,null,null,null,null,null,null,null,null,null,null,null,null,null,null,null,null,null,null,null,null,null,null,null,null,null,null,null,null,null,null,null,null,null,0]
["Capitolul 5 Alte cheltuieli - total, din care:",null,null,null,null,null,null,null,null,null,null,null,null,null,null,null,null,null,null,null,null,null,null,null,null,null,null,null,null,null,null,null,null,null,null,{"$f":"AJ503+AJ500","v":0},null,null,null,null,null,null,null,null,{"$f":"AS504+AS503+AS500","v":0},null,null,null,null,null,null,null,0]
["5.1 Organizare de şantier",null,null,null,null,null,null,null,null,null,null,null,null,null,null,null,null,null,null,null,null,null,null,null,null,null,null,null,null,null,null,null,null,null,null,{"$f":"SUM(AJ501:AR502)","v":0},null,null,null,null,null,null,null,null,{"$f":"SUM(AS501:AZ502)","v":0},null,null,null,null,null,null,null,0]
["      5.1.1 lucrări de construcţii şi instalaţii aferente organizării de şantier",null,null,null,null,null,null,null,null,null,null,null,null,null,null,null,null,null,null,null,null,null,null,null,null,null,null,null,null,null,null,null,null,null,null,null,null,null,null,null,null,null,null,null,null,null,null,null,null,null,null,null,0]
["      5.1.2 cheltuieli conexe orgănizării şantierului",null,null,null,null,null,null,null,null,null,null,null,null,null,null,null,null,null,null,null,null,null,null,null,null,null,null,null,null,null,null,null,null,null,null,null,null,null,null,null,null,null,null,null,null,null,null,null,null,null,null,null,0]
["5.2 Comisioane, taxe, costul creditului",null,null,null,null,null,null,null,null,null,null,null,null,null,null,null,null,null,null,null,null,null,null,null,null,null,null,null,null,null,null,null,null,null,null,null,null,null,null,null,null,null,null,null,null,null,null,null,null,null,null,null,0]
["5.3 Cheltuieli diverse şi neprevăzute",null,null,null,null,null,null,null,null,null,null,null,null,null,null,null,null,null,null,null,null,null,null,null,null,null,null,null,null,null,null,null,null,null,null,null,null,null,null,null,null,null,null,null,null,null,null,null,null,null,null,null,0]
["Capitolul 6 Cheltuieli pentru darea în exploatare - total, din care:",null,null,null,null,null,null,null,null,null,null,null,null,null,null,null,null,null,null,null,null,null,null,null,null,null,null,null,null,null,null,null,null,null,null,{"$f":"SUM(AJ506:AR507)","v":0},null,null,null,null,null,null,null,null,{"$f":"SUM(AS506:AZ507)","v":0},null,null,null,null,null,null,null,0]
["6.1 Pregătirea personalului de exploatare",null,null,null,null,null,null,null,null,null,null,null,null,null,null,null,null,null,null,null,null,null,null,null,null,null,null,null,null,null,null,null,null,null,null,null,null,null,null,null,null,null,null,null,null,null,null,null,null,null,null,null,0]
["6.2 Probe tehnologice şi teste",null,null,null,null,null,null,null,null,null,null,null,null,null,null,null,null,null,null,null,null,null,null,null,null,null,null,null,null,null,null,null,null,null,null,null,null,null,null,null,null,null,null,null,null,null,null,null,null,null,null,null,0]
["TOTAL GENERAL",null,null,null,null,null,null,null,null,null,null,null,null,null,null,null,null,null,null,null,null,null,null,null,null,null,null,null,null,null,null,null,null,null,null,{"$f":"AJ460+AJ465+AJ466+AJ491+AJ499+AJ505","v":0},null,null,null,null,null,null,null,null,{"$f":"AS460+AS465+AS466+AS491+AS499+AS505","v":0},null,null,null,null,null,null,null,0]
["Verificare actualizare",null,null,null,null,null,null,null,null,null,null,null,null,null,null,null,null,null,null,null,null,null,null,null,null,null,null,null,null,null,null,null,null,null,null,{"$f":"IF((IF(AJ508=0,0,AJ510*100/AJ508))<=5,\"actualizare mai mică de 5% din valoarea eligibila\",\"actualizare mai mare de 5% din valoarea eligibila\")","v":"actualizare mai mică de 5% din valoarea eligibila"}]
["ACTUALIZARE Cheltuieli Eligibile (max 5%)",null,null,null,null,null,null,null,null,null,null,null,null,null,null,null,null,null,null,null,null,null,null,null,null,null,null,null,null,null,null,null,null,null,null,null,null,null,null,null,null,null,null,null,null,null,null,null,null,null,null,null,{"$f":"SUM(AJ510:AZ510)","v":0}]
["TOTAL GENERAL CU ACTUALIZARE",null,null,null,null,null,null,null,null,null,null,null,null,null,null,null,null,null,null,null,null,null,null,null,null,null,null,null,null,null,null,null,null,null,null,{"$f":"AJ508+AJ510","v":0},null,null,null,null,null,null,null,null,{"$f":"AS508","v":0},null,null,null,null,null,null,null,0]
["Valoare TVA",null,null,null,null,null,null,null,null,null,null,null,null,null,null,null,null,null,null,null,null,null,null,null,null,null,null,null,null,null,null,null,null,null,null,null,null,null,null,null,null,null,null,null,null,null,null,null,null,null,null,null,0]
[null,null,null,null,null,null,null,null,null,null,null,null,null,null,null,null,null,null,null,null,null,null,null,null,null,null,null,null,null,null,null,null,null,null,null,{"$f":"SUM(AJ511:AR512)","v":0},null,null,null,null,null,null,null,null,{"$f":"SUM(AS511:AZ512)","v":0},null,null,null,null,null,null,null,0]
["TOTAL GENERAL inclusiv TVA",null,null,null,null,null,null,null,null,null,null,null,null,null,null,null,null,null,null,null,null,null,null,null,null,null,null,null,null,null,null,null,null,null,null,{"$f":"BA511+BA512","v":0}]
[null,null,null,null,null,null,null,null,null,null,null,null,null,null,null,null,null,null,null,null,null,null,null,null,null,null,null,null,null,null,null,null,null,null,null,"LEI",null,null,null,null,null,null,null,null,"EURO"]
["VALOARE TOTALĂ",null,null,null,null,null,null,null,null,null,null,null,null,null,null,null,null,null,null,null,null,null,null,null,null,null,null,null,null,null,null,null,null,null,null,{"$f":"AS516*AA454","v":0},null,null,null,null,null,null,null,null,{"$f":"AJ514","v":0}]
["VALOARE ELIGIBILĂ",null,null,null,null,null,null,null,null,null,null,null,null,null,null,null,null,null,null,null,null,null,null,null,null,null,null,null,null,null,null,null,null,null,null,{"$f":"AS517*AA454","v":0},null,null,null,null,null,null,null,null,{"$f":"AJ511+AJ512","v":0}]
["VALOARE NEELIGIBILĂ",null,null,null,null,null,null,null,null,null,null,null,null,null,null,null,null,null,null,null,null,null,null,null,null,null,null,null,null,null,null,null,null,null,null,{"$f":"AS518*AA454","v":0},null,null,null,null,null,null,null,null,{"$f":"AS511+AS512","v":0}]
[]
["Plan Financiar",null,null,null,null,null,null,null,null,null,null,null,null,null,null,null,null,null,null,null,null,null,null,null,null,null,null,null,null,null,null,null,null,null,null,"Cheltuieli eligibile EURO",null,null,null,null,null,null,null,null,"Cheltuieli neeligibile EURO",null,null,null,null,null,null,null,"Total"]
["Ajutor public nerambursabil (contribuţie UE şi cofinanţare naţională)",null,null,null,null,null,null,null,null,null,null,null,null,null,null,null,null,null,null,null,null,null,null,null,null,null,null,null,null,null,null,null,null,null,null,null,null,null,null,null,null,null,null,null,null,null,null,null,null,null,null,null,{"$f":"SUM(AJ521:AZ521)","v":0}]
["Cofinantare privata, din care:",null,null,null,null,null,null,null,null,null,null,null,null,null,null,null,null,null,null,null,null,null,null,null,null,null,null,null,null,null,null,null,null,null,null,{"$f":"SUM(AJ523:AR524)","v":0},null,null,null,null,null,null,null,null,{"$f":"SUM(AS523:AZ524)","v":0},null,null,null,null,null,null,null,0]
[null,null,null,null,null,null,null,null,null,null,null,null,null,null,null,"- autofinantare",null,null,null,null,null,null,null,null,null,null,null,null,null,null,null,null,null,null,null,null,null,null,null,null,null,null,null,null,null,null,null,null,null,null,null,null,0]
[null,null,null,null,null,null,null,null,null,null,null,null,null,null,null,"- imprumuturi",null,null,null,null,null,null,null,null,null,null,null,null,null,null,null,null,null,null,null,null,null,null,null,null,null,null,null,null,null,null,null,null,null,null,null,null,0]
["Buget local",null,null,null,null,null,null,null,null,null,null,null,null,null,null,null,null,null,null,null,null,null,null,null,null,null,null,null,null,null,null,null,null,null,null,null,null,null,null,null,null,null,null,null,null,null,null,null,null,null,null,null,0]
["TOTAL PROIECT",null,null,null,null,null,null,null,null,null,null,null,null,null,null,null,null,null,null,null,null,null,null,null,null,null,null,null,null,null,null,null,null,null,null,{"$f":"AJ521+AJ522+AJ525","v":0},null,null,null,null,null,null,null,null,{"$f":"AS522+AS525","v":0},null,null,null,null,null,null,null,0]
["Procent contribuţie publică",null,null,null,null,null,null,null,null,null,null,null,null,null,null,null,null,null,null,null,null,null,null,null,null,null,null,null,null,null,null,null,null,null,null,{"$f":"IF(AJ526=0,0,AJ521*100/AJ526)","v":0},null,null,null,null,null,null,null,"%"]
["Avans solicitat"]
["Procent avans solicitat ca procent din ajutorul public nerambursabil",null,null,null,null,null,null,null,null,null,null,null,null,null,null,null,null,null,null,null,null,null,null,null,null,null,null,null,null,null,null,null,null,null,null,{"$f":"IF(AJ521=0,0,AJ528*100/AJ521)","v":0},null,null,null,null,null,null,null,null,{"$f":"IF(AJ529<=50,\"Suma avans mai mica de 50% din ajutorul public\",\"Suma avans mai mare de 50% din ajutorul public\")","v":"Suma avans mai mica de 50% din ajutorul public"}]
[null,null,null,null,null,null,null,"MINISTERUL AGRICULTURII ŞI DEZVOLTĂRII RURALE"]
[null,null,null,null,null,null,null,null,null,null,null,null,null,null,null,null,null,null,null,null,null,null,null,null,null,null,null,null,null,null,null,null,null,null,null,null,null,null,null,null,null,null,"Anexa A1\nHG 907/2016"]
[null,null,null,null,null,null,null,"AGENŢIA PENTRU FINANŢAREA INVESTIŢIILOR RURALE"]
[null,null,null,null,null,null,null,null,null,null,null,null,null,null,null,null,null,null,null,null,null,null,null,null,null,null,null,null,null,null,null,null,null,null,null,null,null,null,null,null,null,null,"2017-11-01",null,null,null,null,null,null,null,null,"Nr.1"]
[null,null,null,null,null,null,null,"Deviz financiar- Capitolul 3 - Cheltuieli pentru proiectare şi asistenţa tehnică - EURO"]
[]
[]
["(Titlu deviz)"]
["Nr.crt",null,null,null,"Specificaţie",null,null,null,null,null,null,null,null,null,null,null,null,null,null,null,null,null,null,null,null,null,null,null,null,null,null,null,null,null,null,null,null,null,null,null,null,null,"Valoare eligibilă",null,null,null,null,null,null,null,null,"Valoare\nneeligibilă"]
["3.1",null,null,null,"Cheltuieli pentru studii - total din care:",null,null,null,null,null,null,null,null,null,null,null,null,null,null,null,null,null,null,null,null,null,null,null,null,null,null,null,null,null,null,null,null,null,null,null,null,null,{"$f":"SUM(AQ540:AY542)","v":0},null,null,null,null,null,null,null,null,{"$f":"SUM(AZ540:BI542)","v":0}]
[null,null,null,null,"3.1.1 Studii de teren: geotehnice, geologice, hidrologice, hidrogeotehnice, fotogrammetrice, topografice şi de stabilitate ale terenului pe care se amplasează obiectivul de investiţie"]
[null,null,null,null,"3.1.2 Raport privind impactul asupra mediului"]
[null,null,null,null,"3.1.3 Studii de specialitate necesare în funcție de specificul investiției"]
["3.2",null,null,null,"Documentaţii-suport şi cheltuieli pentru obţinerea de avize, acorduri şi autorizaţii",null,null,null,null,null,null,null,null,null,null,null,null,null,null,null,null,null,null,null,null,null,null,null,null,null,null,null,null,null,null,null,null,null,null,null,null,null,{"$f":"SUM(AQ544:AY552)","v":0},null,null,null,null,null,null,null,null,{"$f":"SUM(AZ544:BI552)","v":0}]
[null,null,null,null,"1. obţinerea/prelungirea valabilităţii ceritificatului de urbanism"]
[null,null,null,null,"2. obţinerea/prelungirea valabilităţii autorizaţiei de construire/desfiinţare"]
[null,null,null,null,"3. obţinerea avizelor şi acordurilor pentru racorduri şi branşamente la reţelele publice de alimentare cu apă, canalizare, alimentare cu gaze, alimentare cu agent termic, energie electrică, telefonie"]
[null,null,null,null,"4. obţinerea certificatului de nomenclatură stradală şi adresa"]
[null,null,null,null,"5. întocmirea documentaţiei, obţinerea numărului cadastral provizoriu şi înregistrarea terenului în cartea funciară"]
[null,null,null,null,"6. obținerea actului administrativ al autorității competente pentru protecția mediului"]
[null,null,null,null,"7. obţinerea avizului de protecție civilă"]
[null,null,null,null,"8. avizul de specialitate în cazul obiectivelor de patrimoniu"]
[null,null,null,null,"9. alte avize, acorduri şi autorizaţii"]
["3.3",null,null,null,"Cheltuieli pentru expertizarea tehnică a construcţiilor existente, a structurilor şi/sau, după caz, a proiectelor tehnice, inclusiv întocmirea de către expertul tehnic a raportului de expertiză tehnică"]
["3.4",null,null,null,"Cheltuieli pentru certificarea performanţei energetice şi auditul energetic al\nclădirilor"]
["3.5",null,null,null,"Cheltuieli pentru proiectare",null,null,null,null,null,null,null,null,null,null,null,null,null,null,null,null,null,null,null,null,null,null,null,null,null,null,null,null,null,null,null,null,null,null,null,null,null,{"$f":"SUM(AQ556:AY561)","v":0},null,null,null,null,null,null,null,null,{"$f":"SUM(AZ556:BI561)","v":0}]
[null,null,null,null,"3.5.1 Temă de proiectare"]
[null,null,null,null,"3.5.2 Studiu de prefezabilitate"]
[null,null,null,null,"3.5.3. Studiu de prefezabilitate/documentație de avizare a lucrărilor de intervenții și deviz general"]
[null,null,null,null,"3.5.4. Documentațiile tehnice necesare în vederea obținerii avizelor/ acordurilor/ autorizațiilor"]
[null,null,null,null,"3.5.5. Verificarea tehnică de calitate a proiectului tehnic și a detaliilor de execuție"]
[null,null,null,null,"3.5.6. Proiect tehnic și detalii de execuție"]
["3.6",null,null,null,"Cheltuieli aferente organizării şi derulării procedurilor de achiziţii publice",null,null,null,null,null,null,null,null,null,null,null,null,null,null,null,null,null,null,null,null,null,null,null,null,null,null,null,null,null,null,null,null,null,null,null,null,null,null,null,null,null,null,null,null,null,null,{"$f":"SUM(AZ563:BI566)","v":0}]
[null,null,null,null,"1. Cheltuieli aferente întocmirii documentaţiei de atribuire şi multiplicării acesteia (exclusiv cele cumpărate de ofertanţi)"]
[null,null,null,null,"2. Cheltuieli cu onorariile, transportul, cazarea şi diurna membrilor desemnaţi în comisiile de evaluare"]
[null,null,null,null,"3. Anunţuri de intenţie, de participare şi de atribuire a contractelor, corespondenţă prin poştă, fax, poştă electronică în legătură cu procedurile de achiziţie publică"]
[null,null,null,null,"4. Cheltuieli aferente organizării şi derulării procedurilor de achiziţii publice"]
["3.7",null,null,null,"Cheltuieli pentru consultanţă",null,null,null,null,null,null,null,null,null,null,null,null,null,null,null,null,null,null,null,null,null,null,null,null,null,null,null,null,null,null,null,null,null,null,null,null,null,{"$f":"SUM(AQ568:AY569)","v":0},null,null,null,null,null,null,null,null,{"$f":"SUM(AZ568:BI569)","v":0}]
[null,null,null,null,"3.7.1 Managementul de proiect pentru obiectivul de investiţii"]
[null,null,null,null,"3.7.2 Auditul financiar"]
["3.8",null,null,null,"Cheltuieli pentru asistenţa tehnică",null,null,null,null,null,null,null,null,null,null,null,null,null,null,null,null,null,null,null,null,null,null,null,null,null,null,null,null,null,null,null,null,null,null,null,null,null,{"$f":"AQ571+AQ574","v":0},null,null,null,null,null,null,null,null,{"$f":"AZ571+AZ574","v":0}]
[null,null,null,null,"3.8.1. Asistenţă tehnică din partea proiectantului",null,null,null,null,null,null,null,null,null,null,null,null,null,null,null,null,null,null,null,null,null,null,null,null,null,null,null,null,null,null,null,null,null,null,null,null,null,{"$f":"SUM(AQ572:AY573)","v":0},null,null,null,null,null,null,null,null,{"$f":"SUM(AZ572:BI573)","v":0}]
[null,null,null,null,"1.1. pe perioada de execuţie a lucrărilor"]
[null,null,null,null,"1.2. pentru participarea proiectantului la fazele incluse în programul de control al lucrărilor de execuţie, avizat de către Inspectoratul de Stat în Construcţii"]
[null,null,null,null,"3.8.2 Dirigenţie de şantier, asigurată de personal tehnic de specialitate, autorizat"]
[null,null,null,null,"Total valoare fără TVA",null,null,null,null,null,null,null,null,null,null,null,null,null,null,null,null,null,null,null,null,null,null,null,null,null,null,null,null,null,null,null,null,null,null,null,null,null,{"$f":"AQ539+AQ543+AQ553+AQ554+AQ555+AQ562+AQ567+AQ570","v":0},null,null,null,null,null,null,null,null,{"$f":"AZ539+AZ543+AZ553+AZ554+AZ555+AZ562+AZ567+AZ570","v":0}]
[null,null,null,null,"Valoare TVA (aferentă cheltuielilor eligibile şi neeligibile)"]
["TOTAL DEVIZ FINANCIAR 1 (inclusiv TVA)",null,null,null,null,null,null,null,null,null,null,null,null,null,null,null,null,null,null,null,null,null,null,null,null,null,null,null,null,null,null,null,null,null,null,null,null,null,null,null,null,null,{"$f":"AQ575+AZ575+AQ576+AZ576","v":0}]
[]
[]
[]
[null,null,null,null,null,null,null,"MINISTERUL AGRICULTURII ŞI DEZVOLTĂRII RURALE"]
[null,null,null,null,null,null,null,null,null,null,null,null,null,null,null,null,null,null,null,null,null,null,null,null,null,null,null,null,null,null,null,null,null,null,null,null,null,null,null,null,null,null,"Anexa A2\nHG 907/2016"]
[null,null,null,null,null,null,null,"AGENŢIA PENTRU FINANŢAREA INVESTIŢIILOR RURALE"]
[null,null,null,null,null,null,null,null,null,null,null,null,null,null,null,null,null,null,null,null,null,null,null,null,null,null,null,null,null,null,null,null,null,null,null,null,null,null,null,null,null,null,"2017-11-01",null,null,null,null,null,null,null,null,"Nr.1"]
[null,null,null,null,null,null,null,"DEVIZ PE OBIECT *"]
[]
[]
["(Descriere obiect de construcţie)"]
["Nr. crt.",null,null,null,"Denumire",null,null,null,null,null,null,null,null,null,null,null,null,null,null,null,null,null,null,null,null,null,null,null,null,null,null,null,null,null,null,null,null,null,null,null,null,null,"Valoarea pe categorii de lucrări, fară TVA - EURO"]
["Cap. 4 + Cheltuieli pentru investiţia de bază",null,null,null,null,null,null,null,null,null,null,null,null,null,null,null,null,null,null,null,null,null,null,null,null,null,null,null,null,null,null,null,null,null,null,null,null,null,null,null,null,null,"Valoare eligibilă",null,null,null,null,null,null,null,null,"Valoare\nneeligibilă"]
["I - LUCRĂRI DE CONSTRUCŢII ŞI INSTALAŢII"]
["4.1",null,null,null,"Construcții și instalații"]
[null,null,null,null,"4.1.1 Terasamente, sistematizare pe verticală și amenajări exterioare"]
[null,null,null,null,"4.1.2 Rezistență"]
[null,null,null,null,"4.1.3 Arhitectură"]
[null,null,null,null,"4.1.4 Instalații"]
[null,null,null,null,"TOTAL I ( fără TVA)",null,null,null,null,null,null,null,null,null,null,null,null,null,null,null,null,null,null,null,null,null,null,null,null,null,null,null,null,null,null,null,null,null,null,null,null,null,{"$f":"SUM(AQ593:AY596)","v":0},null,null,null,null,null,null,null,null,{"$f":"SUM(AZ593:BI596)","v":0}]
["II - MONTAJ"]
["4.2",null,null,null,"Montaj utilaje, echipamente tehnologice și funcționale"]
[null,null,null,null,"TOTAL II ( fără TVA)",null,null,null,null,null,null,null,null,null,null,null,null,null,null,null,null,null,null,null,null,null,null,null,null,null,null,null,null,null,null,null,null,null,null,null,null,null,{"$f":"SUM(AQ599)","v":0},null,null,null,null,null,null,null,null,{"$f":"SUM(AZ599)","v":0}]
["III - PROCURARE"]
["4.3",null,null,null,"Utilaje, echipamente tehnologice și funcționale care necesită montaj"]
["4.4",null,null,null,"Utilaje, echipamente tehnologice și funcționale care nu necesită montaj și echipamente de transport"]
["4.5",null,null,null,"Dotări"]
["4.6",null,null,null,"Active necorporale"]
[null,null,null,null,"TOTAL III ( fără TVA)",null,null,null,null,null,null,null,null,null,null,null,null,null,null,null,null,null,null,null,null,null,null,null,null,null,null,null,null,null,null,null,null,null,null,null,null,null,{"$f":"SUM(AQ602:AY605)","v":0},null,null,null,null,null,null,null,null,{"$f":"SUM(AZ602:BI605)","v":0}]
["TOTAL ( TOTAL I + TOTAL II +TOTAL III) fără TVA",null,null,null,null,null,null,null,null,null,null,null,null,null,null,null,null,null,null,null,null,null,null,null,null,null,null,null,null,null,null,null,null,null,null,null,null,null,null,null,null,null,{"$f":"AQ606+AQ600+AQ597","v":0},null,null,null,null,null,null,null,null,{"$f":"AZ606+AZ600+AZ597","v":0}]
["TVA aferent cheltuielilor eligibile şi neeligibile"]
["TOTAL DEVIZ PE OBIECT (inclusiv TVA)",null,null,null,null,null,null,null,null,null,null,null,null,null,null,null,null,null,null,null,null,null,null,null,null,null,null,null,null,null,null,null,null,null,null,null,null,null,null,null,null,null,{"$f":"AQ607+AZ607+AQ608+AZ608","v":0}]
[]
[]
[]
[null,null,null,null,null,null,null,"MINISTERUL AGRICULTURII ŞI DEZVOLTĂRII RURALE"]
[null,null,null,null,null,null,null,null,null,null,null,null,null,null,null,null,null,null,null,null,null,null,null,null,null,null,null,null,null,null,null,null,null,null,null,null,null,null,null,null,null,null,"Anexa A3\nHG 907/2016"]
[null,null,null,null,null,null,null,"AGENŢIA PENTRU FINANŢAREA INVESTIŢIILOR RURALE"]
[null,null,null,null,null,null,null,null,null,null,null,null,null,null,null,null,null,null,null,null,null,null,null,null,null,null,null,null,null,null,null,null,null,null,null,null,null,null,null,null,null,null,"2017-11-01",null,null,null,null,null,null,null,null,"Nr.1"]
[]
[]
[]
["(Titlu deviz)"]
["Deviz capitolul 2- Cheltuieli pentru asigurarea utilităţilor necesare obiectivului - EURO"]
["Nr.crt",null,null,null,"Specificaţie",null,null,null,null,null,null,null,null,null,null,null,null,null,null,null,null,null,null,null,null,null,null,null,null,null,null,null,null,null,null,null,null,null,null,null,null,null,"Valoare eligibilă",null,null,null,null,null,null,null,null,"Valoare\nneeligibilă"]
[1,null,null,null,"Alimentare cu apă"]
[2,null,null,null,"Canalizare"]
[3,null,null,null,"Alimentare cu gaze naturale"]
[4,null,null,null,"Alimentare cu agent termic"]
[5,null,null,null,"Alimentare cu energie electrică"]
[6,null,null,null,"Telecomunicaţii (telefonie, radio-tv,etc)"]
[7,null,null,null,"Drumuri de acces"]
[8,null,null,null,"Căi ferate industriale"]
[9,null,null,null,"Alte utilități"]
[null,null,null,null,"Total valoare fără TVA",null,null,null,null,null,null,null,null,null,null,null,null,null,null,null,null,null,null,null,null,null,null,null,null,null,null,null,null,null,null,null,null,null,null,null,null,null,{"$f":"SUM(AQ623:AY631)","v":0},null,null,null,null,null,null,null,null,{"$f":"SUM(AZ623:BI631)","v":0}]
[null,null,null,null,"Valoare TVA aferentă cheltuielilor eligibile şi neeligibile"]
["TOTAL DEVIZ CAPITOLUL 2 (inclusiv TVA)",null,null,null,null,null,null,null,null,null,null,null,null,null,null,null,null,null,null,null,null,null,null,null,null,null,null,null,null,null,null,null,null,null,null,null,null,null,null,null,null,null,{"$f":"AQ632+AZ632+AQ633+AZ633","v":0}]
[]
[" Deviz capitolul 5 - Alte cheltuieli - EURO"]
["Nr.crt",null,null,null,"Specificaţie",null,null,null,null,null,null,null,null,null,null,null,null,null,null,null,null,null,null,null,null,null,null,null,null,null,null,null,null,null,null,null,null,null,null,null,null,null,"Valoare eligibilă",null,null,null,null,null,null,null,null,"Valoare\nneeligibilă"]
[]
["5.1 ",null,null,null,"Organizare de şantier",null,null,null,null,null,null,null,null,null,null,null,null,null,null,null,null,null,null,null,null,null,null,null,null,null,null,null,null,null,null,null,null,null,null,null,null,null,{"$f":"SUM(AQ640:AY641)","v":0},null,null,null,null,null,null,null,null,{"$f":"SUM(AZ640:BI641)","v":0}]
[null,null,null,null,"5.1.1 Lucrări de construcţii şi instalaţii aferente organizării de şantier"]
[null,null,null,null,"5.1.2 Cheltuieli conexe organizării de şantier"]
["5.2",null,null,null,"Comisioane, cote, taxe, costul creditului",null,null,null,null,null,null,null,null,null,null,null,null,null,null,null,null,null,null,null,null,null,null,null,null,null,null,null,null,null,null,null,null,null,null,null,null,null,{"$f":"SUM(AQ644:AY647)","v":0},null,null,null,null,null,null,null,null,{"$f":"SUM(AZ643:BI647)","v":0}]
[null,null,null,null,"5.2.1. Comisioanele şi dobânzile aferente creditului băncii finanţatoare"]
[null,null,null,null,"5.2.2. Cota aferentă ISC pentru controlul calităţii lucrărilor de construcţii"]
[null,null,null,null,"5.2.3. Cota aferentă ISC pentru controlul statului în amenajarea teritoriului, urbanism şi pentru autorizarea lucrărilor de construcţii"]
[null,null,null,null,"5.2.4. Cota aferentă Casei Sociale a Constructorilor - CSC"]
[null,null,null,null,"5.2.5. Taxe pentru acorduri, avize conforme şi autorizaţia de construire/desfiinţare"]
["5.3",null,null,null," Cheltuieli diverse si neprevazute"]
["5.4",null,null,null," Cheltuieli pentru informare și publicitate"]
[null,null,null,null,"TOTAL DEVIZ CAPITOLUL 5",null,null,null,null,null,null,null,null,null,null,null,null,null,null,null,null,null,null,null,null,null,null,null,null,null,null,null,null,null,null,null,null,null,null,null,null,null,{"$f":"AQ639+AQ642+AQ648","v":0},null,null,null,null,null,null,null,null,{"$f":"AZ639+AZ642+AZ648+AZ649","v":0}]
[null,null,null,null,"VALOARE TVA aferentă cheltuielilor eligibile şi neeligibile"]
[null,null,null,null,"TOTAL DEVIZ CAPITOLUL 5 ( inclusiv TVA)",null,null,null,null,null,null,null,null,null,null,null,null,null,null,null,null,null,null,null,null,null,null,null,null,null,null,null,null,null,null,null,null,null,null,null,null,null,{"$f":"AQ650+AZ650+AQ651+AZ651","v":0}]
[]
[]
[]
["MINISTERUL AGRICULTURII ŞI DEZVOLTĂRII RURALE",null,null,null,null,null,null,null,null,null,null,null,null,null,null,null,null,null,null,null,null,null,null,null,null,null,null,null,null,null,"SECTIUNE SPECIFICA MASURA 3.1"]
["AGENŢIA PENTRU FINANŢAREA INVESTIŢIILOR RURALE"]
[]
["D. ALTE INFORMAȚII :"]
["Programarea proiectului:"]
["Numar luni de implementare"]
[]
["E. LISTA DOCUMENTELOR ANEXATE PROIECTELOR AFERENTE MĂSURII 3.1",null,null,null,null,null,null,null,null,null,null,null,null,null,null,null,null,null,null,null,null,null,null,null,null,null,null,null,null,null,null,null,null,null,null,null,null,null,null,null,null,null,null,null,null,null,null,null,null,null,null,null,null,null,null,"OPIS"]
[null,null,null,null,null,null,null,null,null,null,null,null,null,null,null,null,null,null,null,null,null,null,null,null,null,null,null,null,null,null,null,null,null,null,null,null,null,null,null,null,null,null,null,null,null,null,null,null,null,null,null,null,null,null,null,"documente"]
["A se anexa documentele în ordinea de mai jos:"]
["Lista documente",null,null,null,null,null,null,null,null,null,null,null,null,null,null,null,null,null,null,null,null,null,null,null,null,null,null,null,null,null,"Obligatoriu pentru toate proiectele",null,null,null,null,"Obligatoriu, dacă proiectul impune",null,null,null,null,null,null,"PAGINA de   la - până la",null,null,null,null,null,null,null,"Obligatoriu pentru toate proiectele",null,null,null,null,"Obligatoriu, dacă proiectul impune"]
["ETAPA:",null,null,null,null,null,null,null,null,null,null,null,null,null,null,null,null,null,null,null,null,null,null,null,null,null,null,null,null,null,"DEPUNERE",null,null,null,null,null,null,null,null,null,null,null,null,null,null,null,null,null,null,null,"CONTRACTARE"]
["DOC. 1.a) Studiul de Fezabilitate (atat pentru proiectele care prevad constructii-montaj cat si pentru proiectele fara constructii-montaj) (Anexa 2 din Ghidul solicitantului)."]
["DOC. 1.b) Expertiza tehnică de specialitate asupra construcţiei existente (in cazul proiectelor care prevăd modernizarea/ finalizarea construcţiilor existente/ achiziţii de utilaje cu montaj care schimbă regimul de exploatare a construcţiei existente)"]
["DOC 1.c) Raportul privind stadiul fizic al lucrărilor (în cazul proiectelor care prevăd modernizarea/ finalizarea construcţiilor existente/ achiziţii de utilaje cu montaj care schimbă regimul de exploatare a construcţiei existente). (numai în cazul construcțiilor nefinalizate)"]
["DOC. 2.1 Situaţiile financiare (bilanţ – formularul 10, contul de profit şi pierderi - formularul 20, formularele 30 și 40), precedente anului depunerii proiectului înregistrate la Administraţia Financiară,în care rezultatul operaţional (rezultatul de exploatare din contul de profit și pierdere - formularul 20 ) să fie pozitiv (inclusiv 0). În cazul în care solicitantul este înfiinţat cu cel puţin doi ani financiari înainte de anul depunerii cererii de finanţare se vor depune ultimele două situaţii financiare). Exceptie fac intreprinderile infiintate in anul depunerii cererii de finantare.\nsau"]
["Doc 2.2 Declaraţie privind veniturile realizate din Romania în anul precedent depunerii proiectului, înregistrată la Administraţia Financiară (formularul 200) insotita de Anexele la formular in care rezultatul brut (veniturile sa fie cel puţin egale cu cheltuielile) obtinut in anul precedent depunerii proiectului sa fie pozitiv (inclusiv 0)"]
["DOC. 2.3 Declaraţia privind veniturile din activităţi agricole impuse pe norme de venit (formularul 221), document obligatoriu de prezentat la depunerea cererii de finanţare;\nsau"]
["DOC. 2.4 Declaraţia de inactivitate înregistrată la Administraţia Financiară, în cazul solicitanţilor care nu au desfăşurat activitate anterior depunerii proiectului"]
["DOC. 3. Documente pentru terenurile și/sau clădirile aferente realizarii investiției:"]
["DOC. 3.1 Pentru proiectele care presupun realizarea de lucrări de construcție sau achizitia de utilaje/echipamente cu montaj, se va prezenta înscrisul care să certifice, după caz:\na) Dreptul de proprietate privată\nb) Dreptul de concesiune\nc) Dreptul de superficie;\nActele doveditoare ale dreptului de proprietate privată, reprezentate de înscrisurile constatatoare ale unui act juridic civil, jurisdicțional sau\nadministrativ cu efect constitutiv translativ sau declarativ de proprietate, precum:\n- Actele juridice translative de proprietate, precum contractele de vânzarecumpărare, donație, schimb, etc;\n- Actele juridice declarative de proprietate, precum împărțeala judiciară sau tranzacția;\n- Actele jurisdicționale declarative, precum hotărârile judecătorești cu putere de res-judicata, de partaj, de constatare a uzucapiunii imobiliare, etc.\n- Actele jurisdicționale, precum ordonanțele de adjudecare.\nContract de concesiune care acoperă o perioadă de cel puțin 10 ani începând cu anul depunerii cererii de finanţare, corespunzătoare asigurării sustenabilității investiției şi care oferă dreptul titularului de a executa lucrările\nde construcție prevăzute prin proiect, în copie.\nÎn cazul contractului de concesiune pentru cladiri, acesta va fi însoțit de o adresă emisă de concedent care să specifice dacă pentru clădirea concesionată există solicitări privind retrocedarea. În cazul contractului de concesiune pentru terenuri, acesta va fi însoțit de o adresă emisă de concedent care să specifice:\n- suprafaţa concesionată la zi - dacă pentru suprafaţa concesionată există solicitări privind retrocedarea sau diminuarea şi dacă da, să se menţioneze care este suprafaţa supusă acestui proces;\n- situaţia privind respectarea clauzelor contractuale, dacă este în graficul de realizare a investiţiilor prevăzute în contract, dacă concesionarul şi-a respectat graficul de plată a redevenţei şi alte clauze.\nContract de superficie care acoperă o perioadă de cel puțin 10 ani începând cu anul depunerii cererii de finanţare, corespunzătoare asigurării sustenabilității investiției şi care oferă dreptul titularului de a executa lucrările de construcție prevăzute prin proiect, în copie.\nDocumentele de mai sus vor fi însoțite de:"]
["Documente cadastrale şi documente privind înscrierea imobilelor în evidențele de cadastru și carte funciară (extras de carte funciară pentru informare din care să rezulte inscrierea imobilului în cartea funciară, precum și încheierea de carte funciară emisă de OCPI), în termen de valabilitate la data depunerii (emis cu maxim 30 de zile înaintea depunerii proiectului)."]
["DOC. 3.2 Pentru proiectele care propun doar dotare, achizitie de masini si/sau utilaje fara montaj sau al caror montaj nu necesita lucrari de constructii si/sau lucrari de interventii asupra instalatiilor existente (electricitate, apa, canalizare, gaze, ventilatie, etc.), se vor prezenta înscrisuri valabile pentru o perioadă de cel putin 10 ani începând cu anul depunerii cererii de finanţare care să certifice, după caz:\na) dreptul de proprietate privată,\nb) dreptul de concesiune,\nc) dreptul de superficie,\nd) dreptul de uzufruct;\ne) dreptul de folosinţă cu titlu gratuit;\nf) împrumutul de folosință (comodat)\ng) dreptul de închiriere/locațiune\nDe ex.: contract de cesiune, contract de concesiune, contract de locațiune/închiriere, contract de comodat.\n“Înscrisurile menționate la punctul 3.2 se vor depune respectand una dintre cele 2 conditii (situatii) de mai jos:\nA. vor fi însoțite de:\n-Documente cadastrale şi documente privind înscrierea imobilelor în evidențele de cadastru și carte funciară (extras de carte funciară pentru informare din care să rezulte înscrierea dreptului în cartea funciară, precum și încheierea de carte funciară emisă de OCPI), în termen de valabilitate la data depunerii (emis cu maxim 30 de zile înaintea depunerii proiectului)\nSAU\nB. vor fi încheiate în formă autentică de către un notar public sau emise de o autoritate publică sau dobândite printr-o hotărâre judecătorească."]
["În situaţia în care imobilul pe care se execută investiţia nu este liber de sarcini (ipotecat pentru un credit) se va depune acordul creditorului privind execuţia investiţiei şi graficul de rambursare a creditului."]
["DOC. 4. Extras din Registrul agricol – în copie cu ştampila primăriei şi menţiunea \"Conform cu originalul\" pentru dovedirea calităţii de membru al gospodăriei agricole."]
["DOC. 5. Copia actului de identitate pentru reprezentantul legal de proiect (asociat unic/asociat majoritar/administrator/PFA, titular II, membru IF)."]
["DOC. 6. Documente care atestă forma de organizare a solicitantului."]
["DOC. 6.1 Hotărâre judecătorească definitivă pronunţată pe baza actului de constituire și a statutului propriu în cazul Societăţilor agricole, însoțită de Statutul Societății agricole;"]
["DOC. 6.2 Act constitutiv pentru Societatea cooperativă agricolă."]
["DOC. 7.1 Certificat de cazier judiciar al solicitantului- persoană juridică"]
["DOC. 7.2 Certificat de cazier judiciar al reprezentantului legal-persoană fizică"]
["DOC. 8.1 Certificat de atestare fiscală pentru întreprindere"]
["DOC. 8.2 Certificat de atestare fiscală pentru reprezentantul legal;\nCertificatele vor fi emise de către Direcţia Generală a Finanţelor Publice şi de primăriile de pe raza cărora îşi au sediul social şi punctele de lucru (numai în cazul în care solicitantul este proprietar asupra imobilelor) şi, dacă este cazul, graficul de reeşalonare a datoriilor către bugetul consolidat."]
["DOC. 9. Document emis de AJPM, în conformitate cu Protocolul AFIRANPM-GNM."]
["DOC. 10. Declaraţie privind încadrarea întreprinderii în categoria întreprinderilor mici şi mijlocii (Anexa 6.1din Ghidul solicitantului)"]
["DOC. 11. Declaraţie pe propria răspundere a solicitantului privind respectarea regulii de cumul a ajutoarelor de minimis (Anexa 6.2 din Ghidul solicitantului)"]
["DOC. 12. Documente care dovedesc capacitatea şi sursa de co-finanţare a investiţiei emise de o instituţie financiară în original (extras de cont şi/ sau contract de credit) în termen de maxim 90 de zile de la primirea notificării privind selectarea cererii de finanţare;"]
["DOC. 13. Adresă emisă de instituţia financiară (bancă/trezorerie) cu datele de identificare ale băncii şi ale contului aferent proiectului FEADR (denumirea, adresa băncii, codul IBAN al contului în care se derulează operaţiunile cu AFIR). Nu este obligatorie deschiderea unui cont separat pentru derularea proiectului."]
["DOC. 14. Certificat de urbanism pentru investitia propusă prin proiect/Autorizaţie de construire pentru proiecte care prevăd construcţii, însoţit, dacă este cazul, de actul de transfer a dreptului şi obligaţiilor ce decurg din Certificatul de urbanism şi o copie a adresei de înştiinţare."]
["DOC. 15. Aviz specific privind amplasamentul şi funcţionarea obiectivului eliberat de ANT pentru construcţia/modernizarea sau extinderea structurilor de primire turistice cu funcțiuni de cazare sau restaurante clasificate conform Ordinului 65/2013 si in conformitate cu Ordonanţa de Urgenţă nr. 142 din 28 octombrie 2008, cu modificările şi completările ulterioare."]
["DOC. 16. Certificat de clasificare eliberat de ANT pentru structura de primire turistică cu funcțiuni de cazare sau restaurante clasificate conform Ordinului 65/2013 si in conformitate cu Ordonanţa de Urgenţă nr. 142 din 28 octombrie 2008 (în cazul modernizării/extinderii), cu modificările şi completările ulterioare."]
["DOC. 17. Declaraţie pe propria răspundere a solicitantului cu privire la neîncadrarea în categoria \"firma în dificultate\", semnată de persoana autorizată să reprezinte intreprinderea, conform legii \". Declaraţia va fi dată de toţi solicitanţii cu excepţia PFA-urilor, intreprinderilor individuale, intreprinderilor familiale şi a societăţilor cu mai puţin de 2 ani fiscali."]
["DOC. 18. Declaraţie pe propria răspundere a solicitantului ca nu a beneficiat de servicii de consiliere prin M-02 (Anexa 6.4 din Ghidul solicitantului)"]
["DOC. 19. Declaratie expert contabil din care sa reiasa că solicitantul in anul precedent depunerii cererii de finanare a obtinut venituri din exploatare iar veniturile din activitățile agricole reprezintă cel puțin 50% din total venituri din exploatare ale solicitantului."]
["DOC. 20. Document emis de DSP județeană conform tipurilor de documente mentionate în protocolul de colaborare dintre AFIR și Ministerul Sănătății"]
["DOC. 21. Document emis de DSVSA, conform Protocolului de colaborare dintre AFIR şi ANSVSA publicat pe pagina de internet www.afir.info"]
["DOC. 22. Certificat de cazier fiscal al solicitantului"]
["DOC. 23. Alte documente (după caz)"]
[]
[]
[]
[]
[]
["F. DECLARAŢIE PE PROPRIA RĂSPUNDERE A SOLICITANTULUI"]
["(nebifarea unei căsuțe din partea F a cererii de finanțare, dacă proiectul impune, constituie eroare de fond, situație în care proiectul este declarat neeligibil)"]
["Prin această declaraţie solicitantul"]
[]
["care solicită asistență financiară nerambursabilă prin programul FEADR pentru proiectul intitulat"]
[]
["prin reprezentant legal"]
[]
["cunoscând prevederile legii penale cu privire la falsul în declarații:"]
["1. Declar că proiectul propus asistenței financiare nerambursabile FEADR nu beneficiază de altă finanțare din\nprograme de finanțare nerambursabilă."]
["De asemenea mă angajez ca în cazul în care proiectul va fi selectat pentru finanțare FEADR, nu voi depune acest\nproiect la nici un alt program de finanțare nerambursabilă la care proiectul poate fi în întregime sau parțial eligibil\npentru asistență."]
["2. Declar pe propria răspundere că îndeplinesc condiţiile minime de acordare a sprijinului prevăzute în fişa măsurii şi ghidul solicitantului şi mă angajez să le respect pe perioada de valabilitate a contractului de finanţare şi monitorizare a proiectului, inclusiv criteriile de selecţie pentru care am fost punctat."]
["3. Declar pe propria răspundere că toate informaţiile din prezenta cerere de finanţare şi din documentele anexate sunt corecte şi mă angajez să respect condiţiile cerute în reglementările referitoare la prezentul program şi pe cele legate de Studiul de fezabilitate şi să furnizez periodic, la cerere, documente justificative necesare."]
["4. Declar pe propria răspundere că orice modificări aduse dreptului de proprietate sau de folosinţă vor fi notificate AFIR în termen de trei zile de la data incheierii lor. De asemenea, mă angajez, ca pe perioada de valabilitate a contractului de finanţare şi monitorizare a proiectului să nu diminuez suprafaţa şi/sau infrastructura cuprinsă în proiect."]
["5. Declar că eu și organizația mea (asociație sau intreprindere) nu suntem într-unul din următoarele cazuri:"]
[null,null,null,"Acuzat din cauza unei greșeli privind conduita profesională având ca soluție finală res judicata (împotriva căreia nici un apel nu este posibil)"]
[null,null,null,"Vinovat de grave deficiențe de conduită profesională dovedite prin orice mijloace pe care Agenția le poate justifica."]
[null,null,null,"Vinovat de faptul că nu am prezentat informaţiile cerute de Autoritatea Contractantă ca o condiţie de participare la licitaţie sau contractare"]
[null,null,null,"Încălcarea prevederilor contractuale prin care nu mi-am îndeplinit obligațiile contractuale în legătură cu un alt contract cu Agenția sau alte contracte finanțate din fonduri comunitare."]
[null,null,null,"Încercarea de a obține informații confidențiale sau de influențare a Agenției în timpul procesului de evaluare a proiectului și nu voi face presiuni la adresa evaluatorului."]
["6.",null,null,null,null,"Declar că organizaţia pe care o reprezint ARE datorii către instituţii de credit şi/sau institutii financiare bancare/nebancare pentru care prezint graficul de rambursare."]
["7.",null,null,null,null,"Declar că organizația pe care o reprezint NU are datorii către instituții de credit şi/sau instituții financiare\nnebancare."]
["8.",null,null,null,null,"Declar pe propria răspundere că:"]
[null,null,null,null,null,"Nu sunt înregistrat în scopuri TVA și că mă angajez să notific Agenției orice modificare a situatiei privind înregistrarea ca plătitor de TVA, în maximum 10 (zece) zile de la data înregistrării în scopuri TVA."]
[null,null,null,null,null,"Sunt înregistrat în scopuri de TVA (certificat de înregistrare fiscală în scopuri de TVA)."]
["9.1",null,null,null,null,"Declar pe propria răspundere că nu am înscrieri care privesc sancțiuni economico-financiare în cazierul\njudiciar pe care mă oblig să îl depun la încheierea contractului de finanțare."]
["9.2",null,null,null,null,"Declar pe propria răspundere că reprezentantul legal nu are înscrieri privind sancţiuni economico-financiare în certificatul de cazier judiciar - persoană fizică, pe care mă oblig să-l depun la încheierea contractului de finanțare"]
["10.",null,null,null,null,"Declar pe propria răspundere că nu am fapte înscrise în cazierul fiscal pe care mă oblig să îl depun la încheierea contractului de finanţare."]
["11.",null,null,null,null,"Declar pe propria răspundere că voi deschide punct de lucru în spaţiul rural, cu codul CAEN al activităţii pentru care solicită finanţare, când voi îndeplini condiţiile, conform legislaţiei în vigoare (pentru investiţii noi, dacă este cazul)."]
["12.",null,null,null,null,"Mă angajez că la momentul finalizării agro-pensiunii, aceasta va fi introdusă în circuitul turistic (în cazul proiectelor care prevăd agropensiuni)."]
["13.",null,null,null,null,"Declar pe proprie răspundere că investiţia finanţată va deservi exclusiv interesele economice ale acestuia (beneficiarului proiectului) în scopul obţinerii de profit propriu."]
["14.",null,null,null,null,"Declar pe propria răspundere că nivelul de confort şi calitatea serviciilor propuse prin proiect vor atinge standardul de calitate de minimum o margaretă (în cazul proiectelor care prevăd agropensiuni)."]
["15.",null,null,null,null,"Declaraţie pe propria raspundere că modernizarea structurii de primire turistica va presupune in mod obligatoriu cresterea nivelului de confort cu cel putin o margareta (în cazul proiectelor care prevăd agropensiuni)"]
["16.",null,null,null,null,"Declar pe propria răspundere că toate cheltuielile neeligibile vor fi suportate de solicitant şi că acestea vor fi realizate până la finalizarea proiectului."]
["17.",null,null,null,null,"Declar pe propria răspundere că dosarul cererii de finanţare în original, va fi identic cu dosarul cererii de\nfinanţare depus on-line. În caz contrar, proiectul nu va fi contractat."]
["18.",null,null,null,null,"Ma angajez ca in termenul prevazut in “Notificarea beneficiarului privind selectarea cererii de finanatare si semnarea contractului de finantare” sa prezint documentul privind cofinantarea proiectului si Angajamentul responsabilului legal al proiectului ca nu va utiliza in alte scopuri 50% din cofinantarea privata, in cazul prezentarii cofinantarii prin extras de cont."]
["19.",null,null,null,null,"Declar pe propria răspundere că în cazul în care nu respect oricare din punctele prevăzute în această declaraţie, proiectul să devină neeligibil în baza criteriului \"Eligibilitatea solicitantului\" sau contractul să fie reziliat."]
["20.",null,null,null,null,"Declar pe propria răspundere ca nu sunt în insolventă sau incapacitate de plată."]
["21.",null,null,null,null,"Accept publicarea pe site-ul AFIR a datelor mele, cu respectarea legislaţiei naţionale şi europene privind transparenţa."]
["22.",null,null,null,null,"Sunt de acord ca AFIR să consulte și să prelucreze, prin operațiunile prevăzute de legislația în vigoare în vederea desfășurării activității specifice, datele mele cu caracter personal, furnizate AFIR."]
["Semnătura reprezentant legal şi ştampila",null,null,null,null,null,null,null,null,null,null,null,null,null,null,null,null,null,null,null,null,null,null,null,null,null,null,null,null,null,null,null,null,null,null,null,null,null,null,null,null," Data:"]
[]
[]
[]
["Anexa INDICATORI DE MONITORIZARE"]
["Măsura 6 - Investiţii în crearea şi dezvoltarea de activităţi neagricole\nSubmăsura 6.4 - Sprijin pentru investiţii în crearea şi dezvoltarea de activităţi neagricole"]
[]
["1. Cod RO",null,null,null,null,null,null,null,null,null,null,null,null,null,null,null,null,null,null,null,null,null,null,null,null,null,null,null,null,null,null,null,null,null,null,null,null,null,null,null,null,null,null,null,null,null,null,null,null,null,{"$f":"R132&\"\"","v":""}]
["2. Cod CAEN",null,null,null,null,null,null,null,null,null,null,null,null,null,null,null,null,null,null,null,null,null,null,null,null,null,null,null,null,null,null,null,null,null,null,null,null,null,null,null,null,null,null,null,null,null,null,null,null,null,{"$f":"C130&E130&G130&I130","v":""}]
["3. Tipul beneficiarului",null,null,null,null,null,null,null,null,null,null,null,null,null,null,null,null,"Solicitanți înființați în baza OUG 44/ 2008; OG 124/ 1998; Legea nr.160/ 1998",null,null,null,null,null,null,null,null,null,null,null,"Bărbați",null,null,null,null,null,null,null,null,null,null,null,"<=40"]
[null,null,null,null,null,null,null,null,null,null,null,null,null,null,null,null,null,null,null,null,null,null,null,null,null,null,null,null,null,null,null,null,null,null,null,null,null,null,null,null,null,">40"]
[null,null,null,null,null,null,null,null,null,null,null,null,null,null,null,null,null,null,null,null,null,null,null,null,null,null,null,null,null,"Femei",null,null,null,null,null,null,null,null,null,null,null,"<=40"]
[null,null,null,null,null,null,null,null,null,null,null,null,null,null,null,null,null,null,null,null,null,null,null,null,null,null,null,null,null,null,null,null,null,null,null,null,null,null,null,null,null,">40"]
[null,null,null,null,null,null,null,null,null,null,null,null,null,null,null,null,null,"Persoană juridică"]
["4. Statutul beneficiarului",null,null,null,null,null,null,null,null,null,null,null,null,null,null,null,null,"Fermier"]
[null,null,null,null,null,null,null,null,null,null,null,null,null,null,null,null,null,"Membru al unei gospodării agricole"]
[null,null,null,null,null,null,null,null,null,null,null,null,null,null,null,null,null,"Microintreprindere nou înființată"]
[null,null,null,null,null,null,null,null,null,null,null,null,null,null,null,null,null,"Întreprindere mică nou înființată"]
[null,null,null,null,null,null,null,null,null,null,null,null,null,null,null,null,null,"Microintreprindere existentă"]
[null,null,null,null,null,null,null,null,null,null,null,null,null,null,null,null,null,"Întreprindere mică existentă"]
["5. Tipul de zonă",null,null,null,null,null,null,null,null,null,null,null,null,null,null,null,null,"Zonă normală"]
[null,null,null,null,null,null,null,null,null,null,null,null,null,null,null,null,null,"Zonă montană"]
[null,null,null,null,null,null,null,null,null,null,null,null,null,null,null,null,null,"Zonă cu constrângeri specifice"]
[null,null,null,null,null,null,null,null,null,null,null,null,null,null,null,null,null,"Zonă cu constrângeri semnificative"]
["6. Tipul de investiției",null,null,null,null,null,null,null,null,null,null,null,null,null,null,null,null,"a. investiții pentru producerea și comercializarea produselor nonagricole"]
[null,null,null,null,null,null,null,null,null,null,null,null,null,null,null,null,null,"b. investiții pentru activității meșteșugărești"]
[null,null,null,null,null,null,null,null,null,null,null,null,null,null,null,null,null,"c. investiții legate de furnizarea de servicii"]
[null,null,null,null,null,null,null,null,null,null,null,null,null,null,null,null,null,"d. investitii pentru infrastructura in unitatile de primire turistica de tip agro-turistic, activitati de agrement"]
[null,null,null,null,null,null,null,null,null,null,null,null,null,null,null,null,null,"e. investitii pentru productia de combustibil din biomasa (ex.: fabricare de peleți si brichete) în vederea comercializării"]
["7. Suprafaţa (ha) exploataţiei/exploataţiilor sprijinite\n(se completează numai pentru solicitanţii care deţin exploataţii agricole şi se încadrează în categoria fermierilor sau a membrilor gospodăriilor agricole)"]
["8. Tip ramură agricolă\n(se completează numai pentru solicitanţii care deţin exploataţii agricole şi se încadrează în categoria fermierilor sau a membrilor gospodăriilor agricole)",null,null,null,null,null,null,null,null,null,null,null,null,null,null,null,null,"Culturi de câmp"]
[null,null,null,null,null,null,null,null,null,null,null,null,null,null,null,null,null,"Horticultură"]
[null,null,null,null,null,null,null,null,null,null,null,null,null,null,null,null,null,"Viticultură"]
[null,null,null,null,null,null,null,null,null,null,null,null,null,null,null,null,null,"Culturi permanente (altele decât viticultura)"]
[null,null,null,null,null,null,null,null,null,null,null,null,null,null,null,null,null,"Creștere bovine pentru carne"]
[null,null,null,null,null,null,null,null,null,null,null,null,null,null,null,null,null,"Creștere bovine pentru lapte"]
[null,null,null,null,null,null,null,null,null,null,null,null,null,null,null,null,null,"Creștere ovine și caprine"]
[null,null,null,null,null,null,null,null,null,null,null,null,null,null,null,null,null,"Porcine"]
[null,null,null,null,null,null,null,null,null,null,null,null,null,null,null,null,null,"Păsări de curte"]
[null,null,null,null,null,null,null,null,null,null,null,null,null,null,null,null,null,"Mixte - culturi mixte"]
[null,null,null,null,null,null,null,null,null,null,null,null,null,null,null,null,null,"Mixte - animale mixte"]
[null,null,null,null,null,null,null,null,null,null,null,null,null,null,null,null,null,"Mixte - culturi și animale cu excepția albinelor"]
[null,null,null,null,null,null,null,null,null,null,null,null,null,null,null,null,null,"Albine"]
[null,null,null,null,null,null,null,null,null,null,null,null,null,null,null,null,null,"Altele"]
["9. Număr locuri de muncă",null,null,null,null,null,null,null,null,null,null,null,null,null,null,null,null,"Existente"]
[null,null,null,null,null,null,null,null,null,null,null,null,null,null,null,null,null,"Nou create",null,null,null,null,null,null,null,null,null,null,null,"Bărbați"]
[null,null,null,null,null,null,null,null,null,null,null,null,null,null,null,null,null,null,null,null,null,null,null,null,null,null,null,null,null,"Femei"]
["10. Contribuie la Prioritatea 1",null,null,null,null,null,null,null,null,null,null,null,null,null,null,null,null,"M01 - Transfer de cunoştinţe şi acţiuni de informare"]
[null,null,null,null,null,null,null,null,null,null,null,null,null,null,null,null,null,"M02 - Servicii de consiliere"]
[null,null,null,null,null,null,null,null,null,null,null,null,null,null,null,null,null,"M16 - Cooperare"]
["Indic. nr.1 - reprezintă codul de inregistrare al beneficiarului în Registrul Fermierului la APIA;\nIndic. nr.2 - reprezintă codul CAEN completat de solicitant la prima pozitie din cele maxim 5 coduri CAEN din Cererea de Finantare pentru investiţia/investitiile vizată/vizate prin proiect;\nIndic. nr. 3, 4, 5, 6 - se va bifa doar o singura categorie/ categoria majoritară\nIndic. nr. 7 şi 8 - aceşti indicatori (suprafaţa exploataţiei agricole şi tip ramură agricolă) se vor completa numai pentru solicitanţii care deţin exploataţii agricole şi se încadrează în categoria fermierilor sau a membrilor gospodăriilor agricole. În cazul în care solicitantul nu deţine o suprafaţă, exploataţia vizează doar creşterea animalelor, la indicatorul “Suprafaţa exploataţiei agricole sprijinite” va completa “0”, iar la “Tip ramură agricolă” va bifa ramura agricolă la care se încadrează.\nIndic. nr.9 - se va completa numărul locurilor de muncă existente şi numărul locurilor de muncă nou create prin proiect\nIndic. nr. 10 - se va completa din momentul demararii M01, M02, respectiv M16, cu bifa în dreptul măsurii corespunzătoare,dacă va fi cazul."]
[]
[]
[]
[]
[]
[]
[]
["Anexa INDICATORI DE MONITORIZARE"]
["Măsura3.1 - Dezvoltarea activităților non-agricole în teritoriul GAL"]
[]
["1. Numărul de locuri de muncă create"]
["2. Numărul de proiecte ce au componente inovative sau de protecție a mediului."]
["3. Cheltuielile publice totale nerambursabile pentru măsura M3.4/6B, sunt în cuantum de (valoare EURO)"]
[]
["Factori de risc"]
["I1. Valoarea sprijinului public nerambursabil (EURO)",null,null,null,null,null,null,null,null,null,null,null,null,null,null,null,null,null,null,null,null,null,null,null,null,null,null,null,null,null,null,null,null,null,null,null,null,null,null,null,null,null,null,null,null,null,null,null,null,null,null,"Punctaj obţinut"]
["•",null,"proiecte cu valoarea sprijinului nerambursabil între 100.001 → 200.000 euro",null,null,null,null,null,null,null,null,null,null,null,null,null,null,null,null,null,null,null,null,null,null,null,null,null,null,null,null,null,null,null,null,null,null,null,null,null,null,null,null,null,null,null,null,null,null,null,null,3]
["•",null,"proiecte cu valoarea sprijinului nerambursabil între 50.001 → 100.000 euro",null,null,null,null,null,null,null,null,null,null,null,null,null,null,null,null,null,null,null,null,null,null,null,null,null,null,null,null,null,null,null,null,null,null,null,null,null,null,null,null,null,null,null,null,null,null,null,null,2]
["•",null,"proiecte cu valoarea sprijinului nerambursabil între 5.000 → 50.000 euro",null,null,null,null,null,null,null,null,null,null,null,null,null,null,null,null,null,null,null,null,null,null,null,null,null,null,null,null,null,null,null,null,null,null,null,null,null,null,null,null,null,null,null,null,null,null,null,null,1]
[]
["I2. Complexitatea investitiei"]
["•",null,"Modernizări cu construcţie şi/sau montaj",null,null,null,null,null,null,null,null,null,null,null,null,null,null,null,null,null,null,null,null,null,null,null,null,null,null,null,null,null,null,null,null,null,null,null,null,null,null,null,null,null,null,null,null,null,null,null,null,5]
["•",null,"Modernizări prin achiziţie utilaje",null,null,null,null,null,null,null,null,null,null,null,null,null,null,null,null,null,null,null,null,null,null,null,null,null,null,null,null,null,null,null,null,null,null,null,null,null,null,null,null,null,null,null,null,null,null,null,null,4]
["•",null,"Investiție nouă",null,null,null,null,null,null,null,null,null,null,null,null,null,null,null,null,null,null,null,null,null,null,null,null,null,null,null,null,null,null,null,null,null,null,null,null,null,null,null,null,null,null,null,null,null,null,null,null,3]
[]
["I3. Intensitatea sprijinului"]
[null,null,0.9,null,null,null,null,null,null,null,null,null,null,null,null,null,null,null,null,null,null,null,null,null,null,null,null,null,null,null,null,null,null,null,null,null,null,null,null,null,null,null,null,null,null,null,null,null,null,null,null,5]
[null,null,0.7,null,null,null,null,null,null,null,null,null,null,null,null,null,null,null,null,null,null,null,null,null,null,null,null,null,null,null,null,null,null,null,null,null,null,null,null,null,null,null,null,null,null,null,null,null,null,null,null,4]
[]
["I4. Riscul proiectului privind raportul între cheltuielile suportate de solicitant şi Valoarea ajutorului nerambursabil",null,null,null,null,null,null,null,null,null,null,null,null,null,null,null,null,null,null,null,null,null,null,null,null,null,null,null,null,null,null,null,null,null,null,null,null,null,null,null,null,null,null,null,null,null,null,null,null,null,null,"Punctaj obţinut"]
["•",null,">200%",null,null,null,null,null,null,null,null,null,null,null,null,null,null,null,null,null,null,null,null,null,null,null,null,null,null,null,null,null,null,null,null,null,null,null,null,null,null,null,null,null,null,null,null,null,null,null,null,5]
["•",null,"Între 176 și 200%",null,null,null,null,null,null,null,null,null,null,null,null,null,null,null,null,null,null,null,null,null,null,null,null,null,null,null,null,null,null,null,null,null,null,null,null,null,null,null,null,null,null,null,null,null,null,null,null,4]
["•",null,"Între 151 și 175%",null,null,null,null,null,null,null,null,null,null,null,null,null,null,null,null,null,null,null,null,null,null,null,null,null,null,null,null,null,null,null,null,null,null,null,null,null,null,null,null,null,null,null,null,null,null,null,null,3]
["•",null,"Între 121 și 150%",null,null,null,null,null,null,null,null,null,null,null,null,null,null,null,null,null,null,null,null,null,null,null,null,null,null,null,null,null,null,null,null,null,null,null,null,null,null,null,null,null,null,null,null,null,null,null,null,2]
["•",null,"< 120%",null,null,null,null,null,null,null,null,null,null,null,null,null,null,null,null,null,null,null,null,null,null,null,null,null,null,null,null,null,null,null,null,null,null,null,null,null,null,null,null,null,null,null,null,null,null,null,null,1]
[]
["I5. Capacitatea societăţii de a manageria proiectul, experienţa în derularea afacerilor",null,null,null,null,null,null,null,null,null,null,null,null,null,null,null,null,null,null,null,null,null,null,null,null,null,null,null,null,null,null,null,null,null,null,null,null,null,null,null,null,null,null,null,null,null,null,null,null,null,null,"Punctaj obţinut"]
["•",null,"Firmă nouă sau fără activitate",null,null,null,null,null,null,null,null,null,null,null,null,null,null,null,null,null,null,null,null,null,null,null,null,null,null,null,null,null,null,null,null,null,null,null,null,null,null,null,null,null,null,null,null,null,null,null,null,5]
["•",null,"Firmă cu experienţă dar care nu a participat la alt proiect comunitar sau nu a obţinut asistenţă financiară nerambursabilă din partea altui instrument financiar",null,null,null,null,null,null,null,null,null,null,null,null,null,null,null,null,null,null,null,null,null,null,null,null,null,null,null,null,null,null,null,null,null,null,null,null,null,null,null,null,null,null,null,null,null,null,null,null,4]
["•",null,"Firmă cu experienţă care a finalizat un proiect comunitar sau a obţinut din asistenţă financiară nerambursabilă din partea altui instrument financiar",null,null,null,null,null,null,null,null,null,null,null,null,null,null,null,null,null,null,null,null,null,null,null,null,null,null,null,null,null,null,null,null,null,null,null,null,null,null,null,null,null,null,null,null,null,null,null,null,3]
["TOTAL"]
[]
["Pentru selectarea cererilor de finanţare ce vor fi verificate se va determina riscul fiecărui proiect folosind un număr de 5 factori de risc (I1, I2, I3, I4, I5).\nPentru fiecare proiect se va determina punctajul fiecărui factor de risc pe o scară de la 1 la 5."]
[]
[]
["Grilă criterii de selecție sub-măsura 3.1 ”Dezvoltarea activităților non-agricole în teritoriul GAL”"]
["Nr. crt.",null,null,null,null,"Principii şi criterii de selecție",null,null,null,null,null,null,null,null,null,null,null,null,null,null,null,null,null,null,null,null,null,null,null,null,null,null,null,null,null,null,null,null,null,null,null,null,null,null,null,null,null,null,null,null,"Punctaj"]
[1,null,null,null,null,"Principiul prioritizării tipului de investiții în funcție de necesitățile locale"]
[null,null,null,null,null,"1.1. Proiectul oferă soluții pentru necesitățile identificate la nivel local:  îmbunătățirea infrastructurii fizice de bază pentru populația din teritoriul Grupului de Acțiune Locală VALEA CLĂNIȚEI; îmbunătățirea accesului la serviciile publice de bază pentru populația din teritoriul Grupului de Acțiune Locală VALEA CLĂNIȚEI; Creșterea numărului de locuitori din teritoriul GAL care beneficiază de servicii îmbunătățite; Îmbunătățirea condițiilor de viață a populației din teritoriu prin asigurarea accesului la serviciile de bază și protejarea moștenirii culturale și naturale în teritoriul GAL; Păstrarea și perpetuarea identității culturale; Reducerea disparităților dintre zonele rurale din cadrul teritoriului și zonele urbane învecinate; Susținerea dezvoltării economice a teritoriului prin îmbunătățirea infrastructurii de bază; Reducerea migrației populației în afara teritoriului."]
[2,null,null,null,null,"Principiul gradului de acoperire a populației deservite"]
[null,null,null,null,null,"2.1. 1.000 – 1.999 locuitori"]
[null,null,null,null,null,"2.2. 2.000– 2.999 locuitori:"]
[null,null,null,null,null,"2.3. Peste 3.000 locuitori:"]
[3,null,null,null,null,"Principiul creșterii gradului de cooperare în teritoriu prin proiecte realizate în parteneriat"]
[null,null,null,null,null,"3.1. Criteriul va fi punctat dacă solicitantul prezintă un acord de parteneriat privind proiectul propus încheiat cu cel puțin un partener (entitate constituită juridic) și vizează obiective comune precizate în acord."]
[4,null,null,null,null,"Principiul stimulării dezvoltării durabile prin măsuri de îmbunătățire a calității mediului înconjurător și de creștere a eficienței energetice"]
[null,null,null,null,null,"4.1.Criteriul va fi punctat dacă în Cererea de Finanțare, Studiul de fezabilitate / Documentaţia de Avizare pentru Lucrări de Intervenţii / Memoriul justificativ, solicitantul a justificat contribuția proiectului la dezvoltarea durabilă a teritoriului GAL și a prevăzut cel puțin o investiție/acțiune/măsură care are ca impact îmbunătățirea calității mediului înconjurător și creșterea eficienței energetice."]
["TOTAL",null,null,null,null,null,null,null,null,null,null,null,null,null,null,null,null,null,null,null,null,null,null,null,null,null,null,null,null,null,null,null,null,null,null,null,null,null,null,null,null,null,null,null,null,null,null,null,null,null,{"$f":"AY856+AY854+AY852+AY851+AY850+AY848","v":0}]
["Codul unic de inregistrare APIA"]
["In cazul in care nu aveti un cod unic de inregistrare APIA, completati acest formular."]
[]
["FORMULAR"]
[]
["Programului naţional de dezvoltare rurală 2014 - 2020"]
[]
["Denumire solicitant:"]
[]
["Categorie Solicitant:"]
[]
["Sediul / Adresa"]
[]
["Ţara",null,null,null,null,"România",null,null,null,null,null,null,null,null,"Judeţul",null,null,null,null,null,null,null,null,null,null,null,null,null,null,null,null,null,null,"oraşul"]
[]
["comuna",null,null,null,null,null,null,null,null,null,null,null,null,null,null,null,null,null,null,null,null,"satul",null,null,null,null,null,null,null,null,null,null,null,null,null,null,null,null,null,"strada"]
[]
["nr.",null,null,null,null,null,null,null,"bl.",null,null,null,null,null,"et.",null,null,null,null,"ap.",null,null,null,null,null,"sectorul",null,null,null,null,null,null,null,null,null,null,null,null,"codul poştal"]
[]
["Număr de telefon",null,null,null,null,null,null,null,null,null,null,null,null,null,null,null,null,null,null,null,null,null,null,"Fax",null,null,null,null,null,null,null,null,null,null,null,null,null,null,"E-mail"]
[]
["Număr de înregistrare în registrul comerțului/Registrul asociațiilor și fundațiilor"]
[]
["CUI / CIF"]
[]
["Cod CAEN pentru activitatea principală"]
[]
["Cod CAEN pentru activitatea secundară pentru care se solicită înregistrarea în Registrul unic de identificare"]
[]
["Cod IBAN"]
[]
["deschis la Banca"]
[]
["Sucursala / Agenție"]
[]
["Prin reprezentant legal, doamna/domnul"]
[]
["cu CNP",null,null,null,null,null,null,null,null,null,null,null,null,null,null,"solicit înscrierea în Registrul unic de identificare - Agenţia de Plăţi şi Intervenţie pentru Agricultură."]
[]
["Am luat la cunoştinţă că orice modificare a informaţiilor de mai sus trebuie furnizată către APIA în termen de maximum 10 zile\nlucrătoare de la producerea acestora.\nDeclar pe propria răspundere că cele de mai sus sunt conforme cu realitatea.\nSunt de acord ca datele din cerere să fie introduse în baza de date a Sistemului Integrat de Administrare şi Control, procesate şi\nverificate în vederea înscrierii în Registrul unic de identificare şi transmise autorităţilor responsabile în vederea elaborării de studii\nstatistice şi de evaluări economice, în condiţiile Legii nr. 677-2001 pentru protecţia persoanelor cu privire la prelucrarea datelor cu\ncaracter personal şi libera circulaţie a acestor date, cu modificarile şi completările ulterioare."]
[]
["Reprezentant legal",null,null,null,null,null,null,null,null,null,null,null,null,null,null,null,null,null,null,null,null,null,null,null,null,null,null,null,null,null,null,null,null,null,null,null,null,null,null,null,null,null,null,"Data:"]
[]
["Numele şi prenumele"]
[]
["Semnătura "]

{"sheet":"Anexa 1","index":1,"n_rows":181,"n_cols":52,"rows_kept":181,"cut":false,"hidden":false,"merged":[[178,0,178,3],[178,4,178,41],[178,42,178,50],[178,51,178,60],[179,0,179,3],[179,4,179,41],[179,42,179,50],[179,51,179,60],[180,0,180,41],[180,42,180,60],[175,0,175,3],[175,4,175,41],[175,42,175,50],[175,51,175,60],[176,0,176,3],[176,4,176,41],[176,42,176,50],[176,51,176,60],[177,0,177,3],[177,4,177,41],[177,42,177,50],[177,51,177,60],[172,0,172,3],[172,4,172,41],[172,42,172,50],[172,51,172,60],[173,0,173,3],[173,4,173,41],[173,42,173,50],[173,51,173,60],[174,0,174,3],[174,4,174,41],[174,42,174,50],[174,51,174,60],[169,0,169,3],[169,4,169,41],[169,42,169,50],[169,51,169,60],[170,0,170,3],[170,4,170,41],[170,42,170,50],[170,51,170,60],[171,0,171,3],[171,4,171,41],[171,42,171,50],[171,51,171,60],[129,42,129,50],[129,51,129,60],[130,0,130,3],[130,4,130,41],[131,0,131,3],[131,4,131,41],[131,42,131,50],[131,51,131,60],[130,42,130,50],[130,51,130,60],[166,0,166,3],[166,4,166,41],[166,42,166,50],[166,51,166,60],[167,0,167,3],[167,4,167,41],[167,42,167,50],[167,51,167,60],[168,0,168,3],[168,4,168,41],[168,42,168,50],[168,51,168,60],[163,0,163,3],[163,4,163,41],[163,42,163,50],[163,51,163,60],[164,0,164,3],[164,4,164,41],[164,42,164,50],[164,51,164,60],[165,0,165,3],[165,4,165,41],[165,42,165,50],[165,51,165,60],[160,0,160,3],[160,4,160,41],[160,42,160,50],[160,51,160,60],[161,0,161,3],[161,4,161,41],[161,42,161,50],[161,51,161,60],[162,0,162,3],[162,4,162,41],[162,42,162,50],[162,51,162,60],[157,0,157,3],[157,4,157,41],[157,42,157,50],[157,51,157,60],[158,0,158,3],[158,4,158,41],[158,42,158,50],[158,51,158,60],[159,0,159,3],[159,4,159,41],[159,42,159,50],[159,51,159,60],[154,0,154,3],[154,42,154,50],[154,51,154,60],[155,0,155,3],[155,42,155,50],[155,51,155,60],[156,0,156,3],[156,4,156,41],[156,42,156,50],[156,51,156,60],[154,4,154,41],[155,4,155,41],[151,0,151,3],[151,42,151,50],[151,51,151,60],[152,0,152,3],[152,42,152,50],[152,51,152,60],[153,0,153,3],[153,42,153,50],[153,51,153,60],[151,4,151,41],[152,4,152,41],[153,4,153,41],[148,0,148,3],[148,4,148,41],[148,42,148,50],[148,51,148,60],[149,0,149,3],[149,4,149,41],[149,42,149,50],[149,51,149,60],[150,0,150,3],[150,42,150,50],[150,51,150,60],[150,4,150,41],[145,0,145,3],[145,4,145,41],[145,42,145,50],[145,51,145,60],[146,0,146,3],[146,4,146,41],[146,42,146,50],[146,51,146,60],[147,0,147,3],[147,4,147,41],[147,42,147,50],[147,51,147,60],[142,0,142,3],[142,4,142,41],[142,42,142,50],[142,51,142,60],[143,0,143,3],[143,4,143,41],[143,42,143,50],[143,51,143,60],[144,0,144,3],[144,4,144,41],[144,42,144,50],[144,51,144,60],[141,0,141,3],[141,4,141,41],[141,42,141,50],[141,51,141,60],[139,0,139,60],[140,0,140,60],[136,42,136,50],[136,51,136,60],[136,7,136,41],[137,7,137,60],[138,0,138,60],[132,0,132,41],[132,42,132,60],[133,7,133,41],[134,7,134,41],[134,42,135,60],[135,7,135,41],[125,0,125,3],[125,4,125,41],[125,42,125,50],[125,51,125,60],[126,0,126,3],[126,4,126,41],[126,42,126,50],[126,51,126,60],[127,0,127,3],[127,4,127,41],[127,42,127,50],[127,51,127,60],[128,0,128,3],[128,4,128,41],[128,42,128,50],[128,51,128,60],[129,0,129,3],[129,4,129,41],[122,0,122,3],[122,4,122,41],[122,42,122,50],[122,51,122,60],[123,0,123,3],[123,4,123,41],[123,42,123,50],[123,51,123,60],[124,0,124,3],[124,4,124,41],[124,42,124,50],[124,51,124,60],[119,0,119,3],[119,4,119,41],[119,42,119,50],[119,51,119,60],[120,0,120,3],[120,4,120,41],[120,42,120,50],[120,51,120,60],[121,0,121,3],[121,4,121,41],[121,42,121,50],[121,51,121,60],[116,0,116,3],[116,4,116,41],[116,42,116,50],[116,51,116,60],[117,0,117,3],[117,4,117,41],[117,42,117,50],[117,51,117,60],[118,0,118,3],[118,4,118,41],[118,42,118,50],[118,51,118,60],[113,0,113,3],[113,42,113,50],[113,51,113,60],[114,0,114,3],[114,4,114,41],[114,42,114,50],[114,51,114,60],[115,0,115,3],[115,4,115,41],[115,42,115,50],[115,51,115,60],[113,4,113,41],[110,0,110,3],[110,42,110,50],[110,51,110,60],[111,0,111,3],[111,42,111,50],[111,51,111,60],[112,0,112,3],[112,42,112,50],[112,51,112,60],[110,4,110,41],[111,4,111,41],[112,4,112,41],[107,0,107,3],[107,4,107,41],[107,42,107,50],[107,51,107,60],[108,0,108,3],[108,42,108,50],[108,51,108,60],[109,0,109,3],[109,42,109,50],[109,51,109,60],[108,4,108,41],[109,4,109,41],[104,0,104,3],[104,4,104,41],[104,42,104,50],[104,51,104,60],[105,0,105,3],[105,4,105,41],[105,42,105,50],[105,51,105,60],[106,0,106,3],[106,4,106,41],[106,42,106,50],[106,51,106,60],[101,0,101,3],[101,4,101,41],[101,42,101,50],[101,51,101,60],[102,0,102,3],[102,4,102,41],[102,42,102,50],[102,51,102,60],[103,0,103,3],[103,4,103,41],[103,42,103,50],[103,51,103,60],[98,0,98,3],[98,4,98,41],[98,42,98,50],[98,51,98,60],[99,0,99,3],[99,4,99,41],[99,42,99,50],[99,51,99,60],[100,0,100,3],[100,4,100,41],[100,42,100,50],[100,51,100,60],[95,0,95,3],[95,4,95,41],[95,42,95,50],[95,51,95,60],[96,0,96,3],[96,4,96,41],[96,42,96,50],[96,51,96,60],[97,0,97,3],[97,4,97,41],[97,42,97,50],[97,51,97,60],[91,0,91,60],[92,0,92,60],[93,0,93,3],[93,4,93,41],[93,42,93,50],[93,51,93,60],[94,0,94,3],[94,4,94,41],[94,42,94,50],[94,51,94,60],[85,7,85,41],[86,7,86,41],[86,42,87,60],[87,7,87,41],[88,7,88,41],[88,42,88,50],[88,51,88,60],[89,7,89,60],[90,0,90,60],[51,42,51,50],[51,51,51,60],[52,0,52,3],[52,4,52,41],[52,42,52,50],[52,51,52,60],[3,7,3,41],[3,42,3,50],[3,51,3,60],[4,7,4,60],[5,0,5,60],[6,0,6,60],[9,0,9,3],[9,4,9,41],[9,42,9,50],[9,51,9,60],[12,0,12,3],[12,4,12,41],[12,42,12,50],[12,51,12,60],[13,0,13,3],[13,4,13,41],[13,42,13,50],[13,51,13,60],[0,7,0,41],[1,7,1,41],[1,42,2,60],[2,7,2,41],[7,0,7,60],[8,0,8,3],[8,4,8,41],[8,42,8,50],[8,51,8,60],[10,0,10,3],[10,4,10,41],[10,42,10,50],[10,51,10,60],[11,0,11,3],[11,4,11,41],[11,42,11,50],[11,51,11,60],[16,0,16,3],[16,4,16,41],[16,42,16,50],[16,51,16,60],[17,0,17,3],[17,4,17,41],[17,42,17,50],[17,51,17,60],[14,0,14,3],[14,4,14,41],[14,42,14,50],[14,51,14,60],[15,0,15,3],[15,4,15,41],[15,42,15,50],[15,51,15,60],[20,0,20,3],[20,4,20,41],[20,42,20,50],[20,51,20,60],[21,0,21,3],[21,4,21,41],[21,42,21,50],[21,51,21,60],[18,0,18,3],[18,4,18,41],[18,42,18,50],[18,51,18,60],[19,0,19,3],[19,4,19,41],[19,42,19,50],[19,51,19,60],[24,0,24,3],[24,6,24,41],[24,42,24,50],[24,51,24,60],[25,0,25,3],[25,6,25,41],[25,42,25,50],[25,51,25,60],[22,0,22,3],[22,4,22,41],[22,42,22,50],[22,51,22,60],[23,0,23,3],[23,6,23,41],[23,42,23,50],[23,51,23,60],[28,0,28,3],[28,6,28,41],[28,42,28,50],[28,51,28,60],[29,0,29,3],[29,4,29,41],[29,42,29,50],[29,51,29,60],[26,0,26,3],[26,6,26,41],[26,42,26,50],[26,51,26,60],[27,0,27,3],[27,6,27,41],[27,42,27,50],[27,51,27,60],[32,0,32,3],[32,4,32,41],[32,42,32,50],[32,51,32,60],[33,0,33,3],[33,4,33,41],[33,42,33,50],[33,51,33,60],[30,0,30,3],[30,4,30,41],[30,42,30,50],[30,51,30,60],[31,0,31,3],[31,4,31,41],[31,42,31,50],[31,51,31,60],[36,0,36,3],[36,4,36,41],[36,42,36,50],[36,51,36,60],[37,0,37,3],[37,4,37,41],[37,42,37,50],[37,51,37,60],[34,0,34,3],[34,4,34,41],[34,42,34,50],[34,51,34,60],[35,0,35,3],[35,4,35,41],[35,42,35,50],[35,51,35,60],[46,7,46,41],[40,0,40,3],[40,4,40,41],[40,42,40,50],[40,51,40,60],[41,0,41,41],[41,42,41,60],[38,0,38,3],[38,4,38,41],[38,42,38,50],[38,51,38,60],[39,0,39,3],[39,4,39,41],[39,42,39,50],[39,51,39,60],[58,0,58,3],[58,4,58,41],[58,42,58,50],[58,51,58,60],[59,0,59,3],[59,4,59,41],[59,42,59,50],[59,51,59,60],[56,0,56,3],[56,4,56,41],[56,42,56,50],[56,51,56,60],[57,0,57,3],[57,4,57,41],[57,42,57,50],[57,51,57,60],[62,0,62,3],[62,4,62,41],[62,42,62,50],[62,51,62,60],[63,0,63,3],[63,4,63,41],[63,42,63,50],[63,51,63,60],[60,0,60,3],[60,4,60,41],[60,42,60,50],[60,51,60,60],[61,0,61,3],[61,4,61,41],[61,42,61,50],[61,51,61,60],[67,0,67,3],[67,42,67,50],[67,51,67,60],[69,0,69,3],[69,42,69,50],[69,51,69,60],[69,6,69,41],[64,0,64,3],[64,4,64,41],[64,42,64,50],[64,51,64,60],[66,0,66,3],[66,42,66,50],[66,51,66,60],[65,0,65,3],[72,51,72,60],[73,42,73,50],[73,51,73,60],[73,0,73,3],[73,4,73,41],[70,0,70,3],[70,42,70,50],[70,51,70,60],[71,0,71,3],[71,42,71,50],[71,51,71,60],[70,6,70,41],[71,6,71,41],[53,42,53,50],[53,51,53,60],[54,0,54,3],[54,4,54,41],[55,0,55,3],[55,4,55,41],[43,7,43,41],[44,7,44,41],[44,42,45,60],[46,42,46,50],[46,51,46,60],[47,7,47,60],[48,0,48,60],[54,42,54,50],[54,51,54,60],[55,42,55,50],[55,51,55,60],[50,0,50,60],[53,0,53,3],[53,4,53,41],[49,0,49,60],[51,0,51,3],[51,4,51,41],[45,7,45,41],[75,42,75,50],[75,51,75,60],[76,0,76,3],[76,4,76,41],[76,42,76,50],[76,51,76,60],[65,4,65,41],[65,42,65,50],[65,51,65,60],[66,6,66,41],[67,6,67,41],[68,0,68,3],[68,6,68,41],[68,42,68,50],[68,51,68,60],[74,42,74,50],[74,51,74,60],[74,0,74,3],[74,4,74,41],[75,0,75,3],[75,4,75,41],[72,0,72,3],[72,4,72,41],[72,42,72,50],[79,0,79,3],[79,4,79,41],[79,42,79,50],[79,51,79,60],[80,0,80,3],[80,4,80,41],[80,42,80,50],[80,51,80,60],[77,0,77,3],[77,4,77,41],[77,42,77,50],[77,51,77,60],[78,0,78,3],[78,4,78,41],[78,42,78,50],[78,51,78,60],[83,42,83,50],[83,51,83,60],[84,0,84,41],[84,42,84,60],[81,42,81,50],[81,51,81,60],[82,0,82,3],[82,4,82,41],[82,42,82,50],[82,51,82,60],[83,0,83,3],[83,4,83,41],[81,0,81,3],[81,4,81,41]]}
[null,null,null,null,null,null,null,"MINISTERUL AGRICULTURII ŞI DEZVOLTĂRII RURALE"]
[null,null,null,null,null,null,null,null,null,null,null,null,null,null,null,null,null,null,null,null,null,null,null,null,null,null,null,null,null,null,null,null,null,null,null,null,null,null,null,null,null,null,"Anexa A1\nHG28/2008"]
[null,null,null,null,null,null,null,"AGENŢIA PENTRU FINANŢAREA INVESTIŢIILOR RURALE"]
[null,null,null,null,null,null,null,null,null,null,null,null,null,null,null,null,null,null,null,null,null,null,null,null,null,null,null,null,null,null,null,null,null,null,null,null,null,null,null,null,null,null,null,null,null,null,null,null,null,null,null,"Nr.2"]
[null,null,null,null,null,null,null,"Deviz financiar- Capitolul 3 - Cheltuieli pentru proiectare şi asistenţa tehnică - EURO"]
[]
[]
["(Titlu deviz)"]
["Nr.crt",null,null,null,"Specificaţie",null,null,null,null,null,null,null,null,null,null,null,null,null,null,null,null,null,null,null,null,null,null,null,null,null,null,null,null,null,null,null,null,null,null,null,null,null,"Valoare eligibilă",null,null,null,null,null,null,null,null,"Valoare\nneeligibilă"]
[1,null,null,null,"Cheltuieli pentru studii de teren (geotehnice, geologice, hidrologice, hidrogeologice, fotogrammetrice, topografice şi de stabilitate a terenului pe care se amplasează obiectivul de investiţie)"]
[2,null,null,null,"Cheltuieli pentru obţinere de avize, acorduri şi autorizaţii - total, din care:",null,null,null,null,null,null,null,null,null,null,null,null,null,null,null,null,null,null,null,null,null,null,null,null,null,null,null,null,null,null,null,null,null,null,null,null,null,{"$f":"SUM(AQ12:AY21)","v":0},null,null,null,null,null,null,null,null,{"$f":"SUM(AZ12:BI21)","v":0}]
[null,null,null,null,"1. obţinerea/prelungirea valabilităţii ceritificatului de urbanism"]
[null,null,null,null,"2. obţinerea/prelungirea valabilităţii autorizaţiei de construire/desfiinţare, obţinere autorizaţii de scoatere din circuitul agricol"]
[null,null,null,null,"3. obţinerea avizelor şi acordurilor pentru racorduri şi branşamente la reţelele publice de apă, canalizare, gaze, termoficare, energie electrică, telefonie etc."]
[null,null,null,null,"4. obţinere aviz sanitar, sanitar-veterinar şi fitosanitar"]
[null,null,null,null,"5. obţinerea certificatului de nomenclatură stradală şi adresa"]
[null,null,null,null,"6. întocmirea documentaţiei, obţinerea numărului Cadastral provizoriu şi înregistrarea terenului în Cartea Funciară"]
[null,null,null,null,"7. obţinerea avizului PSI"]
[null,null,null,null,"8. obţinerea acordului de mediu"]
[null,null,null,null,"9. căi ferate"]
[null,null,null,null,"10. alte avize, acorduri şi autorizaţii solicitate prin lege"]
[3,null,null,null,"3 Proiectare şi inginerie - total, din care:",null,null,null,null,null,null,null,null,null,null,null,null,null,null,null,null,null,null,null,null,null,null,null,null,null,null,null,null,null,null,null,null,null,null,null,null,null,{"$f":"AQ23+AQ30+AQ31+AQ32","v":0},null,null,null,null,null,null,null,null,{"$f":"AZ23+AZ30+AZ31+AZ32","v":0}]
[null,null,null,null,"1. Cheltuieli pentru elaborarea tuturor fazelor de proiectare - total, din care:",null,null,null,null,null,null,null,null,null,null,null,null,null,null,null,null,null,null,null,null,null,null,null,null,null,null,null,null,null,null,null,null,null,null,null,null,null,{"$f":"SUM(AQ24:AY29)","v":0},null,null,null,null,null,null,null,null,{"$f":"SUM(AZ24:BI29)","v":0}]
[null,null,null,null,null,null,"a. studiu de prefezabilitate"]
[null,null,null,null,null,null,"b. studiu de fezabilitate"]
[null,null,null,null,null,null,"c. proiect tehnic"]
[null,null,null,null,null,null,"d. detalii de execuţie"]
[null,null,null,null,null,null,"e. verificarea tehnică a proiectării"]
[null,null,null,null,null,null,"f. elaborarea certificatului de performanţa energetică a clădirii"]
[null,null,null,null,"2. Documentaţii necesare pentru obţinerea acordurilor, avizelor şi autorizaţiilor aferente obiectivului de investitii"]
[null,null,null,null,"3. Cheltuielile pentru expertiza tehnică efectuată pentru construcţii începute şi neterminate sau care urmează a fi modificate prin proiect (modernizări, consolidări etc.)"]
[null,null,null,null,"4. Cheltuielile pentru efectuarea auditului energetic"]
[4,null,null,null,"Organizarea procedurilor de achiziţie"]
[5,null,null,null,"Cheltuieli pentru consultanţă - total, din care:",null,null,null,null,null,null,null,null,null,null,null,null,null,null,null,null,null,null,null,null,null,null,null,null,null,null,null,null,null,null,null,null,null,null,null,null,null,{"$f":"SUM(AQ35:AY36)","v":0},null,null,null,null,null,null,null,null,{"$f":"SUM(AZ35:BI36)","v":0}]
[null,null,null,null,"1. plata serviciilor de consultanţă la elaborarea memoriului justificativ, studiilor de piaţă, de evaluare, la întocmirea cererii de finanţare"]
[null,null,null,null,"2. plata serviciilor de consultanţă în domeniul managementului investiţiei sau administrarea contractului de execuţie"]
[6,null,null,null,"Cheltuieli pentru asistenţa tehnică - total, din care:",null,null,null,null,null,null,null,null,null,null,null,null,null,null,null,null,null,null,null,null,null,null,null,null,null,null,null,null,null,null,null,null,null,null,null,null,null,{"$f":"SUM(AQ38:AY39)","v":0},null,null,null,null,null,null,null,null,{"$f":"SUM(AZ38:BI39)","v":0}]
[null,null,null,null,"1. asistenţa tehnică din partea proiectantului în cazul când aceasta nu intră în tarifarea proiectării"]
[null,null,null,null,"2. plata diriginţilor de şantier desemnaţi de autoritatea contractantă, autorizaţi conform prevederilor legale pentru verificarea execuţiei lucrărilor de construcţii şi instalaţii"]
[null,null,null,null,"Total valoare fără TVA",null,null,null,null,null,null,null,null,null,null,null,null,null,null,null,null,null,null,null,null,null,null,null,null,null,null,null,null,null,null,null,null,null,null,null,null,null,{"$f":"AQ37+AQ34+AQ22+AQ11+AQ10","v":0},null,null,null,null,null,null,null,null,{"$f":"AZ37+AZ34+AZ33+AZ22+AZ11+AZ10","v":0}]
[null,null,null,null,"Valoare TVA (aferentă cheltuielilor eligibile şi neeligibile)"]
["TOTAL DEVIZ FINANCIAR 1 (inclusiv TVA)",null,null,null,null,null,null,null,null,null,null,null,null,null,null,null,null,null,null,null,null,null,null,null,null,null,null,null,null,null,null,null,null,null,null,null,null,null,null,null,null,null,{"$f":"AQ40+AZ40+AQ41+AZ41","v":0}]
[]
[null,null,null,null,null,null,null,"MINISTERUL AGRICULTURII ŞI DEZVOLTĂRII RURALE"]
[null,null,null,null,null,null,null,null,null,null,null,null,null,null,null,null,null,null,null,null,null,null,null,null,null,null,null,null,null,null,null,null,null,null,null,null,null,null,null,null,null,null,"Anexa A1\nHG28/2008"]
[null,null,null,null,null,null,null,"AGENŢIA PENTRU FINANŢAREA INVESTIŢIILOR RURALE"]
[null,null,null,null,null,null,null,null,null,null,null,null,null,null,null,null,null,null,null,null,null,null,null,null,null,null,null,null,null,null,null,null,null,null,null,null,null,null,null,null,null,null,null,null,null,null,null,null,null,null,null,"Nr.3"]
[null,null,null,null,null,null,null,"Deviz financiar- Capitolul 3 - Cheltuieli pentru proiectare şi asistenţa tehnică - EURO"]
[]
[]
["(Titlu deviz)"]
["Nr.crt",null,null,null,"Specificaţie",null,null,null,null,null,null,null,null,null,null,null,null,null,null,null,null,null,null,null,null,null,null,null,null,null,null,null,null,null,null,null,null,null,null,null,null,null,"Valoare eligibilă",null,null,null,null,null,null,null,null,"Valoare\nneeligibilă"]
[1,null,null,null,"Cheltuieli pentru studii de teren (geotehnice, geologice, hidrologice, hidrogeologice, fotogrammetrice, topografice şi de stabilitate a terenului pe care se amplasează obiectivul de investiţie)"]
[2,null,null,null,"Cheltuieli pentru obţinere de avize, acorduri şi autorizaţii - total, din care:",null,null,null,null,null,null,null,null,null,null,null,null,null,null,null,null,null,null,null,null,null,null,null,null,null,null,null,null,null,null,null,null,null,null,null,null,null,{"$f":"SUM(AQ55:AY64)","v":0},null,null,null,null,null,null,null,null,{"$f":"SUM(AZ55:BI64)","v":0}]
[null,null,null,null,"1. obţinerea/prelungirea valabilităţii ceritificatului de urbanism"]
[null,null,null,null,"2. obţinerea/prelungirea valabilităţii autorizaţiei de construire/desfiinţare, obţinere autorizaţii de scoatere din circuitul agricol"]
[null,null,null,null,"3. obţinerea avizelor şi acordurilor pentru racorduri şi branşamente la reţelele publice de apă, canalizare, gaze, termoficare, energie electrică, telefonie etc."]
[null,null,null,null,"4. obţinere aviz sanitar, sanitar-veterinar şi fitosanitar"]
[null,null,null,null,"5. obţinerea certificatului de nomenclatură stradală şi adresa"]
[null,null,null,null,"6. întocmirea documentaţiei, obţinerea numărului Cadastral provizoriu şi înregistrarea terenului în Cartea Funciară"]
[null,null,null,null,"7. obţinerea avizului PSI"]
[null,null,null,null,"8. obţinerea acordului de mediu"]
[null,null,null,null,"9. căi ferate"]
[null,null,null,null,"10. alte avize, acorduri şi autorizaţii solicitate prin lege"]
[3,null,null,null,"3 Proiectare şi inginerie - total, din care:",null,null,null,null,null,null,null,null,null,null,null,null,null,null,null,null,null,null,null,null,null,null,null,null,null,null,null,null,null,null,null,null,null,null,null,null,null,{"$f":"AQ66+AQ73+AQ74+AQ75","v":0},null,null,null,null,null,null,null,null,{"$f":"AZ66+AZ73+AZ74+AZ75","v":0}]
[null,null,null,null,"1. Cheltuieli pentru elaborarea tuturor fazelor de proiectare - total, din care:",null,null,null,null,null,null,null,null,null,null,null,null,null,null,null,null,null,null,null,null,null,null,null,null,null,null,null,null,null,null,null,null,null,null,null,null,null,{"$f":"SUM(AQ67:AY72)","v":0},null,null,null,null,null,null,null,null,{"$f":"SUM(AZ67:BI72)","v":0}]
[null,null,null,null,null,null,"a. studiu de prefezabilitate"]
[null,null,null,null,null,null,"b. studiu de fezabilitate"]
[null,null,null,null,null,null,"c. proiect tehnic"]
[null,null,null,null,null,null,"d. detalii de execuţie"]
[null,null,null,null,null,null,"e. verificarea tehnică a proiectării"]
[null,null,null,null,null,null,"f. elaborarea certificatului de performanţa energetică a clădirii"]
[null,null,null,null,"2. Documentaţii necesare pentru obţinerea acordurilor, avizelor şi autorizaţiilor aferente obiectivului de investitii"]
[null,null,null,null,"3. Cheltuielile pentru expertiza tehnică efectuată pentru construcţii începute şi neterminate sau care urmează a fi modificate prin proiect (modernizări, consolidări etc.)"]
[null,null,null,null,"4. Cheltuielile pentru efectuarea auditului energetic"]
[4,null,null,null,"Organizarea procedurilor de achiziţie"]
[5,null,null,null,"Cheltuieli pentru consultanţă - total, din care:",null,null,null,null,null,null,null,null,null,null,null,null,null,null,null,null,null,null,null,null,null,null,null,null,null,null,null,null,null,null,null,null,null,null,null,null,null,{"$f":"SUM(AQ78:AY79)","v":0},null,null,null,null,null,null,null,null,{"$f":"SUM(AZ78:BI79)","v":0}]
[null,null,null,null,"1. plata serviciilor de consultanţă la elaborarea memoriului justificativ, studiilor de piaţă, de evaluare, la întocmirea cererii de finanţare"]
[null,null,null,null,"2. plata serviciilor de consultanţă în domeniul managementului investiţiei sau administrarea contractului de execuţie"]
[6,null,null,null,"Cheltuieli pentru asistenţa tehnică - total, din care:",null,null,null,null,null,null,null,null,null,null,null,null,null,null,null,null,null,null,null,null,null,null,null,null,null,null,null,null,null,null,null,null,null,null,null,null,null,{"$f":"SUM(AQ81:AY82)","v":0},null,null,null,null,null,null,null,null,{"$f":"SUM(AZ81:BI82)","v":0}]
[null,null,null,null,"1. asistenţa tehnică din partea proiectantului în cazul când aceasta nu intră în tarifarea proiectării"]
[null,null,null,null,"2. plata diriginţilor de şantier desemnaţi de autoritatea contractantă, autorizaţi conform prevederilor legale pentru verificarea execuţiei lucrărilor de construcţii şi instalaţii"]
[null,null,null,null,"Total valoare fără TVA",null,null,null,null,null,null,null,null,null,null,null,null,null,null,null,null,null,null,null,null,null,null,null,null,null,null,null,null,null,null,null,null,null,null,null,null,null,{"$f":"AQ80+AQ77+AQ65+AQ54+AQ53","v":0},null,null,null,null,null,null,null,null,{"$f":"AZ80+AZ77+AZ76+AZ65+AZ54+AZ53","v":0}]
[null,null,null,null,"Valoare TVA (aferentă cheltuielilor eligibile şi neeligibile)"]
["TOTAL DEVIZ FINANCIAR 1 (inclusiv TVA)",null,null,null,null,null,null,null,null,null,null,null,null,null,null,null,null,null,null,null,null,null,null,null,null,null,null,null,null,null,null,null,null,null,null,null,null,null,null,null,null,null,{"$f":"AQ83+AZ83+AQ84+AZ84","v":0}]
[null,null,null,null,null,null,null,"MINISTERUL AGRICULTURII ŞI DEZVOLTĂRII RURALE"]
[null,null,null,null,null,null,null,null,null,null,null,null,null,null,null,null,null,null,null,null,null,null,null,null,null,null,null,null,null,null,null,null,null,null,null,null,null,null,null,null,null,null,"Anexa A1\nHG 907/2016"]
[null,null,null,null,null,null,null,"AGENŢIA PENTRU FINANŢAREA INVESTIŢIILOR RURALE"]
[null,null,null,null,null,null,null,null,null,null,null,null,null,null,null,null,null,null,null,null,null,null,null,null,null,null,null,null,null,null,null,null,null,null,null,null,null,null,null,null,null,null,"…………..2017",null,null,null,null,null,null,null,null,"Nr.2"]
[null,null,null,null,null,null,null,"Deviz financiar- Capitolul 3 - Cheltuieli pentru proiectare şi asistenţa tehnică - EURO"]
[]
[]
["(Titlu deviz)"]
["Nr.crt",null,null,null,"Specificaţie",null,null,null,null,null,null,null,null,null,null,null,null,null,null,null,null,null,null,null,null,null,null,null,null,null,null,null,null,null,null,null,null,null,null,null,null,null,"Valoare eligibilă",null,null,null,null,null,null,null,null,"Valoare\nneeligibilă"]
["3.1",null,null,null,"Cheltuieli pentru studii - total din care:",null,null,null,null,null,null,null,null,null,null,null,null,null,null,null,null,null,null,null,null,null,null,null,null,null,null,null,null,null,null,null,null,null,null,null,null,null,{"$f":"SUM(AQ96:AY98)","v":0},null,null,null,null,null,null,null,null,{"$f":"SUM(AZ96:BI98)","v":0}]
[null,null,null,null,"3.1.1 Studii de teren: geotehnice, geologice, hidrologice, hidrogeotehnice, fotogrammetrice, topografice şi de stabilitate ale terenului pe care se amplasează obiectivul de investiţie"]
[null,null,null,null,"3.1.2 Raport privind impactul asupra mediului"]
[null,null,null,null,"3.1.3 Studii de specialitate necesare în funcție de specificul investiției"]
["3.2",null,null,null,"Documentaţii-suport şi cheltuieli pentru obţinerea de avize, acorduri şi autorizaţii",null,null,null,null,null,null,null,null,null,null,null,null,null,null,null,null,null,null,null,null,null,null,null,null,null,null,null,null,null,null,null,null,null,null,null,null,null,{"$f":"SUM(AQ100:AY108)","v":0},null,null,null,null,null,null,null,null,{"$f":"SUM(AZ100:BI108)","v":0}]
[null,null,null,null,"1. obţinerea/prelungirea valabilităţii ceritificatului de urbanism"]
[null,null,null,null,"2. obţinerea/prelungirea valabilităţii autorizaţiei de construire/desfiinţare"]
[null,null,null,null,"3. obţinerea avizelor şi acordurilor pentru racorduri şi branşamente la reţelele publice de alimentare cu apă, canalizare, alimentare cu gaze, alimentare cu agent termic, energie electrică, telefonie"]
[null,null,null,null,"4. obţinerea certificatului de nomenclatură stradală şi adresa"]
[null,null,null,null,"5. întocmirea documentaţiei, obţinerea numărului cadastral provizoriu şi înregistrarea terenului în cartea funciară"]
[null,null,null,null,"6. obținerea actului administrativ al autorității competente pentru protecția mediului"]
[null,null,null,null,"7. obţinerea avizului de protecție civilă"]
[null,null,null,null,"8. avizul de specialitate în cazul obiectivelor de patrimoniu"]
[null,null,null,null,"9. alte avize, acorduri şi autorizaţii"]
["3.3",null,null,null,"Cheltuieli pentru expertizarea tehnică a construcţiilor existente, a structurilor şi/sau, după caz, a proiectelor tehnice, inclusiv întocmirea de către expertul tehnic a raportului de expertiză tehnică"]
["3.4",null,null,null,"Cheltuieli pentru certificarea performanţei energetice şi auditul energetic al\nclădirilor"]
["3.5",null,null,null,"Cheltuieli pentru proiectare",null,null,null,null,null,null,null,null,null,null,null,null,null,null,null,null,null,null,null,null,null,null,null,null,null,null,null,null,null,null,null,null,null,null,null,null,null,{"$f":"SUM(AQ112:AY117)","v":0},null,null,null,null,null,null,null,null,{"$f":"SUM(AZ112:BI117)","v":0}]
[null,null,null,null,"3.5.1 Temă de proiectare"]
[null,null,null,null,"3.5.2 Studiu de prefezabilitate"]
[null,null,null,null,"3.5.3. Studiu de prefezabilitate/documentație de avizare a lucrărilor de intervenții și deviz general"]
[null,null,null,null,"3.5.4. Documentațiile tehnice necesare în vederea obținerii avizelor/ acordurilor/ autorizațiilor"]
[null,null,null,null,"3.5.5. Verificarea tehnică de calitate a proiectului tehnic și a detaliilor de execuție"]
[null,null,null,null,"3.5.6. Proiect tehnic și detalii de execuție"]
["3.6",null,null,null,"Cheltuieli aferente organizării şi derulării procedurilor de achiziţii publice",null,null,null,null,null,null,null,null,null,null,null,null,null,null,null,null,null,null,null,null,null,null,null,null,null,null,null,null,null,null,null,null,null,null,null,null,null,null,null,null,null,null,null,null,null,null,{"$f":"SUM(AZ119:BI122)","v":0}]
[null,null,null,null,"1. Cheltuieli aferente întocmirii documentaţiei de atribuire şi multiplicării acesteia (exclusiv cele cumpărate de ofertanţi)"]
[null,null,null,null,"2. Cheltuieli cu onorariile, transportul, cazarea şi diurna membrilor desemnaţi în comisiile de evaluare"]
[null,null,null,null,"3. Anunţuri de intenţie, de participare şi de atribuire a contractelor, corespondenţă prin poştă, fax, poştă electronică în legătură cu procedurile de achiziţie publică"]
[null,null,null,null,"4. Cheltuieli aferente organizării şi derulării procedurilor de achiziţii publice"]
["3.7",null,null,null,"Cheltuieli pentru consultanţă",null,null,null,null,null,null,null,null,null,null,null,null,null,null,null,null,null,null,null,null,null,null,null,null,null,null,null,null,null,null,null,null,null,null,null,null,null,{"$f":"SUM(AQ124:AY125)","v":0},null,null,null,null,null,null,null,null,{"$f":"SUM(AZ124:BI125)","v":0}]
[null,null,null,null,"3.7.1 Managementul de proiect pentru obiectivul de investiţii"]
[null,null,null,null,"3.7.2 Auditul financiar"]
["3.8",null,null,null,"Cheltuieli pentru asistenţa tehnică",null,null,null,null,null,null,null,null,null,null,null,null,null,null,null,null,null,null,null,null,null,null,null,null,null,null,null,null,null,null,null,null,null,null,null,null,null,{"$f":"AQ127+AQ130","v":0},null,null,null,null,null,null,null,null,{"$f":"AZ127+AZ130","v":0}]
[null,null,null,null,"3.8.1. Asistenţă tehnică din partea proiectantului",null,null,null,null,null,null,null,null,null,null,null,null,null,null,null,null,null,null,null,null,null,null,null,null,null,null,null,null,null,null,null,null,null,null,null,null,null,{"$f":"SUM(AQ128:AY129)","v":0},null,null,null,null,null,null,null,null,{"$f":"SUM(AZ128:BI129)","v":0}]
[null,null,null,null,"1.1. pe perioada de execuţie a lucrărilor"]
[null,null,null,null,"1.2. pentru participarea proiectantului la fazele incluse în programul de control al lucrărilor de execuţie, avizat de către Inspectoratul de Stat în Construcţii"]
[null,null,null,null,"3.8.2 Dirigenţie de şantier, asigurată de personal tehnic de specialitate, autorizat"]
[null,null,null,null,"Total valoare fără TVA",null,null,null,null,null,null,null,null,null,null,null,null,null,null,null,null,null,null,null,null,null,null,null,null,null,null,null,null,null,null,null,null,null,null,null,null,null,{"$f":"AQ95+AQ99+AQ109+AQ110+AQ111+AQ118+AQ123+AQ126","v":0},null,null,null,null,null,null,null,null,{"$f":"AZ95+AZ99+AZ109+AZ110+AZ111+AZ118+AZ123+AZ126","v":0}]
[null,null,null,null,"Valoare TVA (aferentă cheltuielilor eligibile şi neeligibile)"]
["TOTAL DEVIZ FINANCIAR 1 (inclusiv TVA)",null,null,null,null,null,null,null,null,null,null,null,null,null,null,null,null,null,null,null,null,null,null,null,null,null,null,null,null,null,null,null,null,null,null,null,null,null,null,null,null,null,{"$f":"AQ131+AZ131+AQ132+AZ132","v":0}]
[null,null,null,null,null,null,null,"MINISTERUL AGRICULTURII ŞI DEZVOLTĂRII RURALE"]
[null,null,null,null,null,null,null,null,null,null,null,null,null,null,null,null,null,null,null,null,null,null,null,null,null,null,null,null,null,null,null,null,null,null,null,null,null,null,null,null,null,null,"Anexa A1\nHG 907/2016"]
[null,null,null,null,null,null,null,"AGENŢIA PENTRU FINANŢAREA INVESTIŢIILOR RURALE"]
[null,null,null,null,null,null,null,null,null,null,null,null,null,null,null,null,null,null,null,null,null,null,null,null,null,null,null,null,null,null,null,null,null,null,null,null,null,null,null,null,null,null,"…………..2017",null,null,null,null,null,null,null,null,"Nr.3"]
[null,null,null,null,null,null,null,"Deviz financiar- Capitolul 3 - Cheltuieli pentru proiectare şi asistenţa tehnică - EURO"]
[]
[]
["(Titlu deviz)"]
["Nr.crt",null,null,null,"Specificaţie",null,null,null,null,null,null,null,null,null,null,null,null,null,null,null,null,null,null,null,null,null,null,null,null,null,null,null,null,null,null,null,null,null,null,null,null,null,"Valoare eligibilă",null,null,null,null,null,null,null,null,"Valoare\nneeligibilă"]
["3.1",null,null,null,"Cheltuieli pentru studii - total din care:",null,null,null,null,null,null,null,null,null,null,null,null,null,null,null,null,null,null,null,null,null,null,null,null,null,null,null,null,null,null,null,null,null,null,null,null,null,{"$f":"SUM(AQ144:AY146)","v":0},null,null,null,null,null,null,null,null,{"$f":"SUM(AZ144:BI146)","v":0}]
[null,null,null,null,"3.1.1 Studii de teren: geotehnice, geologice, hidrologice, hidrogeotehnice, fotogrammetrice, topografice şi de stabilitate ale terenului pe care se amplasează obiectivul de investiţie"]
[null,null,null,null,"3.1.2 Raport privind impactul asupra mediului"]
[null,null,null,null,"3.1.3 Studii de specialitate necesare în funcție de specificul investiției"]
["3.2",null,null,null,"Documentaţii-suport şi cheltuieli pentru obţinerea de avize, acorduri şi autorizaţii",null,null,null,null,null,null,null,null,null,null,null,null,null,null,null,null,null,null,null,null,null,null,null,null,null,null,null,null,null,null,null,null,null,null,null,null,null,{"$f":"SUM(AQ148:AY156)","v":0},null,null,null,null,null,null,null,null,{"$f":"SUM(AZ148:BI156)","v":0}]
[null,null,null,null,"1. obţinerea/prelungirea valabilităţii ceritificatului de urbanism"]
[null,null,null,null,"2. obţinerea/prelungirea valabilităţii autorizaţiei de construire/desfiinţare"]
[null,null,null,null,"3. obţinerea avizelor şi acordurilor pentru racorduri şi branşamente la reţelele publice de alimentare cu apă, canalizare, alimentare cu gaze, alimentare cu agent termic, energie electrică, telefonie"]
[null,null,null,null,"4. obţinerea certificatului de nomenclatură stradală şi adresa"]
[null,null,null,null,"5. întocmirea documentaţiei, obţinerea numărului cadastral provizoriu şi înregistrarea terenului în cartea funciară"]
[null,null,null,null,"6. obținerea actului administrativ al autorității competente pentru protecția mediului"]
[null,null,null,null,"7. obţinerea avizului de protecție civilă"]
[null,null,null,null,"8. avizul de specialitate în cazul obiectivelor de patrimoniu"]
[null,null,null,null,"9. alte avize, acorduri şi autorizaţii"]
["3.3",null,null,null,"Cheltuieli pentru expertizarea tehnică a construcţiilor existente, a structurilor şi/sau, după caz, a proiectelor tehnice, inclusiv întocmirea de către expertul tehnic a raportului de expertiză tehnică"]
["3.4",null,null,null,"Cheltuieli pentru certificarea performanţei energetice şi auditul energetic al\nclădirilor"]
["3.5",null,null,null,"Cheltuieli pentru proiectare",null,null,null,null,null,null,null,null,null,null,null,null,null,null,null,null,null,null,null,null,null,null,null,null,null,null,null,null,null,null,null,null,null,null,null,null,null,{"$f":"SUM(AQ160:AY165)","v":0},null,null,null,null,null,null,null,null,{"$f":"SUM(AZ160:BI165)","v":0}]
[null,null,null,null,"3.5.1 Temă de proiectare"]
[null,null,null,null,"3.5.2 Studiu de prefezabilitate"]
[null,null,null,null,"3.5.3. Studiu de prefezabilitate/documentație de avizare a lucrărilor de intervenții și deviz general"]
[null,null,null,null,"3.5.4. Documentațiile tehnice necesare în vederea obținerii avizelor/ acordurilor/ autorizațiilor"]
[null,null,null,null,"3.5.5. Verificarea tehnică de calitate a proiectului tehnic și a detaliilor de execuție"]
[null,null,null,null,"3.5.6. Proiect tehnic și detalii de execuție"]
["3.6",null,null,null,"Cheltuieli aferente organizării şi derulării procedurilor de achiziţii publice",null,null,null,null,null,null,null,null,null,null,null,null,null,null,null,null,null,null,null,null,null,null,null,null,null,null,null,null,null,null,null,null,null,null,null,null,null,null,null,null,null,null,null,null,null,null,{"$f":"SUM(AZ167:BI170)","v":0}]
[null,null,null,null,"1. Cheltuieli aferente întocmirii documentaţiei de atribuire şi multiplicării acesteia (exclusiv cele cumpărate de ofertanţi)"]
[null,null,null,null,"2. Cheltuieli cu onorariile, transportul, cazarea şi diurna membrilor desemnaţi în comisiile de evaluare"]
[null,null,null,null,"3. Anunţuri de intenţie, de participare şi de atribuire a contractelor, corespondenţă prin poştă, fax, poştă electronică în legătură cu procedurile de achiziţie publică"]
[null,null,null,null,"4. Cheltuieli aferente organizării şi derulării procedurilor de achiziţii publice"]
["3.7",null,null,null,"Cheltuieli pentru consultanţă",null,null,null,null,null,null,null,null,null,null,null,null,null,null,null,null,null,null,null,null,null,null,null,null,null,null,null,null,null,null,null,null,null,null,null,null,null,{"$f":"SUM(AQ172:AY173)","v":0},null,null,null,null,null,null,null,null,{"$f":"SUM(AZ172:BI173)","v":0}]
[null,null,null,null,"3.7.1 Managementul de proiect pentru obiectivul de investiţii"]
[null,null,null,null,"3.7.2 Auditul financiar"]
["3.8",null,null,null,"Cheltuieli pentru asistenţa tehnică",null,null,null,null,null,null,null,null,null,null,null,null,null,null,null,null,null,null,null,null,null,null,null,null,null,null,null,null,null,null,null,null,null,null,null,null,null,{"$f":"AQ175+AQ178","v":0},null,null,null,null,null,null,null,null,{"$f":"AZ175+AZ178","v":0}]
[null,null,null,null,"3.8.1. Asistenţă tehnică din partea proiectantului",null,null,null,null,null,null,null,null,null,null,null,null,null,null,null,null,null,null,null,null,null,null,null,null,null,null,null,null,null,null,null,null,null,null,null,null,null,{"$f":"SUM(AQ176:AY177)","v":0},null,null,null,null,null,null,null,null,{"$f":"SUM(AZ176:BI177)","v":0}]
[null,null,null,null,"1.1. pe perioada de execuţie a lucrărilor"]
[null,null,null,null,"1.2. pentru participarea proiectantului la fazele incluse în programul de control al lucrărilor de execuţie, avizat de către Inspectoratul de Stat în Construcţii"]
[null,null,null,null,"3.8.2 Dirigenţie de şantier, asigurată de personal tehnic de specialitate, autorizat"]
[null,null,null,null,"Total valoare fără TVA",null,null,null,null,null,null,null,null,null,null,null,null,null,null,null,null,null,null,null,null,null,null,null,null,null,null,null,null,null,null,null,null,null,null,null,null,null,{"$f":"AQ143+AQ147+AQ157+AQ158+AQ159+AQ166+AQ171+AQ174","v":0},null,null,null,null,null,null,null,null,{"$f":"AZ143+AZ147+AZ157+AZ158+AZ159+AZ166+AZ171+AZ174","v":0}]
[null,null,null,null,"Valoare TVA (aferentă cheltuielilor eligibile şi neeligibile)"]
["TOTAL DEVIZ FINANCIAR 1 (inclusiv TVA)",null,null,null,null,null,null,null,null,null,null,null,null,null,null,null,null,null,null,null,null,null,null,null,null,null,null,null,null,null,null,null,null,null,null,null,null,null,null,null,null,null,{"$f":"AQ179+AZ179+AQ180+AZ180","v":0}]

{"sheet":"Anexa 2","index":2,"n_rows":120,"n_cols":52,"rows_kept":120,"cut":false,"hidden":false,"merged":[[91,7,91,41],[92,7,92,41],[92,42,93,60],[94,42,94,50],[94,51,94,60],[95,7,95,60],[96,0,96,60],[97,0,97,60],[99,0,99,3],[99,4,99,41],[99,42,99,60],[98,0,98,60],[62,7,62,41],[63,7,63,41],[63,42,64,60],[64,7,64,41],[65,7,65,41],[65,42,65,50],[65,51,65,60],[66,7,66,60],[67,0,67,60],[68,0,68,60],[69,0,69,60],[70,42,70,60],[71,0,71,41],[72,0,72,41],[77,0,77,3],[77,4,77,41],[77,42,77,50],[77,51,77,60],[74,0,74,3],[74,4,74,41],[74,42,74,50],[74,51,74,60],[75,0,75,3],[75,4,75,41],[75,42,75,50],[75,51,75,60],[76,0,76,3],[76,4,76,41],[76,42,76,50],[76,51,76,60],[71,42,71,50],[71,51,71,60],[72,42,72,50],[112,0,112,3],[112,4,112,41],[112,42,112,50],[112,51,112,60],[111,0,111,60],[113,0,113,3],[113,4,113,41],[113,42,113,50],[113,51,113,60],[119,0,119,41],[119,42,119,60],[114,0,114,3],[114,4,114,41],[114,42,114,50],[114,51,114,60],[115,0,115,3],[115,4,115,41],[115,42,115,50],[115,51,115,60],[116,0,116,3],[116,4,116,41],[116,42,116,50],[116,51,116,60],[117,42,117,50],[117,51,117,60],[118,42,118,50],[118,51,118,60],[117,0,117,41],[118,0,118,41],[110,4,110,41],[110,42,110,50],[110,51,110,60],[108,0,108,60],[105,0,105,3],[105,4,105,41],[105,42,105,50],[105,51,105,60],[106,0,106,3],[106,4,106,41],[106,42,106,50],[106,51,106,60],[107,0,107,3],[107,4,107,41],[107,42,107,50],[107,51,107,60],[109,0,109,3],[109,4,109,41],[109,42,109,50],[109,51,109,60],[110,0,110,3],[102,42,102,50],[102,51,102,60],[103,42,103,50],[103,51,103,60],[104,0,104,3],[104,4,104,41],[104,42,104,50],[104,51,104,60],[102,0,102,3],[102,4,102,41],[103,0,103,3],[103,4,103,41],[100,0,100,41],[100,42,100,50],[100,51,100,60],[101,0,101,41],[101,42,101,50],[101,51,101,60],[86,42,86,50],[86,51,86,60],[93,7,93,41],[94,7,94,41],[86,0,86,3],[86,4,86,41],[87,0,87,3],[87,4,87,41],[87,42,87,50],[87,51,87,60],[88,0,88,41],[88,42,88,50],[88,51,88,60],[89,0,89,41],[89,42,89,50],[89,51,89,60],[90,0,90,41],[90,42,90,60],[83,0,83,3],[83,4,83,41],[83,42,83,50],[83,51,83,60],[84,0,84,3],[84,4,84,41],[84,42,84,50],[84,51,84,60],[85,42,85,50],[85,51,85,60],[85,0,85,3],[85,4,85,41],[81,0,81,3],[81,4,81,41],[81,42,81,50],[81,51,81,60],[80,51,80,60],[82,0,82,60],[78,0,78,3],[78,4,78,41],[78,42,78,50],[78,51,78,60],[79,0,79,60],[80,0,80,3],[80,4,80,41],[80,42,80,50],[72,51,72,60],[73,0,73,3],[73,4,73,41],[73,42,73,50],[73,51,73,60],[70,0,70,3],[70,4,70,41],[41,51,41,60],[0,7,0,41],[1,7,1,41],[1,42,2,60],[2,7,2,41],[3,7,3,41],[3,42,3,50],[3,51,3,60],[40,0,40,41],[40,42,40,50],[40,51,40,60],[9,0,9,41],[9,42,9,50],[9,51,9,60],[10,0,10,41],[10,42,10,50],[10,51,10,60],[4,7,4,60],[5,0,5,60],[6,0,6,60],[7,0,7,60],[8,0,8,3],[8,4,8,41],[8,42,8,60],[13,0,13,3],[13,4,13,41],[13,42,13,50],[13,51,13,60],[14,0,14,3],[14,4,14,41],[14,42,14,50],[14,51,14,60],[11,0,11,3],[11,4,11,41],[11,42,11,50],[11,51,11,60],[12,0,12,3],[12,4,12,41],[12,42,12,50],[12,51,12,60],[17,0,17,3],[17,4,17,41],[17,42,17,50],[17,51,17,60],[18,0,18,3],[18,4,18,41],[18,42,18,50],[18,51,18,60],[15,0,15,3],[15,4,15,41],[15,42,15,50],[15,51,15,60],[16,0,16,3],[16,4,16,41],[16,42,16,50],[16,51,16,60],[19,0,19,3],[19,4,19,41],[19,42,19,50],[19,51,19,60],[20,0,20,60],[21,0,21,3],[21,4,21,41],[21,42,21,50],[21,51,21,60],[25,0,25,3],[25,4,25,41],[25,42,25,50],[25,51,25,60],[26,0,26,3],[26,4,26,41],[26,42,26,50],[26,51,26,60],[22,0,22,3],[22,4,22,41],[22,42,22,50],[22,51,22,60],[23,0,23,60],[24,0,24,3],[24,4,24,41],[24,42,24,50],[24,51,24,60],[29,0,29,41],[29,42,29,50],[29,51,29,60],[30,0,30,41],[30,42,30,60],[27,0,27,3],[27,4,27,41],[27,42,27,50],[27,51,27,60],[28,0,28,41],[28,42,28,50],[28,51,28,60],[54,0,54,60],[56,0,56,3],[56,4,56,41],[56,42,56,50],[56,51,56,60],[55,0,55,3],[55,4,55,41],[55,42,55,50],[55,51,55,60],[61,0,61,41],[61,42,61,60],[59,42,59,50],[59,51,59,60],[60,42,60,50],[60,51,60,60],[59,0,59,41],[60,0,60,41],[57,0,57,3],[57,4,57,41],[57,42,57,50],[57,51,57,60],[58,0,58,3],[58,4,58,41],[58,42,58,50],[58,51,58,60],[42,0,42,3],[42,4,42,41],[42,42,42,50],[42,51,42,60],[43,0,43,3],[43,4,43,41],[43,42,43,50],[43,51,43,60],[31,7,31,41],[32,7,32,41],[32,42,33,60],[33,7,33,41],[34,7,34,41],[34,42,34,50],[34,51,34,60],[41,0,41,41],[41,42,41,50],[39,0,39,3],[39,4,39,41],[39,42,39,60],[37,0,37,60],[38,0,38,60],[35,7,35,60],[36,0,36,60],[46,0,46,3],[46,4,46,41],[46,42,46,50],[46,51,46,60],[47,0,47,3],[47,4,47,41],[47,42,47,50],[47,51,47,60],[44,42,44,50],[44,51,44,60],[45,0,45,3],[45,4,45,41],[45,42,45,50],[45,51,45,60],[44,0,44,3],[44,4,44,41],[52,4,52,41],[52,42,52,50],[52,51,52,60],[53,0,53,3],[53,4,53,41],[53,42,53,50],[53,51,53,60],[48,0,48,3],[48,4,48,41],[48,42,48,50],[48,51,48,60],[49,0,49,3],[49,4,49,41],[49,42,49,50],[49,51,49,60],[50,42,50,50],[50,51,50,60],[50,0,50,3],[50,4,50,41],[51,0,51,60],[52,0,52,3]]}
[null,null,null,null,null,null,null,"MINISTERUL AGRICULTURII ŞI DEZVOLTĂRII RURALE"]
[null,null,null,null,null,null,null,null,null,null,null,null,null,null,null,null,null,null,null,null,null,null,null,null,null,null,null,null,null,null,null,null,null,null,null,null,null,null,null,null,null,null,"Anexa A2\nHG28/2008"]
[null,null,null,null,null,null,null,"AGENŢIA PENTRU FINANŢAREA INVESTIŢIILOR RURALE"]
[null,null,null,null,null,null,null,null,null,null,null,null,null,null,null,null,null,null,null,null,null,null,null,null,null,null,null,null,null,null,null,null,null,null,null,null,null,null,null,null,null,null,null,null,null,null,null,null,null,null,null,"Nr.2"]
[null,null,null,null,null,null,null,"DEVIZ PE OBIECT *"]
[]
[]
["(Descriere obiect de construcţie)"]
["Nr. crt.",null,null,null,"Denumire",null,null,null,null,null,null,null,null,null,null,null,null,null,null,null,null,null,null,null,null,null,null,null,null,null,null,null,null,null,null,null,null,null,null,null,null,null,"Valoarea pe categorii de lucrări, fară TVA - EURO"]
[null,null,null,null,null,null,null,null,null,null,null,null,null,null,null,null,null,null,null,null,null,null,null,null,null,null,null,null,null,null,null,null,null,null,null,null,null,null,null,null,null,null,"Valoare eligibilă",null,null,null,null,null,null,null,null,"Valoare\nneeligibilă"]
["I - LUCRĂRI DE CONSTRUCŢII ŞI INSTALAŢII"]
[1,null,null,null,"Terasamente"]
[2,null,null,null,"Construcţii : rezistenţă (fundaţii, structură de rezistenţă) şi arhitectură (închideri exterioare, compartimentări, finisaje)"]
[3,null,null,null,"Izolaţii"]
[4,null,null,null,"Instalaţii electrice"]
[5,null,null,null,"Instalaţii sanitare"]
[6,null,null,null,"Instalaţii de încălzire, ventilare, climatizare. PSI, radio-tv, intranet"]
[7,null,null,null,"Instalaţii de alimentare cu gaze naturale"]
[8,null,null,null,"Instalaţii de telecomunicaţii"]
[null,null,null,null,"TOTAL I ( fără TVA)",null,null,null,null,null,null,null,null,null,null,null,null,null,null,null,null,null,null,null,null,null,null,null,null,null,null,null,null,null,null,null,null,null,null,null,null,null,{"$f":"SUM(AQ12:AY19)","v":0},null,null,null,null,null,null,null,null,{"$f":"SUM(AZ12:BI19)","v":0}]
["II - MONTAJ"]
[9,null,null,null,"Montaj utilaje şi echipamente tehnologice"]
[null,null,null,null,"TOTAL II ( fără TVA)",null,null,null,null,null,null,null,null,null,null,null,null,null,null,null,null,null,null,null,null,null,null,null,null,null,null,null,null,null,null,null,null,null,null,null,null,null,{"$f":"SUM(AQ22)","v":0},null,null,null,null,null,null,null,null,{"$f":"SUM(AZ22)","v":0}]
["III - PROCURARE"]
[10,null,null,null,"Utilaje şi echipamente tehnologice"]
[11,null,null,null,"Utilaje şi echipamente de transport, utilaje şi echipamente fară montaj, mijloace de transport, alte achiziţii specifice"]
[12,null,null,null,"Dotări"]
[null,null,null,null,"TOTAL III ( fără TVA)",null,null,null,null,null,null,null,null,null,null,null,null,null,null,null,null,null,null,null,null,null,null,null,null,null,null,null,null,null,null,null,null,null,null,null,null,null,{"$f":"SUM(AQ25:AY27)","v":0},null,null,null,null,null,null,null,null,{"$f":"SUM(AZ25:BI27)","v":0}]
["TOTAL ( TOTAL I + TOTAL II +TOTAL III) fără TVA",null,null,null,null,null,null,null,null,null,null,null,null,null,null,null,null,null,null,null,null,null,null,null,null,null,null,null,null,null,null,null,null,null,null,null,null,null,null,null,null,null,{"$f":"AQ28+AQ23+AQ20","v":0},null,null,null,null,null,null,null,null,{"$f":"AZ28+AZ23+AZ20","v":0}]
["TVA aferent cheltuielilor eligibile şi neeligibile"]
["TOTAL DEVIZ PE OBIECT (inclusiv TVA)",null,null,null,null,null,null,null,null,null,null,null,null,null,null,null,null,null,null,null,null,null,null,null,null,null,null,null,null,null,null,null,null,null,null,null,null,null,null,null,null,null,{"$f":"AQ29+AZ29+AQ30+AZ30","v":0}]
[null,null,null,null,null,null,null,"MINISTERUL AGRICULTURII ŞI DEZVOLTĂRII RURALE"]
[null,null,null,null,null,null,null,null,null,null,null,null,null,null,null,null,null,null,null,null,null,null,null,null,null,null,null,null,null,null,null,null,null,null,null,null,null,null,null,null,null,null,"Anexa A2\nHG28/2008"]
[null,null,null,null,null,null,null,"AGENŢIA PENTRU FINANŢAREA INVESTIŢIILOR RURALE"]
[null,null,null,null,null,null,null,null,null,null,null,null,null,null,null,null,null,null,null,null,null,null,null,null,null,null,null,null,null,null,null,null,null,null,null,null,null,null,null,null,null,null,null,null,null,null,null,null,null,null,null,"Nr.3"]
[null,null,null,null,null,null,null,"DEVIZ PE OBIECT *"]
[]
[]
["(Descriere obiect de construcţie)"]
["Nr. crt.",null,null,null,"Denumire",null,null,null,null,null,null,null,null,null,null,null,null,null,null,null,null,null,null,null,null,null,null,null,null,null,null,null,null,null,null,null,null,null,null,null,null,null,"Valoarea pe categorii de lucrări, fară TVA - EURO"]
[null,null,null,null,null,null,null,null,null,null,null,null,null,null,null,null,null,null,null,null,null,null,null,null,null,null,null,null,null,null,null,null,null,null,null,null,null,null,null,null,null,null,"Valoare eligibilă",null,null,null,null,null,null,null,null,"Valoare\nneeligibilă"]
["I - LUCRĂRI DE CONSTRUCŢII ŞI INSTALAŢII"]
[1,null,null,null,"Terasamente"]
[2,null,null,null,"Construcţii : rezistenţă (fundaţii, structură de rezistenţă) şi arhitectură (închideri exterioare, compartimentări, finisaje)"]
[3,null,null,null,"Izolaţii"]
[4,null,null,null,"Instalaţii electrice"]
[5,null,null,null,"Instalaţii sanitare"]
[6,null,null,null,"Instalaţii de încălzire, ventilare, climatizare. PSI, radio-tv, intranet"]
[7,null,null,null,"Instalaţii de alimentare cu gaze naturale"]
[8,null,null,null,"Instalaţii de telecomunicaţii"]
[null,null,null,null,"TOTAL I ( fără TVA)",null,null,null,null,null,null,null,null,null,null,null,null,null,null,null,null,null,null,null,null,null,null,null,null,null,null,null,null,null,null,null,null,null,null,null,null,null,{"$f":"SUM(AQ43:AY50)","v":0},null,null,null,null,null,null,null,null,{"$f":"SUM(AZ43:BI50)","v":0}]
["II - MONTAJ"]
[9,null,null,null,"Montaj utilaje şi echipamente tehnologice"]
[null,null,null,null,"TOTAL II ( fără TVA)",null,null,null,null,null,null,null,null,null,null,null,null,null,null,null,null,null,null,null,null,null,null,null,null,null,null,null,null,null,null,null,null,null,null,null,null,null,{"$f":"SUM(AQ53)","v":0},null,null,null,null,null,null,null,null,{"$f":"SUM(AZ53)","v":0}]
["III - PROCURARE"]
[10,null,null,null,"Utilaje şi echipamente tehnologice"]
[11,null,null,null,"Utilaje şi echipamente de transport, utilaje şi echipamente fară montaj, mijloace de transport, alte achiziţii specifice"]
[12,null,null,null,"Dotări"]
[null,null,null,null,"TOTAL III ( fără TVA)",null,null,null,null,null,null,null,null,null,null,null,null,null,null,null,null,null,null,null,null,null,null,null,null,null,null,null,null,null,null,null,null,null,null,null,null,null,{"$f":"SUM(AQ56:AY58)","v":0},null,null,null,null,null,null,null,null,{"$f":"SUM(AZ56:BI58)","v":0}]
["TOTAL ( TOTAL I + TOTAL II +TOTAL III) fără TVA",null,null,null,null,null,null,null,null,null,null,null,null,null,null,null,null,null,null,null,null,null,null,null,null,null,null,null,null,null,null,null,null,null,null,null,null,null,null,null,null,null,{"$f":"AQ59+AQ54+AQ51","v":0},null,null,null,null,null,null,null,null,{"$f":"AZ59+AZ54+AZ51","v":0}]
["TVA aferent cheltuielilor eligibile şi neeligibile"]
["TOTAL DEVIZ PE OBIECT (inclusiv TVA)",null,null,null,null,null,null,null,null,null,null,null,null,null,null,null,null,null,null,null,null,null,null,null,null,null,null,null,null,null,null,null,null,null,null,null,null,null,null,null,null,null,{"$f":"AQ60+AZ60+AQ61+AZ61","v":0}]
[null,null,null,null,null,null,null,"MINISTERUL AGRICULTURII ŞI DEZVOLTĂRII RURALE"]
[null,null,null,null,null,null,null,null,null,null,null,null,null,null,null,null,null,null,null,null,null,null,null,null,null,null,null,null,null,null,null,null,null,null,null,null,null,null,null,null,null,null,"Anexa A2\nHG 907/2016"]
[null,null,null,null,null,null,null,"AGENŢIA PENTRU FINANŢAREA INVESTIŢIILOR RURALE"]
[null,null,null,null,null,null,null,null,null,null,null,null,null,null,null,null,null,null,null,null,null,null,null,null,null,null,null,null,null,null,null,null,null,null,null,null,null,null,null,null,null,null,"………….2017",null,null,null,null,null,null,null,null,"Nr.2"]
[null,null,null,null,null,null,null,"DEVIZ PE OBIECT *"]
[]
[]
["(Descriere obiect de construcţie)"]
["Nr. crt.",null,null,null,"Denumire",null,null,null,null,null,null,null,null,null,null,null,null,null,null,null,null,null,null,null,null,null,null,null,null,null,null,null,null,null,null,null,null,null,null,null,null,null,"Valoarea pe categorii de lucrări, fară TVA - EURO"]
["Cap. 4 + Cheltuieli pentru investiţia de bază",null,null,null,null,null,null,null,null,null,null,null,null,null,null,null,null,null,null,null,null,null,null,null,null,null,null,null,null,null,null,null,null,null,null,null,null,null,null,null,null,null,"Valoare eligibilă",null,null,null,null,null,null,null,null,"Valoare\nneeligibilă"]
["I - LUCRĂRI DE CONSTRUCŢII ŞI INSTALAŢII"]
["4.1",null,null,null,"Construcții și instalații"]
[null,null,null,null,"4.1.1 Terasamente, sistematizare pe verticală și amenajări exterioare"]
[null,null,null,null,"4.1.2 Rezistență"]
[null,null,null,null,"4.1.3 Arhitectură"]
[null,null,null,null,"4.1.4 Instalații"]
[null,null,null,null,"TOTAL I ( fără TVA)",null,null,null,null,null,null,null,null,null,null,null,null,null,null,null,null,null,null,null,null,null,null,null,null,null,null,null,null,null,null,null,null,null,null,null,null,null,{"$f":"SUM(AQ75:AY78)","v":0},null,null,null,null,null,null,null,null,{"$f":"SUM(AZ75:BI78)","v":0}]
["II - MONTAJ"]
["4.2",null,null,null,"Montaj utilaje, echipamente tehnologice și funcționale"]
[null,null,null,null,"TOTAL II ( fără TVA)",null,null,null,null,null,null,null,null,null,null,null,null,null,null,null,null,null,null,null,null,null,null,null,null,null,null,null,null,null,null,null,null,null,null,null,null,null,{"$f":"SUM(AQ81)","v":0},null,null,null,null,null,null,null,null,{"$f":"SUM(AZ81)","v":0}]
["III - PROCURARE"]
["4.3",null,null,null,"Utilaje, echipamente tehnologice și funcționale care necesită montaj"]
["4.4",null,null,null,"Utilaje, echipamente tehnologice și funcționale care nu necesită montaj și echipamente de transport"]
["4.5",null,null,null,"Dotări"]
["4.6",null,null,null,"Active necorporale"]
[null,null,null,null,"TOTAL III ( fără TVA)",null,null,null,null,null,null,null,null,null,null,null,null,null,null,null,null,null,null,null,null,null,null,null,null,null,null,null,null,null,null,null,null,null,null,null,null,null,{"$f":"SUM(AQ84:AY87)","v":0},null,null,null,null,null,null,null,null,{"$f":"SUM(AZ84:BI87)","v":0}]
["TOTAL ( TOTAL I + TOTAL II +TOTAL III) fără TVA",null,null,null,null,null,null,null,null,null,null,null,null,null,null,null,null,null,null,null,null,null,null,null,null,null,null,null,null,null,null,null,null,null,null,null,null,null,null,null,null,null,{"$f":"AQ88+AQ82+AQ79","v":0},null,null,null,null,null,null,null,null,{"$f":"AZ88+AZ82+AZ79","v":0}]
["TVA aferent cheltuielilor eligibile şi neeligibile"]
["TOTAL DEVIZ PE OBIECT (inclusiv TVA)",null,null,null,null,null,null,null,null,null,null,null,null,null,null,null,null,null,null,null,null,null,null,null,null,null,null,null,null,null,null,null,null,null,null,null,null,null,null,null,null,null,{"$f":"AQ89+AZ89+AQ90+AZ90","v":0}]
[null,null,null,null,null,null,null,"MINISTERUL AGRICULTURII ŞI DEZVOLTĂRII RURALE"]
[null,null,null,null,null,null,null,null,null,null,null,null,null,null,null,null,null,null,null,null,null,null,null,null,null,null,null,null,null,null,null,null,null,null,null,null,null,null,null,null,null,null,"Anexa A2\nHG 907/2016"]
[null,null,null,null,null,null,null,"AGENŢIA PENTRU FINANŢAREA INVESTIŢIILOR RURALE"]
[null,null,null,null,null,null,null,null,null,null,null,null,null,null,null,null,null,null,null,null,null,null,null,null,null,null,null,null,null,null,null,null,null,null,null,null,null,null,null,null,null,null,"………….2017",null,null,null,null,null,null,null,null,"Nr.3"]
[null,null,null,null,null,null,null,"DEVIZ PE OBIECT *"]
[]
[]
["(Descriere obiect de construcţie)"]
["Nr. crt.",null,null,null,"Denumire",null,null,null,null,null,null,null,null,null,null,null,null,null,null,null,null,null,null,null,null,null,null,null,null,null,null,null,null,null,null,null,null,null,null,null,null,null,"Valoarea pe categorii de lucrări, fară TVA - EURO"]
["Cap. 4 + Cheltuieli pentru investiţia de bază",null,null,null,null,null,null,null,null,null,null,null,null,null,null,null,null,null,null,null,null,null,null,null,null,null,null,null,null,null,null,null,null,null,null,null,null,null,null,null,null,null,"Valoare eligibilă",null,null,null,null,null,null,null,null,"Valoare\nneeligibilă"]
["I - LUCRĂRI DE CONSTRUCŢII ŞI INSTALAŢII"]
["4.1",null,null,null,"Construcții și instalații"]
[null,null,null,null,"4.1.1 Terasamente, sistematizare pe verticală și amenajări exterioare"]
[null,null,null,null,"4.1.2 Rezistență"]
[null,null,null,null,"4.1.3 Arhitectură"]
[null,null,null,null,"4.1.4 Instalații"]
[null,null,null,null,"TOTAL I ( fără TVA)",null,null,null,null,null,null,null,null,null,null,null,null,null,null,null,null,null,null,null,null,null,null,null,null,null,null,null,null,null,null,null,null,null,null,null,null,null,{"$f":"SUM(AQ104:AY107)","v":0},null,null,null,null,null,null,null,null,{"$f":"SUM(AZ104:BI107)","v":0}]
["II - MONTAJ"]
["4.2",null,null,null,"Montaj utilaje, echipamente tehnologice și funcționale"]
[null,null,null,null,"TOTAL II ( fără TVA)",null,null,null,null,null,null,null,null,null,null,null,null,null,null,null,null,null,null,null,null,null,null,null,null,null,null,null,null,null,null,null,null,null,null,null,null,null,{"$f":"SUM(AQ110)","v":0},null,null,null,null,null,null,null,null,{"$f":"SUM(AZ110)","v":0}]
["III - PROCURARE"]
["4.3",null,null,null,"Utilaje, echipamente tehnologice și funcționale care necesită montaj"]
["4.4",null,null,null,"Utilaje, echipamente tehnologice și funcționale care nu necesită montaj și echipamente de transport"]
["4.5",null,null,null,"Dotări"]
["4.6",null,null,null,"Active necorporale"]
[null,null,null,null,"TOTAL III ( fără TVA)",null,null,null,null,null,null,null,null,null,null,null,null,null,null,null,null,null,null,null,null,null,null,null,null,null,null,null,null,null,null,null,null,null,null,null,null,null,{"$f":"SUM(AQ113:AY116)","v":0},null,null,null,null,null,null,null,null,{"$f":"SUM(AZ113:BI116)","v":0}]
["TOTAL ( TOTAL I + TOTAL II +TOTAL III) fără TVA",null,null,null,null,null,null,null,null,null,null,null,null,null,null,null,null,null,null,null,null,null,null,null,null,null,null,null,null,null,null,null,null,null,null,null,null,null,null,null,null,null,{"$f":"AQ117+AQ111+AQ108","v":0},null,null,null,null,null,null,null,null,{"$f":"AZ117+AZ111+AZ108","v":0}]
["TVA aferent cheltuielilor eligibile şi neeligibile"]
["TOTAL DEVIZ PE OBIECT (inclusiv TVA)",null,null,null,null,null,null,null,null,null,null,null,null,null,null,null,null,null,null,null,null,null,null,null,null,null,null,null,null,null,null,null,null,null,null,null,null,null,null,null,null,null,{"$f":"AQ118+AZ118+AQ119+AZ119","v":0}]

{"sheet":"Anexa 3","index":3,"n_rows":241,"n_cols":52,"rows_kept":241,"cut":false,"hidden":false,"merged":[[238,0,238,3],[238,4,238,41],[238,42,238,50],[238,51,238,60],[239,0,239,3],[239,4,239,41],[239,42,239,50],[239,51,239,60],[240,0,240,3],[240,4,240,41],[240,42,240,60],[235,0,235,3],[235,4,235,41],[235,42,235,50],[235,51,235,60],[236,0,236,3],[236,4,236,41],[236,42,236,50],[236,51,236,60],[237,0,237,3],[237,4,237,41],[237,42,237,50],[237,51,237,60],[232,0,232,3],[232,4,232,41],[232,42,232,50],[232,51,232,60],[233,0,233,3],[233,4,233,41],[233,42,233,50],[233,51,233,60],[234,0,234,3],[234,4,234,41],[234,42,234,50],[234,51,234,60],[229,0,229,3],[229,4,229,41],[229,42,229,50],[229,51,229,60],[230,0,230,3],[230,4,230,41],[230,42,230,50],[230,51,230,60],[231,0,231,3],[231,4,231,41],[231,42,231,50],[231,51,231,60],[226,0,226,60],[227,0,227,3],[227,4,227,41],[227,42,227,50],[227,51,227,60],[228,0,228,3],[228,4,228,41],[228,42,228,50],[228,51,228,60],[223,0,223,3],[223,4,223,41],[223,42,223,50],[223,51,223,60],[224,0,224,60],[225,0,225,3],[225,4,225,41],[225,42,225,50],[225,51,225,60],[220,0,220,3],[220,4,220,41],[220,42,220,50],[220,51,220,60],[221,0,221,3],[221,4,221,41],[221,42,221,50],[221,51,221,60],[222,0,222,41],[222,42,222,60],[217,0,217,3],[217,4,217,41],[217,42,217,50],[217,51,217,60],[218,0,218,3],[218,4,218,41],[218,42,218,50],[218,51,218,60],[219,0,219,3],[219,4,219,41],[219,42,219,50],[219,51,219,60],[214,0,214,3],[214,4,214,41],[214,42,214,50],[214,51,214,60],[215,0,215,3],[215,4,215,41],[215,42,215,50],[215,51,215,60],[216,0,216,3],[216,4,216,41],[216,42,216,50],[216,51,216,60],[211,0,211,3],[211,4,211,41],[211,42,211,50],[211,51,211,60],[212,0,212,3],[212,4,212,41],[212,42,212,50],[212,51,212,60],[213,0,213,3],[213,4,213,41],[213,42,213,50],[213,51,213,60],[205,7,205,60],[206,0,206,60],[207,0,207,60],[208,0,208,60],[209,0,209,60],[210,0,210,3],[210,4,210,41],[210,42,210,50],[210,51,210,60],[200,0,200,3],[200,4,200,41],[200,42,200,60],[202,7,202,41],[202,42,203,60],[203,7,203,41],[204,7,204,41],[204,42,204,50],[204,51,204,60],[197,0,197,3],[197,4,197,41],[197,42,197,50],[197,51,197,60],[198,0,198,3],[198,4,198,41],[198,42,198,50],[198,51,198,60],[199,0,199,3],[199,4,199,41],[199,42,199,50],[199,51,199,60],[194,0,194,3],[194,4,194,41],[194,42,194,50],[194,51,194,60],[195,0,195,3],[195,4,195,41],[195,42,195,50],[195,51,195,60],[196,0,196,3],[196,4,196,41],[196,42,196,50],[196,51,196,60],[191,0,191,3],[191,4,191,41],[191,42,191,50],[191,51,191,60],[192,0,192,3],[192,4,192,41],[192,42,192,50],[192,51,192,60],[193,0,193,3],[193,4,193,41],[193,42,193,50],[193,51,193,60],[188,0,188,3],[188,4,188,41],[188,42,188,50],[188,51,188,60],[189,0,189,3],[189,4,189,41],[189,42,189,50],[189,51,189,60],[190,0,190,3],[190,4,190,41],[190,42,190,50],[190,51,190,60],[184,0,184,60],[185,0,185,3],[185,4,185,41],[185,42,185,50],[185,51,185,60],[186,0,186,60],[187,0,187,3],[187,4,187,41],[187,42,187,50],[187,51,187,60],[181,0,181,3],[181,4,181,41],[181,42,181,50],[181,51,181,60],[182,0,182,41],[182,42,182,60],[183,0,183,3],[183,4,183,41],[183,42,183,50],[183,51,183,60],[178,0,178,3],[178,4,178,41],[178,42,178,50],[178,51,178,60],[179,0,179,3],[179,4,179,41],[179,42,179,50],[179,51,179,60],[180,0,180,3],[180,4,180,41],[180,42,180,50],[180,51,180,60],[175,0,175,3],[175,4,175,41],[175,42,175,50],[175,51,175,60],[176,0,176,3],[176,4,176,41],[176,42,176,50],[176,51,176,60],[177,0,177,3],[177,4,177,41],[177,42,177,50],[177,51,177,60],[172,0,172,3],[172,4,172,41],[172,42,172,50],[172,51,172,60],[173,0,173,3],[173,4,173,41],[173,42,173,50],[173,51,173,60],[174,0,174,3],[174,4,174,41],[174,42,174,50],[174,51,174,60],[167,0,167,60],[168,0,168,60],[169,0,169,60],[170,0,170,3],[170,4,170,41],[170,42,170,50],[170,51,170,60],[171,0,171,3],[171,4,171,41],[171,42,171,50],[171,51,171,60],[162,7,162,41],[162,42,163,60],[163,7,163,41],[164,7,164,41],[164,42,164,50],[164,51,164,60],[165,7,165,60],[166,0,166,60],[158,0,158,3],[158,4,158,41],[158,42,158,50],[158,51,158,60],[159,0,159,3],[159,4,159,41],[159,42,159,50],[159,51,159,60],[160,0,160,3],[160,4,160,41],[160,42,160,60],[155,0,155,3],[155,4,155,41],[155,42,155,50],[155,51,155,60],[156,0,156,3],[156,4,156,41],[156,42,156,50],[156,51,156,60],[157,0,157,3],[157,4,157,41],[157,42,157,50],[157,51,157,60],[152,0,152,3],[152,4,152,41],[152,42,152,50],[152,51,152,60],[153,0,153,3],[153,4,153,41],[153,42,153,50],[153,51,153,60],[154,0,154,3],[154,4,154,41],[154,42,154,50],[154,51,154,60],[149,0,149,3],[149,4,149,41],[149,42,149,50],[149,51,149,60],[150,0,150,3],[150,4,150,41],[150,42,150,50],[150,51,150,60],[151,0,151,3],[151,4,151,41],[151,42,151,50],[151,51,151,60],[146,0,146,60],[147,0,147,3],[147,4,147,41],[147,42,147,50],[147,51,147,60],[148,0,148,3],[148,4,148,41],[148,42,148,50],[148,51,148,60],[143,0,143,3],[143,4,143,41],[143,42,143,50],[143,51,143,60],[144,0,144,60],[145,0,145,3],[145,4,145,41],[145,42,145,50],[145,51,145,60],[140,0,140,3],[140,4,140,41],[140,42,140,50],[140,51,140,60],[141,0,141,3],[141,4,141,41],[141,42,141,50],[141,51,141,60],[142,0,142,41],[142,42,142,60],[137,0,137,3],[137,4,137,41],[137,42,137,50],[137,51,137,60],[138,0,138,3],[138,4,138,41],[138,42,138,50],[138,51,138,60],[139,0,139,3],[139,4,139,41],[139,42,139,50],[139,51,139,60],[134,0,134,3],[134,4,134,41],[134,42,134,50],[134,51,134,60],[135,0,135,3],[135,4,135,41],[135,42,135,50],[135,51,135,60],[136,0,136,3],[136,4,136,41],[136,42,136,50],[136,51,136,60],[131,0,131,3],[131,4,131,41],[131,42,131,50],[131,51,131,60],[132,0,132,3],[132,4,132,41],[132,42,132,50],[132,51,132,60],[133,0,133,3],[133,4,133,41],[133,42,133,50],[133,51,133,60],[125,7,125,60],[126,0,126,60],[127,0,127,60],[128,0,128,60],[129,0,129,60],[130,0,130,3],[130,4,130,41],[130,42,130,50],[130,51,130,60],[119,0,119,3],[119,4,119,41],[119,42,119,60],[122,7,122,41],[122,42,123,60],[123,7,123,41],[124,7,124,41],[124,42,124,50],[124,51,124,60],[116,0,116,3],[116,4,116,41],[116,42,116,50],[116,51,116,60],[117,0,117,3],[117,4,117,41],[117,42,117,50],[117,51,117,60],[118,0,118,3],[118,4,118,41],[118,42,118,50],[118,51,118,60],[113,0,113,3],[113,4,113,41],[113,42,113,50],[113,51,113,60],[114,0,114,3],[114,4,114,41],[114,42,114,50],[114,51,114,60],[115,0,115,3],[115,4,115,41],[115,42,115,50],[115,51,115,60],[110,0,110,3],[110,4,110,41],[110,42,110,50],[110,51,110,60],[111,0,111,3],[111,4,111,41],[111,42,111,50],[111,51,111,60],[112,0,112,3],[112,4,112,41],[112,42,112,50],[112,51,112,60],[107,0,107,3],[107,4,107,41],[107,42,107,50],[107,51,107,60],[108,0,108,3],[108,4,108,41],[108,42,108,50],[108,51,108,60],[109,0,109,3],[109,4,109,41],[109,42,109,50],[109,51,109,60],[103,0,103,60],[104,0,104,3],[104,4,104,41],[104,42,104,50],[104,51,104,60],[105,0,105,60],[106,0,106,3],[106,4,106,41],[106,42,106,50],[106,51,106,60],[100,0,100,3],[100,4,100,41],[100,42,100,50],[100,51,100,60],[101,0,101,41],[101,42,101,60],[102,0,102,3],[102,4,102,41],[102,42,102,50],[102,51,102,60],[97,0,97,3],[97,4,97,41],[97,42,97,50],[97,51,97,60],[98,0,98,3],[98,4,98,41],[98,42,98,50],[98,51,98,60],[99,0,99,3],[99,4,99,41],[99,42,99,50],[99,51,99,60],[94,0,94,3],[94,4,94,41],[94,42,94,50],[94,51,94,60],[95,0,95,3],[95,4,95,41],[95,42,95,50],[95,51,95,60],[96,0,96,3],[96,4,96,41],[96,42,96,50],[96,51,96,60],[91,0,91,3],[91,4,91,41],[91,42,91,50],[91,51,91,60],[92,0,92,3],[92,4,92,41],[92,42,92,50],[92,51,92,60],[93,0,93,3],[93,4,93,41],[93,42,93,50],[93,51,93,60],[87,0,87,60],[88,0,88,60],[89,0,89,3],[89,4,89,41],[89,42,89,50],[89,51,89,60],[90,0,90,3],[90,4,90,41],[90,42,90,50],[90,51,90,60],[81,7,81,41],[81,42,82,60],[82,7,82,41],[83,7,83,41],[83,42,83,50],[83,51,83,60],[84,7,84,60],[85,0,85,60],[86,0,86,60],[46,0,46,60],[47,0,47,60],[48,0,48,60],[49,0,49,60],[50,0,50,3],[50,4,50,41],[3,7,3,41],[3,42,3,50],[3,51,3,60],[4,7,4,60],[5,0,5,60],[6,0,6,60],[14,0,14,3],[14,4,14,41],[14,42,14,50],[14,51,14,60],[15,0,15,3],[15,4,15,41],[15,42,15,50],[15,51,15,60],[12,0,12,3],[12,4,12,41],[12,42,12,50],[12,51,12,60],[1,7,1,41],[1,42,2,60],[2,7,2,41],[10,0,10,3],[10,4,10,41],[10,42,10,50],[10,51,10,60],[11,0,11,3],[11,4,11,41],[11,42,11,50],[11,51,11,60],[7,0,7,60],[8,0,8,60],[9,0,9,3],[9,4,9,41],[9,42,9,50],[9,51,9,60],[13,0,13,3],[13,4,13,41],[13,42,13,50],[13,51,13,60],[18,0,18,3],[18,4,18,41],[18,42,18,50],[18,51,18,60],[19,0,19,3],[19,4,19,41],[19,42,19,50],[19,51,19,60],[16,0,16,3],[16,4,16,41],[16,42,16,50],[16,51,16,60],[17,0,17,3],[17,4,17,41],[17,42,17,50],[17,51,17,60],[22,0,22,60],[23,0,23,3],[23,4,23,41],[23,42,23,50],[23,51,23,60],[24,0,24,60],[20,0,20,41],[20,42,20,60],[21,0,21,3],[21,4,21,41],[21,42,21,50],[21,51,21,60],[27,0,27,3],[27,4,27,41],[27,42,27,50],[27,51,27,60],[28,0,28,3],[28,4,28,41],[28,42,28,50],[28,51,28,60],[25,0,25,3],[25,4,25,41],[25,42,25,50],[25,51,25,60],[26,0,26,3],[26,4,26,41],[26,42,26,50],[26,51,26,60],[31,0,31,3],[31,4,31,41],[31,42,31,50],[31,51,31,60],[32,0,32,3],[32,4,32,41],[32,42,32,50],[32,51,32,60],[29,0,29,3],[29,4,29,41],[29,42,29,50],[29,51,29,60],[30,0,30,3],[30,4,30,41],[30,42,30,50],[30,51,30,60],[35,0,35,3],[35,4,35,41],[35,42,35,50],[35,51,35,60],[36,0,36,3],[36,4,36,41],[36,42,36,50],[36,51,36,60],[33,0,33,3],[33,4,33,41],[33,42,33,50],[33,51,33,60],[34,0,34,3],[34,4,34,41],[34,42,34,50],[34,51,34,60],[42,7,42,41],[42,42,43,60],[43,7,43,41],[44,7,44,41],[44,42,44,50],[44,51,44,60],[45,7,45,60],[37,0,37,3],[37,4,37,41],[37,42,37,50],[37,51,37,60],[38,0,38,3],[38,4,38,41],[38,42,38,60],[52,0,52,3],[52,4,52,41],[52,42,52,50],[52,51,52,60],[53,0,53,3],[53,4,53,41],[53,42,53,50],[53,51,53,60],[50,42,50,50],[50,51,50,60],[51,0,51,3],[51,4,51,41],[51,42,51,50],[51,51,51,60],[56,0,56,3],[56,4,56,41],[56,42,56,50],[56,51,56,60],[57,0,57,3],[57,4,57,41],[57,42,57,50],[57,51,57,60],[54,0,54,3],[54,4,54,41],[54,42,54,50],[54,51,54,60],[55,0,55,3],[55,4,55,41],[55,42,55,50],[55,51,55,60],[60,0,60,3],[60,4,60,41],[60,42,60,50],[60,51,60,60],[61,0,61,41],[61,42,61,60],[58,0,58,3],[58,4,58,41],[58,42,58,50],[58,51,58,60],[59,0,59,3],[59,4,59,41],[59,42,59,50],[59,51,59,60],[62,0,62,3],[62,4,62,41],[62,42,62,50],[62,51,62,60],[63,0,63,60],[64,0,64,3],[64,4,64,41],[64,42,64,50],[64,51,64,60],[65,0,65,60],[66,0,66,3],[66,4,66,41],[66,42,66,50],[66,51,66,60],[67,0,67,3],[67,4,67,41],[67,42,67,50],[67,51,67,60],[70,0,70,3],[70,4,70,41],[70,42,70,50],[70,51,70,60],[71,0,71,3],[71,4,71,41],[71,42,71,50],[71,51,71,60],[68,0,68,3],[68,4,68,41],[68,42,68,50],[68,51,68,60],[69,0,69,3],[69,4,69,41],[69,42,69,50],[69,51,69,60],[74,0,74,3],[74,4,74,41],[74,42,74,50],[74,51,74,60],[75,0,75,3],[75,4,75,41],[75,42,75,50],[75,51,75,60],[72,0,72,3],[72,4,72,41],[72,42,72,50],[72,51,72,60],[73,0,73,3],[73,4,73,41],[73,42,73,50],[73,51,73,60],[78,0,78,3],[78,4,78,41],[78,42,78,50],[78,51,78,60],[79,0,79,3],[79,4,79,41],[79,42,79,60],[76,0,76,3],[76,4,76,41],[76,42,76,50],[76,51,76,60],[77,0,77,3],[77,4,77,41],[77,42,77,50],[77,51,77,60]]}
[]
[null,null,null,null,null,null,null,"MINISTERUL AGRICULTURII ŞI DEZVOLTĂRII RURALE",null,null,null,null,null,null,null,null,null,null,null,null,null,null,null,null,null,null,null,null,null,null,null,null,null,null,null,null,null,null,null,null,null,null,"Anexa A3\nHG28/2008"]
[]
[null,null,null,null,null,null,null,"AGENŢIA PENTRU FINANŢAREA INVESTIŢIILOR RURALE",null,null,null,null,null,null,null,null,null,null,null,null,null,null,null,null,null,null,null,null,null,null,null,null,null,null,null,null,null,null,null,null,null,null,null,null,null,null,null,null,null,null,null,"Nr.2"]
[]
[]
[]
["(Titlu deviz)"]
["Deviz capitolul 2- Cheltuieli pentru asigurarea utilităţilor necesare obiectivului - EURO"]
["Nr.crt",null,null,null,"Specificaţie",null,null,null,null,null,null,null,null,null,null,null,null,null,null,null,null,null,null,null,null,null,null,null,null,null,null,null,null,null,null,null,null,null,null,null,null,null,"Valoare eligibilă",null,null,null,null,null,null,null,null,"Valoare\nneeligibilă"]
[1,null,null,null,"Alimentare cu apă"]
[2,null,null,null,"Canalizare"]
[3,null,null,null,"Alimentare cu gaze naturale"]
[4,null,null,null,"Alimentare cu agent termic"]
[5,null,null,null,"Alimentare cu energie electrică"]
[6,null,null,null,"Telecomunicaţii (telefonie, radio-tv,etc)"]
[7,null,null,null,"Alte tipuri de reţele exterioare"]
[8,null,null,null,"Drumuri de acces"]
[null,null,null,null,"Total valoare fără TVA",null,null,null,null,null,null,null,null,null,null,null,null,null,null,null,null,null,null,null,null,null,null,null,null,null,null,null,null,null,null,null,null,null,null,null,null,null,{"$f":"SUM(AQ11:AY18)","v":0},null,null,null,null,null,null,null,null,{"$f":"SUM(AZ11:BI18)","v":0}]
[null,null,null,null,"Valoare TVA aferentă cheltuielilor eligibile şi neeligibile"]
["TOTAL DEVIZ CAPITOLUL 2 (inclusiv TVA)",null,null,null,null,null,null,null,null,null,null,null,null,null,null,null,null,null,null,null,null,null,null,null,null,null,null,null,null,null,null,null,null,null,null,null,null,null,null,null,null,null,{"$f":"AQ19+AZ19+AQ20+AZ20","v":0}]
[]
[" Deviz capitolul 5 - Alte cheltuieli - EURO"]
["Nr.crt",null,null,null,"Specificaţie",null,null,null,null,null,null,null,null,null,null,null,null,null,null,null,null,null,null,null,null,null,null,null,null,null,null,null,null,null,null,null,null,null,null,null,null,null,"Valoare eligibilă",null,null,null,null,null,null,null,null,"Valoare\nneeligibilă"]
[]
["5.1 ",null,null,null,"Organizare de şantier",null,null,null,null,null,null,null,null,null,null,null,null,null,null,null,null,null,null,null,null,null,null,null,null,null,null,null,null,null,null,null,null,null,null,null,null,null,{"$f":"SUM(AQ27:AY28)","v":0},null,null,null,null,null,null,null,null,{"$f":"SUM(AZ27:BI28)","v":0}]
["5.1.1",null,null,null,"lucrări de construcţii şi instalaţii aferente organizării de şantier"]
["5.1.2",null,null,null,"cheltuieli conexe organizării de şantier"]
["5.2",null,null,null,"Comisioane, taxe",null,null,null,null,null,null,null,null,null,null,null,null,null,null,null,null,null,null,null,null,null,null,null,null,null,null,null,null,null,null,null,null,null,null,null,null,null,{"$f":"SUM(AQ31:AY34)","v":0},null,null,null,null,null,null,null,null,{"$f":"SUM(AZ30:BI36)","v":0}]
[null,null,null,null,"comisionul băncii finanţatoare"]
[null,null,null,null,"cota aferentă Inspectoratului de Stat în Construcţii pentru controlul calităţii lucrărilor de construcţii"]
[null,null,null,null,"cota pentru controlul statului în amenajarea teritoriului, urbanism şi pentru autorizarea lucrărilor de construcţii"]
[null,null,null,null,"prime de asigurare din sarcina autorităţii contractante"]
[null,null,null,null,"alte cheltuieli de aceeaşi natură, stabilite în condiţiile legii"]
[null,null,null,null,"cota aferentă Casei Sociale a Constructorilor"]
["5.3",null,null,null," Cheltuieli diverse si neprevazute"]
[null,null,null,null,"TOTAL DEVIZ CAPITOLUL 5",null,null,null,null,null,null,null,null,null,null,null,null,null,null,null,null,null,null,null,null,null,null,null,null,null,null,null,null,null,null,null,null,null,null,null,null,null,{"$f":"AQ26+AQ29","v":0},null,null,null,null,null,null,null,null,{"$f":"AZ26+AZ29+AZ36","v":0}]
[null,null,null,null,"VALOARE TVA aferentă cheltuielilor eligibile şi neeligibile"]
[null,null,null,null,"TOTAL DEVIZ CAPITOLUL 5 ( inclusiv TVA)",null,null,null,null,null,null,null,null,null,null,null,null,null,null,null,null,null,null,null,null,null,null,null,null,null,null,null,null,null,null,null,null,null,null,null,null,null,{"$f":"AQ37+AZ37+AQ38+AZ38","v":0}]
[]
[]
[]
[null,null,null,null,null,null,null,"MINISTERUL AGRICULTURII ŞI DEZVOLTĂRII RURALE",null,null,null,null,null,null,null,null,null,null,null,null,null,null,null,null,null,null,null,null,null,null,null,null,null,null,null,null,null,null,null,null,null,null,"Anexa A3\nHG28/2008"]
[]
[null,null,null,null,null,null,null,"AGENŢIA PENTRU FINANŢAREA INVESTIŢIILOR RURALE",null,null,null,null,null,null,null,null,null,null,null,null,null,null,null,null,null,null,null,null,null,null,null,null,null,null,null,null,null,null,null,null,null,null,null,null,null,null,null,null,null,null,null,"Nr.3"]
[]
[]
[]
["(Titlu deviz)"]
["Deviz capitolul 2- Cheltuieli pentru asigurarea utilităţilor necesare obiectivului - EURO"]
["Nr.crt",null,null,null,"Specificaţie",null,null,null,null,null,null,null,null,null,null,null,null,null,null,null,null,null,null,null,null,null,null,null,null,null,null,null,null,null,null,null,null,null,null,null,null,null,"Valoare eligibilă",null,null,null,null,null,null,null,null,"Valoare\nneeligibilă"]
[1,null,null,null,"Alimentare cu apă"]
[2,null,null,null,"Canalizare"]
[3,null,null,null,"Alimentare cu gaze naturale"]
[4,null,null,null,"Alimentare cu agent termic"]
[5,null,null,null,"Alimentare cu energie electrică"]
[6,null,null,null,"Telecomunicaţii (telefonie, radio-tv,etc)"]
[7,null,null,null,"Alte tipuri de reţele exterioare"]
[8,null,null,null,"Drumuri de acces"]
[null,null,null,null,"Total valoare fără TVA",null,null,null,null,null,null,null,null,null,null,null,null,null,null,null,null,null,null,null,null,null,null,null,null,null,null,null,null,null,null,null,null,null,null,null,null,null,{"$f":"SUM(AQ52:AY59)","v":0},null,null,null,null,null,null,null,null,{"$f":"SUM(AZ52:BI59)","v":0}]
[null,null,null,null,"Valoare TVA aferentă cheltuielilor eligibile şi neeligibile"]
["TOTAL DEVIZ CAPITOLUL 2 (inclusiv TVA)",null,null,null,null,null,null,null,null,null,null,null,null,null,null,null,null,null,null,null,null,null,null,null,null,null,null,null,null,null,null,null,null,null,null,null,null,null,null,null,null,null,{"$f":"AQ60+AZ60+AQ61+AZ61","v":0}]
[]
[" Deviz capitolul 5 - Alte cheltuieli - EURO"]
["Nr.crt",null,null,null,"Specificaţie",null,null,null,null,null,null,null,null,null,null,null,null,null,null,null,null,null,null,null,null,null,null,null,null,null,null,null,null,null,null,null,null,null,null,null,null,null,"Valoare eligibilă",null,null,null,null,null,null,null,null,"Valoare\nneeligibilă"]
[]
["5.1 ",null,null,null,"Organizare de şantier",null,null,null,null,null,null,null,null,null,null,null,null,null,null,null,null,null,null,null,null,null,null,null,null,null,null,null,null,null,null,null,null,null,null,null,null,null,{"$f":"SUM(AQ68:AY69)","v":0},null,null,null,null,null,null,null,null,{"$f":"SUM(AZ68:BI69)","v":0}]
["5.1.1",null,null,null,"lucrări de construcţii şi instalaţii aferente organizării de şantier"]
["5.1.2",null,null,null,"cheltuieli conexe organizării de şantier"]
["5.2",null,null,null,"Comisioane, taxe",null,null,null,null,null,null,null,null,null,null,null,null,null,null,null,null,null,null,null,null,null,null,null,null,null,null,null,null,null,null,null,null,null,null,null,null,null,{"$f":"SUM(AQ72:AY75)","v":0},null,null,null,null,null,null,null,null,{"$f":"SUM(AZ71:BI77)","v":0}]
[null,null,null,null,"comisionul băncii finanţatoare"]
[null,null,null,null,"cota aferentă Inspectoratului de Stat în Construcţii pentru controlul calităţii lucrărilor de construcţii"]
[null,null,null,null,"cota pentru controlul statului în amenajarea teritoriului, urbanism şi pentru autorizarea lucrărilor de construcţii"]
[null,null,null,null,"prime de asigurare din sarcina autorităţii contractante"]
[null,null,null,null,"alte cheltuieli de aceeaşi natură, stabilite în condiţiile legii"]
[null,null,null,null,"cota aferentă Casei Sociale a Constructorilor"]
["5.3",null,null,null," Cheltuieli diverse si neprevazute"]
[null,null,null,null,"TOTAL DEVIZ CAPITOLUL 5",null,null,null,null,null,null,null,null,null,null,null,null,null,null,null,null,null,null,null,null,null,null,null,null,null,null,null,null,null,null,null,null,null,null,null,null,null,{"$f":"AQ67+AQ70","v":0},null,null,null,null,null,null,null,null,{"$f":"AZ67+AZ70+AZ77","v":0}]
[null,null,null,null,"VALOARE TVA aferentă cheltuielilor eligibile şi neeligibile"]
[null,null,null,null,"TOTAL DEVIZ CAPITOLUL 5 ( inclusiv TVA)",null,null,null,null,null,null,null,null,null,null,null,null,null,null,null,null,null,null,null,null,null,null,null,null,null,null,null,null,null,null,null,null,null,null,null,null,null,{"$f":"AQ78+AZ78+AQ79+AZ79","v":0}]
[]
[null,null,null,null,null,null,null,"MINISTERUL AGRICULTURII ŞI DEZVOLTĂRII RURALE",null,null,null,null,null,null,null,null,null,null,null,null,null,null,null,null,null,null,null,null,null,null,null,null,null,null,null,null,null,null,null,null,null,null,"Anexa A3\nHG 907/2016"]
[]
[null,null,null,null,null,null,null,"AGENŢIA PENTRU FINANŢAREA INVESTIŢIILOR RURALE",null,null,null,null,null,null,null,null,null,null,null,null,null,null,null,null,null,null,null,null,null,null,null,null,null,null,null,null,null,null,null,null,null,null,"……………2017",null,null,null,null,null,null,null,null,"Nr.2"]
[]
[]
[]
["(Titlu deviz)"]
["Deviz capitolul 2- Cheltuieli pentru asigurarea utilităţilor necesare obiectivului - EURO"]
["Nr.crt",null,null,null,"Specificaţie",null,null,null,null,null,null,null,null,null,null,null,null,null,null,null,null,null,null,null,null,null,null,null,null,null,null,null,null,null,null,null,null,null,null,null,null,null,"Valoare eligibilă",null,null,null,null,null,null,null,null,"Valoare\nneeligibilă"]
[1,null,null,null,"Alimentare cu apă"]
[2,null,null,null,"Canalizare"]
[3,null,null,null,"Alimentare cu gaze naturale"]
[4,null,null,null,"Alimentare cu agent termic"]
[5,null,null,null,"Alimentare cu energie electrică"]
[6,null,null,null,"Telecomunicaţii (telefonie, radio-tv,etc)"]
[7,null,null,null,"Drumuri de acces"]
[8,null,null,null,"Căi ferate industriale"]
[9,null,null,null,"Alte utilități"]
[null,null,null,null,"Total valoare fără TVA",null,null,null,null,null,null,null,null,null,null,null,null,null,null,null,null,null,null,null,null,null,null,null,null,null,null,null,null,null,null,null,null,null,null,null,null,null,{"$f":"SUM(AQ91:AY99)","v":0},null,null,null,null,null,null,null,null,{"$f":"SUM(AZ91:BI99)","v":0}]
[null,null,null,null,"Valoare TVA aferentă cheltuielilor eligibile şi neeligibile"]
["TOTAL DEVIZ CAPITOLUL 2 (inclusiv TVA)",null,null,null,null,null,null,null,null,null,null,null,null,null,null,null,null,null,null,null,null,null,null,null,null,null,null,null,null,null,null,null,null,null,null,null,null,null,null,null,null,null,{"$f":"AQ100+AZ100+AQ101+AZ101","v":0}]
[]
[" Deviz capitolul 5 - Alte cheltuieli - EURO"]
["Nr.crt",null,null,null,"Specificaţie",null,null,null,null,null,null,null,null,null,null,null,null,null,null,null,null,null,null,null,null,null,null,null,null,null,null,null,null,null,null,null,null,null,null,null,null,null,"Valoare eligibilă",null,null,null,null,null,null,null,null,"Valoare\nneeligibilă"]
[]
["5.1 ",null,null,null,"Organizare de şantier",null,null,null,null,null,null,null,null,null,null,null,null,null,null,null,null,null,null,null,null,null,null,null,null,null,null,null,null,null,null,null,null,null,null,null,null,null,{"$f":"SUM(AQ108:AY109)","v":0},null,null,null,null,null,null,null,null,{"$f":"SUM(AZ108:BI109)","v":0}]
[null,null,null,null,"5.1.1 Lucrări de construcţii şi instalaţii aferente organizării de şantier"]
[null,null,null,null,"5.1.2 Cheltuieli conexe organizării de şantier"]
["5.2",null,null,null,"Comisioane, cote, taxe, costul creditului",null,null,null,null,null,null,null,null,null,null,null,null,null,null,null,null,null,null,null,null,null,null,null,null,null,null,null,null,null,null,null,null,null,null,null,null,null,{"$f":"SUM(AQ112:AY115)","v":0},null,null,null,null,null,null,null,null,{"$f":"SUM(AZ111:BI115)","v":0}]
[null,null,null,null,"5.2.1. Comisioanele şi dobânzile aferente creditului băncii finanţatoare"]
[null,null,null,null,"5.2.2. Cota aferentă ISC pentru controlul calităţii lucrărilor de construcţii"]
[null,null,null,null,"5.2.3. Cota aferentă ISC pentru controlul statului în amenajarea teritoriului, urbanism şi pentru autorizarea lucrărilor de construcţii"]
[null,null,null,null,"5.2.4. Cota aferentă Casei Sociale a Constructorilor - CSC"]
[null,null,null,null,"5.2.5. Taxe pentru acorduri, avize conforme şi autorizaţia de construire/desfiinţare"]
["5.3",null,null,null," Cheltuieli diverse si neprevazute"]
["5.4",null,null,null," Cheltuieli pentru informare și publicitate"]
[null,null,null,null,"TOTAL DEVIZ CAPITOLUL 5",null,null,null,null,null,null,null,null,null,null,null,null,null,null,null,null,null,null,null,null,null,null,null,null,null,null,null,null,null,null,null,null,null,null,null,null,null,{"$f":"AQ107+AQ110+AQ116","v":0},null,null,null,null,null,null,null,null,{"$f":"AZ107+AZ110+AZ116+AZ117","v":0}]
[null,null,null,null,"VALOARE TVA aferentă cheltuielilor eligibile şi neeligibile"]
[null,null,null,null,"TOTAL DEVIZ CAPITOLUL 5 ( inclusiv TVA)",null,null,null,null,null,null,null,null,null,null,null,null,null,null,null,null,null,null,null,null,null,null,null,null,null,null,null,null,null,null,null,null,null,null,null,null,null,{"$f":"AQ118+AZ118+AQ119+AZ119","v":0}]
[]
[]
[null,null,null,null,null,null,null,"MINISTERUL AGRICULTURII ŞI DEZVOLTĂRII RURALE",null,null,null,null,null,null,null,null,null,null,null,null,null,null,null,null,null,null,null,null,null,null,null,null,null,null,null,null,null,null,null,null,null,null,"Anexa A3\nHG 907/2016"]
[]
[null,null,null,null,null,null,null,"AGENŢIA PENTRU FINANŢAREA INVESTIŢIILOR RURALE",null,null,null,null,null,null,null,null,null,null,null,null,null,null,null,null,null,null,null,null,null,null,null,null,null,null,null,null,null,null,null,null,null,null,"……………2017",null,null,null,null,null,null,null,null,"Nr.3"]
[]
[]
[]
["(Titlu deviz)"]
["Deviz capitolul 2- Cheltuieli pentru asigurarea utilităţilor necesare obiectivului - EURO"]
["Nr.crt",null,null,null,"Specificaţie",null,null,null,null,null,null,null,null,null,null,null,null,null,null,null,null,null,null,null,null,null,null,null,null,null,null,null,null,null,null,null,null,null,null,null,null,null,"Valoare eligibilă",null,null,null,null,null,null,null,null,"Valoare\nneeligibilă"]
[1,null,null,null,"Alimentare cu apă"]
[2,null,null,null,"Canalizare"]
[3,null,null,null,"Alimentare cu gaze naturale"]
[4,null,null,null,"Alimentare cu agent termic"]
[5,null,null,null,"Alimentare cu energie electrică"]
[6,null,null,null,"Telecomunicaţii (telefonie, radio-tv,etc)"]
[7,null,null,null,"Drumuri de acces"]
[8,null,null,null,"Căi ferate industriale"]
[9,null,null,null,"Alte utilități"]
[null,null,null,null,"Total valoare fără TVA",null,null,null,null,null,null,null,null,null,null,null,null,null,null,null,null,null,null,null,null,null,null,null,null,null,null,null,null,null,null,null,null,null,null,null,null,null,{"$f":"SUM(AQ132:AY140)","v":0},null,null,null,null,null,null,null,null,{"$f":"SUM(AZ132:BI140)","v":0}]
[null,null,null,null,"Valoare TVA aferentă cheltuielilor eligibile şi neeligibile"]
["TOTAL DEVIZ CAPITOLUL 2 (inclusiv TVA)",null,null,null,null,null,null,null,null,null,null,null,null,null,null,null,null,null,null,null,null,null,null,null,null,null,null,null,null,null,null,null,null,null,null,null,null,null,null,null,null,null,{"$f":"AQ141+AZ141+AQ142+AZ142","v":0}]
[]
[" Deviz capitolul 5 - Alte cheltuieli - EURO"]
["Nr.crt",null,null,null,"Specificaţie",null,null,null,null,null,null,null,null,null,null,null,null,null,null,null,null,null,null,null,null,null,null,null,null,null,null,null,null,null,null,null,null,null,null,null,null,null,"Valoare eligibilă",null,null,null,null,null,null,null,null,"Valoare\nneeligibilă"]
[]
["5.1 ",null,null,null,"Organizare de şantier",null,null,null,null,null,null,null,null,null,null,null,null,null,null,null,null,null,null,null,null,null,null,null,null,null,null,null,null,null,null,null,null,null,null,null,null,null,{"$f":"SUM(AQ149:AY150)","v":0},null,null,null,null,null,null,null,null,{"$f":"SUM(AZ149:BI150)","v":0}]
[null,null,null,null,"5.1.1 Lucrări de construcţii şi instalaţii aferente organizării de şantier"]
[null,null,null,null,"5.1.2 Cheltuieli conexe organizării de şantier"]
["5.2",null,null,null,"Comisioane, cote, taxe, costul creditului",null,null,null,null,null,null,null,null,null,null,null,null,null,null,null,null,null,null,null,null,null,null,null,null,null,null,null,null,null,null,null,null,null,null,null,null,null,{"$f":"SUM(AQ153:AY156)","v":0},null,null,null,null,null,null,null,null,{"$f":"SUM(AZ152:BI156)","v":0}]
[null,null,null,null,"5.2.1. Comisioanele şi dobânzile aferente creditului băncii finanţatoare"]
[null,null,null,null,"5.2.2. Cota aferentă ISC pentru controlul calităţii lucrărilor de construcţii"]
[null,null,null,null,"5.2.3. Cota aferentă ISC pentru controlul statului în amenajarea teritoriului, urbanism şi pentru autorizarea lucrărilor de construcţii"]
[null,null,null,null,"5.2.4. Cota aferentă Casei Sociale a Constructorilor - CSC"]
[null,null,null,null,"5.2.5. Taxe pentru acorduri, avize conforme şi autorizaţia de construire/desfiinţare"]
["5.3",null,null,null," Cheltuieli diverse si neprevazute"]
["5.4",null,null,null," Cheltuieli pentru informare și publicitate"]
[null,null,null,null,"TOTAL DEVIZ CAPITOLUL 5",null,null,null,null,null,null,null,null,null,null,null,null,null,null,null,null,null,null,null,null,null,null,null,null,null,null,null,null,null,null,null,null,null,null,null,null,null,{"$f":"AQ148+AQ151+AQ157","v":0},null,null,null,null,null,null,null,null,{"$f":"AZ148+AZ151+AZ157+AZ158","v":0}]
[null,null,null,null,"VALOARE TVA aferentă cheltuielilor eligibile şi neeligibile"]
[null,null,null,null,"TOTAL DEVIZ CAPITOLUL 5 ( inclusiv TVA)",null,null,null,null,null,null,null,null,null,null,null,null,null,null,null,null,null,null,null,null,null,null,null,null,null,null,null,null,null,null,null,null,null,null,null,null,null,{"$f":"AQ159+AZ159+AQ160+AZ160","v":0}]
[]
[null,null,null,null,null,null,null,"MINISTERUL AGRICULTURII ŞI DEZVOLTĂRII RURALE",null,null,null,null,null,null,null,null,null,null,null,null,null,null,null,null,null,null,null,null,null,null,null,null,null,null,null,null,null,null,null,null,null,null,"Anexa A3\nHG 907/2016"]
[]
[null,null,null,null,null,null,null,"AGENŢIA PENTRU FINANŢAREA INVESTIŢIILOR RURALE",null,null,null,null,null,null,null,null,null,null,null,null,null,null,null,null,null,null,null,null,null,null,null,null,null,null,null,null,null,null,null,null,null,null,"……………2017",null,null,null,null,null,null,null,null,"Nr.2"]
[]
[]
[]
["(Titlu deviz)"]
["Deviz capitolul 2- Cheltuieli pentru asigurarea utilităţilor necesare obiectivului - EURO"]
["Nr.crt",null,null,null,"Specificaţie",null,null,null,null,null,null,null,null,null,null,null,null,null,null,null,null,null,null,null,null,null,null,null,null,null,null,null,null,null,null,null,null,null,null,null,null,null,"Valoare eligibilă",null,null,null,null,null,null,null,null,"Valoare\nneeligibilă"]
[1,null,null,null,"Alimentare cu apă"]
[2,null,null,null,"Canalizare"]
[3,null,null,null,"Alimentare cu gaze naturale"]
[4,null,null,null,"Alimentare cu agent termic"]
[5,null,null,null,"Alimentare cu energie electrică"]
[6,null,null,null,"Telecomunicaţii (telefonie, radio-tv,etc)"]
[7,null,null,null,"Drumuri de acces"]
[8,null,null,null,"Căi ferate industriale"]
[9,null,null,null,"Alte utilități"]
[null,null,null,null,"Total valoare fără TVA",null,null,null,null,null,null,null,null,null,null,null,null,null,null,null,null,null,null,null,null,null,null,null,null,null,null,null,null,null,null,null,null,null,null,null,null,null,{"$f":"SUM(AQ172:AY180)","v":0},null,null,null,null,null,null,null,null,{"$f":"SUM(AZ172:BI180)","v":0}]
[null,null,null,null,"Valoare TVA aferentă cheltuielilor eligibile şi neeligibile"]
["TOTAL DEVIZ CAPITOLUL 2 (inclusiv TVA)",null,null,null,null,null,null,null,null,null,null,null,null,null,null,null,null,null,null,null,null,null,null,null,null,null,null,null,null,null,null,null,null,null,null,null,null,null,null,null,null,null,{"$f":"AQ181+AZ181+AQ182+AZ182","v":0}]
[]
[" Deviz capitolul 5 - Alte cheltuieli - EURO"]
["Nr.crt",null,null,null,"Specificaţie",null,null,null,null,null,null,null,null,null,null,null,null,null,null,null,null,null,null,null,null,null,null,null,null,null,null,null,null,null,null,null,null,null,null,null,null,null,"Valoare eligibilă",null,null,null,null,null,null,null,null,"Valoare\nneeligibilă"]
[]
["5.1 ",null,null,null,"Organizare de şantier",null,null,null,null,null,null,null,null,null,null,null,null,null,null,null,null,null,null,null,null,null,null,null,null,null,null,null,null,null,null,null,null,null,null,null,null,null,{"$f":"SUM(AQ189:AY190)","v":0},null,null,null,null,null,null,null,null,{"$f":"SUM(AZ189:BI190)","v":0}]
[null,null,null,null,"5.1.1 Lucrări de construcţii şi instalaţii aferente organizării de şantier"]
[null,null,null,null,"5.1.2 Cheltuieli conexe organizării de şantier"]
["5.2",null,null,null,"Comisioane, cote, taxe, costul creditului",null,null,null,null,null,null,null,null,null,null,null,null,null,null,null,null,null,null,null,null,null,null,null,null,null,null,null,null,null,null,null,null,null,null,null,null,null,{"$f":"SUM(AQ193:AY196)","v":0},null,null,null,null,null,null,null,null,{"$f":"SUM(AZ192:BI196)","v":0}]
[null,null,null,null,"5.2.1. Comisioanele şi dobânzile aferente creditului băncii finanţatoare"]
[null,null,null,null,"5.2.2. Cota aferentă ISC pentru controlul calităţii lucrărilor de construcţii"]
[null,null,null,null,"5.2.3. Cota aferentă ISC pentru controlul statului în amenajarea teritoriului, urbanism şi pentru autorizarea lucrărilor de construcţii"]
[null,null,null,null,"5.2.4. Cota aferentă Casei Sociale a Constructorilor - CSC"]
[null,null,null,null,"5.2.5. Taxe pentru acorduri, avize conforme şi autorizaţia de construire/desfiinţare"]
["5.3",null,null,null," Cheltuieli diverse si neprevazute"]
["5.4",null,null,null," Cheltuieli pentru informare și publicitate"]
[null,null,null,null,"TOTAL DEVIZ CAPITOLUL 5",null,null,null,null,null,null,null,null,null,null,null,null,null,null,null,null,null,null,null,null,null,null,null,null,null,null,null,null,null,null,null,null,null,null,null,null,null,{"$f":"AQ188+AQ191+AQ197","v":0},null,null,null,null,null,null,null,null,{"$f":"AZ188+AZ191+AZ197+AZ198","v":0}]
[null,null,null,null,"VALOARE TVA aferentă cheltuielilor eligibile şi neeligibile"]
[null,null,null,null,"TOTAL DEVIZ CAPITOLUL 5 ( inclusiv TVA)",null,null,null,null,null,null,null,null,null,null,null,null,null,null,null,null,null,null,null,null,null,null,null,null,null,null,null,null,null,null,null,null,null,null,null,null,null,{"$f":"AQ199+AZ199+AQ200+AZ200","v":0}]
[]
[null,null,null,null,null,null,null,"MINISTERUL AGRICULTURII ŞI DEZVOLTĂRII RURALE",null,null,null,null,null,null,null,null,null,null,null,null,null,null,null,null,null,null,null,null,null,null,null,null,null,null,null,null,null,null,null,null,null,null,"Anexa A3\nHG 907/2016"]
[]
[null,null,null,null,null,null,null,"AGENŢIA PENTRU FINANŢAREA INVESTIŢIILOR RURALE",null,null,null,null,null,null,null,null,null,null,null,null,null,null,null,null,null,null,null,null,null,null,null,null,null,null,null,null,null,null,null,null,null,null,"……………2017",null,null,null,null,null,null,null,null,"Nr.3"]
[]
[]
[]
["(Titlu deviz)"]
["Deviz capitolul 2- Cheltuieli pentru asigurarea utilităţilor necesare obiectivului - EURO"]
["Nr.crt",null,null,null,"Specificaţie",null,null,null,null,null,null,null,null,null,null,null,null,null,null,null,null,null,null,null,null,null,null,null,null,null,null,null,null,null,null,null,null,null,null,null,null,null,"Valoare eligibilă",null,null,null,null,null,null,null,null,"Valoare\nneeligibilă"]
[1,null,null,null,"Alimentare cu apă"]
[2,null,null,null,"Canalizare"]
[3,null,null,null,"Alimentare cu gaze naturale"]
[4,null,null,null,"Alimentare cu agent termic"]
[5,null,null,null,"Alimentare cu energie electrică"]
[6,null,null,null,"Telecomunicaţii (telefonie, radio-tv,etc)"]
[7,null,null,null,"Drumuri de acces"]
[8,null,null,null,"Căi ferate industriale"]
[9,null,null,null,"Alte utilități"]
[null,null,null,null,"Total valoare fără TVA",null,null,null,null,null,null,null,null,null,null,null,null,null,null,null,null,null,null,null,null,null,null,null,null,null,null,null,null,null,null,null,null,null,null,null,null,null,{"$f":"SUM(AQ212:AY220)","v":0},null,null,null,null,null,null,null,null,{"$f":"SUM(AZ212:BI220)","v":0}]
[null,null,null,null,"Valoare TVA aferentă cheltuielilor eligibile şi neeligibile"]
["TOTAL DEVIZ CAPITOLUL 2 (inclusiv TVA)",null,null,null,null,null,null,null,null,null,null,null,null,null,null,null,null,null,null,null,null,null,null,null,null,null,null,null,null,null,null,null,null,null,null,null,null,null,null,null,null,null,{"$f":"AQ221+AZ221+AQ222+AZ222","v":0}]
[]
[" Deviz capitolul 5 - Alte cheltuieli - EURO"]
["Nr.crt",null,null,null,"Specificaţie",null,null,null,null,null,null,null,null,null,null,null,null,null,null,null,null,null,null,null,null,null,null,null,null,null,null,null,null,null,null,null,null,null,null,null,null,null,"Valoare eligibilă",null,null,null,null,null,null,null,null,"Valoare\nneeligibilă"]
[]
["5.1 ",null,null,null,"Organizare de şantier",null,null,null,null,null,null,null,null,null,null,null,null,null,null,null,null,null,null,null,null,null,null,null,null,null,null,null,null,null,null,null,null,null,null,null,null,null,{"$f":"SUM(AQ229:AY230)","v":0},null,null,null,null,null,null,null,null,{"$f":"SUM(AZ229:BI230)","v":0}]
[null,null,null,null,"5.1.1 Lucrări de construcţii şi instalaţii aferente organizării de şantier"]
[null,null,null,null,"5.1.2 Cheltuieli conexe organizării de şantier"]
["5.2",null,null,null,"Comisioane, cote, taxe, costul creditului",null,null,null,null,null,null,null,null,null,null,null,null,null,null,null,null,null,null,null,null,null,null,null,null,null,null,null,null,null,null,null,null,null,null,null,null,null,{"$f":"SUM(AQ233:AY236)","v":0},null,null,null,null,null,null,null,null,{"$f":"SUM(AZ232:BI236)","v":0}]
[null,null,null,null,"5.2.1. Comisioanele şi dobânzile aferente creditului băncii finanţatoare"]
[null,null,null,null,"5.2.2. Cota aferentă ISC pentru controlul calităţii lucrărilor de construcţii"]
[null,null,null,null,"5.2.3. Cota aferentă ISC pentru controlul statului în amenajarea teritoriului, urbanism şi pentru autorizarea lucrărilor de construcţii"]
[null,null,null,null,"5.2.4. Cota aferentă Casei Sociale a Constructorilor - CSC"]
[null,null,null,null,"5.2.5. Taxe pentru acorduri, avize conforme şi autorizaţia de construire/desfiinţare"]
["5.3",null,null,null," Cheltuieli diverse si neprevazute"]
["5.4",null,null,null," Cheltuieli pentru informare și publicitate"]
[null,null,null,null,"TOTAL DEVIZ CAPITOLUL 5",null,null,null,null,null,null,null,null,null,null,null,null,null,null,null,null,null,null,null,null,null,null,null,null,null,null,null,null,null,null,null,null,null,null,null,null,null,{"$f":"AQ228+AQ231+AQ237","v":0},null,null,null,null,null,null,null,null,{"$f":"AZ228+AZ231+AZ237+AZ238","v":0}]
[null,null,null,null,"VALOARE TVA aferentă cheltuielilor eligibile şi neeligibile"]
[null,null,null,null,"TOTAL DEVIZ CAPITOLUL 5 ( inclusiv TVA)",null,null,null,null,null,null,null,null,null,null,null,null,null,null,null,null,null,null,null,null,null,null,null,null,null,null,null,null,null,null,null,null,null,null,null,null,null,{"$f":"AQ239+AZ239+AQ240+AZ240","v":0}]

{"sheet":"Asociati","index":4,"n_rows":55,"n_cols":53,"rows_kept":55,"cut":false,"hidden":false,"merged":[[54,29,54,51],[55,4,55,17],[55,29,55,50],[43,25,43,35],[44,3,44,22],[44,25,44,42],[44,44,44,58],[46,3,46,10],[46,13,46,29],[46,31,46,34],[46,36,46,39],[46,41,46,44],[46,46,46,49],[46,52,46,57],[47,5,47,13],[50,7,50,18],[52,9,52,58],[39,37,40,48],[39,51,40,58],[40,4,40,6],[40,7,40,9],[40,10,40,15],[42,2,42,28],[39,4,39,6],[39,7,39,9],[39,10,39,15],[39,18,40,20],[39,21,40,26],[39,28,40,35],[27,29,27,51],[28,4,28,17],[28,29,28,50],[38,51,38,58],[30,5,30,13],[31,17,31,58],[33,3,33,10],[33,24,33,49],[34,3,34,16],[34,24,34,49],[38,4,38,15],[38,18,38,20],[38,21,38,26],[38,28,38,35],[38,37,38,48],[19,46,19,49],[19,52,19,57],[20,5,20,13],[23,7,23,18],[25,9,25,58],[19,3,19,10],[19,13,19,29],[19,31,19,34],[19,36,19,39],[19,41,19,44],[15,2,15,28],[16,25,16,35],[17,3,17,22],[17,25,17,42],[17,44,17,58],[11,51,11,58],[12,4,12,6],[12,7,12,9],[12,10,12,15],[12,18,13,20],[12,21,13,26],[12,28,13,35],[12,37,13,48],[12,51,13,58],[13,4,13,6],[13,7,13,9],[13,10,13,15],[7,3,7,16],[7,24,7,49],[11,4,11,15],[11,18,11,20],[11,21,11,26],[11,28,11,35],[11,37,11,48],[0,0,0,60],[1,0,1,60],[3,5,3,13],[4,17,4,58],[6,3,6,10],[6,24,6,49]]}
["B INFORMAŢII PRIVIND SOLICITANTUL"]
[]
[null,"Asociați"]
[null,null,null,null,null,"Persoană Fizică: "]
[null,null,null,"Nume și prenume asociat : "]
[]
[null,null,null,"Data naşterii",null,null,null,null,null,null,null,null,null,null,null,null,null,null,null,null,null,null,null,null,"Cod numeric personal"]
[]
[]
[]
[]
[null,null,null,null,"Act de identitate",null,null,null,null,null,null,null,null,null,null,null,null,null,"Seria",null,null,"Nr.",null,null,null,null,null,null,"Eliberat la data de",null,null,null,null,null,null,null,null,"de:",null,null,null,null,null,null,null,null,null,null,null,null,null,"Valabil până la:"]
[null,null,null,null,"B.I.",null,null,"C.I.",null,null,"Paşaport"]
[]
[]
[null,null,"Adresa și domiciliul asociatului:"]
[null,null,null,"Judeţ",null,null,null,null,null,null,null,null,null,null,null,null,null,null,null,null,null,null,null,null,null,"Localitate",null,null,null,null,null,null,null,null,null,null,null,null,null,null,null,null,null,null,"Sat"]
[]
[null,null,null,"Cod Poştal",null,null,null,null,null,null,null,null,null,"Strada",null,null,null,null,null,null,null,null,null,null,null,null,null,null,null,null,null,"Nr.",null,null,null,null,"Bloc",null,null,null,null,"Scara",null,null,null,null,"Etaj",null,null,null,null,null,"Apartament"]
[]
[null,null,null,null,null,"Persoană Juridică: "]
[]
[null,null,null,null,null,null,null,"Înregistrată în România"]
[null,null,null,null,null,null,null,"Înregistrată în altă țară"]
[]
[null,null,null,"Denumire : "]
[]
[null,null,null,null,"CUI",null,null,null,null,null,null,null,null,null,null,null,null,null,null,null,null,null,null,null,null,null,null,null,null,"Nr. Inreg. ONRC"]
[]
[]
[null,null,null,null,null,"Persoană Fizică: "]
[null,null,null,"Nume și prenume asociat : "]
[]
[null,null,null,"Data naşterii",null,null,null,null,null,null,null,null,null,null,null,null,null,null,null,null,null,null,null,null,"Cod numeric personal"]
[]
[]
[]
[]
[null,null,null,null,"Act de identitate",null,null,null,null,null,null,null,null,null,null,null,null,null,"Seria",null,null,"Nr.",null,null,null,null,null,null,"Eliberat la data de",null,null,null,null,null,null,null,null,"de:",null,null,null,null,null,null,null,null,null,null,null,null,null,"Valabil până la:"]
[null,null,null,null,"B.I.",null,null,"C.I.",null,null,"Paşaport"]
[]
[]
[null,null,"Adresa și domiciliul asociatului:"]
[null,null,null,"Judeţ",null,null,null,null,null,null,null,null,null,null,null,null,null,null,null,null,null,null,null,null,null,"Localitate",null,null,null,null,null,null,null,null,null,null,null,null,null,null,null,null,null,null,"Sat"]
[]
[null,null,null,"Cod Poştal",null,null,null,null,null,null,null,null,null,"Strada",null,null,null,null,null,null,null,null,null,null,null,null,null,null,null,null,null,"Nr.",null,null,null,null,"Bloc",null,null,null,null,"Scara",null,null,null,null,"Etaj",null,null,null,null,null,"Apartament"]
[]
[null,null,null,null,null,"Persoană Juridică: "]
[]
[null,null,null,null,null,null,null,"Înregistrată în România"]
[null,null,null,null,null,null,null,"Înregistrată în altă țară"]
[]
[null,null,null,"Denumire : "]
[]
[null,null,null,null,"CUI",null,null,null,null,null,null,null,null,null,null,null,null,null,null,null,null,null,null,null,null,null,null,null,null,"Nr. Inreg. ONRC"]